{"text_format":"1","workbook":"xlsx","n_sheets":7,"sheets":["TNL","TNB-DLRG+BG","TNL-BG 1","TNL-BG 2","TNL-FeV","TNB-FeV","Data"],"not_rendered":{"charts":0,"images":15,"macros":1,"external_links":0,"defined_names":6,"comments":0,"pivot_tables":0},"unopened":[],"bounds":{"document_bytes":16777216,"sheet_cells":100000,"rows_first":2000,"rows_last":500,"rows_between":2000,"halvings":0,"cell_chars":16384,"cell_head_chars":4096},"cells_cut":0,"cells_raw":0,"read":"whole","date_system":"1900"}

{"sheet":"TNL","index":0,"n_rows":99,"n_cols":174,"rows_kept":99,"cut":false,"hidden":false,"merged":[[14,176,15,176],[97,2,98,5],[97,6,97,9],[97,10,97,47],[97,48,98,59],[93,2,94,5],[93,6,93,9],[93,10,93,47],[93,48,94,59],[95,139,95,168],[96,6,96,9],[96,10,96,47],[96,60,96,99],[96,100,96,138],[96,139,96,168],[97,139,97,168],[98,6,98,9],[98,10,98,47],[98,60,98,99],[98,100,98,138],[98,139,98,168],[97,60,97,99],[97,100,97,138],[95,60,95,99],[95,100,95,138],[93,139,93,168],[94,6,94,9],[94,10,94,47],[94,60,94,99],[94,100,94,138],[94,139,94,168],[93,60,93,99],[93,100,93,138],[95,2,96,5],[95,6,95,9],[95,10,95,47],[95,48,96,59],[89,139,89,168],[90,6,90,9],[90,10,90,47],[90,60,90,99],[90,100,90,138],[90,139,90,168],[92,139,92,168],[91,60,91,99],[91,2,92,5],[91,6,91,9],[91,10,91,47],[91,48,92,59],[89,2,90,5],[89,6,89,9],[89,10,89,47],[89,48,90,59],[91,100,91,138],[91,139,91,168],[92,6,92,9],[92,10,92,47],[92,60,92,99],[92,100,92,138],[87,60,87,99],[87,100,87,138],[87,2,88,5],[89,60,89,99],[89,100,89,138],[85,139,85,168],[86,6,86,9],[86,10,86,47],[86,60,86,99],[86,100,86,138],[86,139,86,168],[87,139,87,168],[88,6,88,9],[88,10,88,47],[88,60,88,99],[88,100,88,138],[88,139,88,168],[87,6,87,9],[87,10,87,47],[87,48,88,59],[85,2,86,5],[85,6,85,9],[85,10,85,47],[85,48,86,59],[83,60,83,99],[83,100,83,138],[83,2,84,5],[85,60,85,99],[85,100,85,138],[81,139,81,168],[82,6,82,9],[82,10,82,47],[82,60,82,99],[82,100,82,138],[82,139,82,168],[83,139,83,168],[84,6,84,9],[84,10,84,47],[84,60,84,99],[84,100,84,138],[84,139,84,168],[83,6,83,9],[83,10,83,47],[83,48,84,59],[81,2,82,5],[81,6,81,9],[81,10,81,47],[81,48,82,59],[79,60,79,99],[79,100,79,138],[79,2,80,5],[81,60,81,99],[81,100,81,138],[79,139,79,168],[80,6,80,9],[80,10,80,47],[80,60,80,99],[80,100,80,138],[80,139,80,168],[79,6,79,9],[79,10,79,47],[79,48,80,59],[72,161,72,168],[73,2,73,168],[72,89,72,106],[72,107,72,110],[72,111,72,121],[72,122,72,137],[74,2,74,168],[75,2,78,5],[75,6,78,9],[75,10,78,47],[75,48,78,59],[75,60,78,99],[75,100,78,138],[75,139,78,168],[72,2,72,17],[72,18,72,27],[72,28,72,31],[72,32,72,48],[72,49,72,69],[72,70,72,73],[72,74,72,88],[72,138,72,141],[72,142,72,160],[66,139,66,168],[67,6,67,9],[67,10,67,47],[67,60,67,99],[67,100,67,138],[67,139,67,168],[69,126,69,168],[70,2,70,168],[71,2,71,168],[66,2,67,5],[66,6,66,9],[66,10,66,47],[66,48,67,59],[69,122,69,125],[69,2,69,28],[69,29,69,32],[69,33,69,56],[69,57,69,60],[69,61,69,84],[69,85,69,88],[69,89,69,121],[68,2,68,168],[64,60,64,99],[64,100,64,138],[64,2,65,5],[66,60,66,99],[66,100,66,138],[62,139,62,168],[63,6,63,9],[63,10,63,47],[63,60,63,99],[63,100,63,138],[63,139,63,168],[64,139,64,168],[65,6,65,9],[65,10,65,47],[65,60,65,99],[65,100,65,138],[65,139,65,168],[64,6,64,9],[64,10,64,47],[64,48,65,59],[62,2,63,5],[62,6,62,9],[62,10,62,47],[62,48,63,59],[60,60,60,99],[60,100,60,138],[60,2,61,5],[62,60,62,99],[62,100,62,138],[58,139,58,168],[59,6,59,9],[59,10,59,47],[59,60,59,99],[59,100,59,138],[59,139,59,168],[60,139,60,168],[61,6,61,9],[61,10,61,47],[61,60,61,99],[61,100,61,138],[61,139,61,168],[60,6,60,9],[60,10,60,47],[60,48,61,59],[58,2,59,5],[58,6,58,9],[58,10,58,47],[58,48,59,59],[56,60,56,99],[56,100,56,138],[56,2,57,5],[58,60,58,99],[58,100,58,138],[54,139,54,168],[55,6,55,9],[55,10,55,47],[55,60,55,99],[55,100,55,138],[55,139,55,168],[56,139,56,168],[57,6,57,9],[57,10,57,47],[57,60,57,99],[57,100,57,138],[57,139,57,168],[56,6,56,9],[56,10,56,47],[56,48,57,59],[54,2,55,5],[54,6,54,9],[54,10,54,47],[54,48,55,59],[52,60,52,99],[52,100,52,138],[52,2,53,5],[54,60,54,99],[54,100,54,138],[52,139,52,168],[53,6,53,9],[53,10,53,47],[53,60,53,99],[53,100,53,138],[53,139,53,168],[52,6,52,9],[52,10,52,47],[52,48,53,59],[48,60,48,99],[50,2,51,5],[50,6,50,9],[50,10,50,47],[50,48,51,59],[49,100,49,138],[49,139,49,168],[49,6,49,9],[48,2,49,5],[48,48,49,59],[50,60,50,99],[50,100,50,138],[50,139,50,168],[51,6,51,9],[51,10,51,47],[51,60,51,99],[51,100,51,138],[51,139,51,168],[49,10,49,47],[49,60,49,99],[48,6,48,9],[48,10,48,47],[48,139,48,168],[48,100,48,138],[44,2,47,5],[44,6,47,9],[44,10,47,47],[43,2,43,168],[41,138,41,141],[41,161,41,168],[41,2,41,17],[36,53,36,59],[33,60,35,110],[36,60,36,110],[33,111,33,117],[41,18,41,27],[41,32,41,48],[41,28,41,31],[41,70,41,73],[41,107,41,110],[41,142,41,160],[41,122,41,137],[41,111,41,121],[44,100,47,138],[44,139,47,168],[44,60,47,99],[44,48,47,59],[5,2,5,168],[3,2,4,168],[2,85,2,88],[2,122,2,125],[2,61,2,84],[2,2,2,28],[2,29,2,32],[2,57,2,60],[2,33,2,56],[2,89,2,121],[2,126,2,168],[11,53,11,59],[8,11,8,52],[9,11,9,52],[10,11,10,18],[17,53,17,59],[18,53,18,59],[16,53,16,59],[18,14,18,52],[17,2,17,52],[18,2,18,13],[10,22,10,52],[10,53,10,59],[11,2,11,52],[15,13,15,52],[15,53,15,59],[10,19,10,21],[13,53,13,59],[14,53,14,59],[15,2,15,12],[16,2,16,52],[6,2,6,52],[6,60,6,110],[6,53,6,59],[14,99,14,110],[14,81,14,92],[14,95,14,98],[14,93,14,94],[10,2,10,10],[14,2,14,52],[13,2,13,52],[9,53,9,59],[8,74,8,79],[7,53,7,59],[7,60,7,110],[7,2,7,52],[8,80,8,110],[8,60,8,65],[8,66,8,73],[8,2,8,10],[9,2,9,10],[8,53,8,59],[12,2,12,25],[12,26,12,52],[12,53,12,59],[16,76,16,110],[14,149,14,168],[16,111,16,117],[15,107,15,110],[12,60,12,88],[10,60,11,110],[15,93,15,94],[12,99,12,102],[12,103,12,110],[12,93,12,98],[12,89,12,92],[12,121,12,168],[13,118,13,168],[13,60,13,110],[31,2,31,52],[31,60,31,110],[32,118,35,168],[32,111,32,117],[32,53,32,59],[31,53,31,59],[33,2,35,52],[34,53,34,59],[34,111,34,117],[6,121,6,168],[14,111,14,117],[9,118,9,132],[8,118,8,132],[8,133,8,168],[9,133,9,168],[8,111,8,117],[11,118,11,168],[10,118,10,132],[6,111,6,117],[9,111,9,117],[10,111,10,117],[11,111,11,117],[12,111,12,117],[13,111,13,117],[12,118,12,120],[6,118,6,120],[14,118,14,148],[7,111,7,117],[7,118,7,168],[10,133,10,168],[9,60,9,67],[9,68,9,110],[14,171,15,171],[14,172,15,172],[15,149,15,168],[18,171,21,177],[14,177,15,177],[42,2,42,168],[12,171,12,174],[41,89,41,106],[41,74,41,88],[38,85,38,88],[38,89,38,121],[38,2,38,28],[38,29,38,32],[38,33,38,56],[38,122,38,125],[36,118,36,168],[32,2,32,14],[32,15,32,52],[32,60,32,72],[32,73,32,110],[36,2,36,52],[14,60,14,75],[22,159,22,161],[21,60,21,110],[30,60,30,110],[22,151,22,153],[22,118,22,145],[31,118,31,168],[11,171,11,174],[14,173,15,173],[21,162,21,168],[19,118,19,168],[15,111,15,117],[18,111,18,117],[15,118,15,148],[19,111,19,117],[16,118,18,168],[17,111,17,117],[20,111,20,117],[21,111,21,117],[20,118,20,168],[21,159,21,161],[21,154,21,158],[21,118,21,145],[21,151,21,153],[21,146,21,150],[21,2,21,13],[21,14,21,52],[14,76,14,80],[18,60,18,85],[18,86,18,110],[17,60,17,110],[15,95,15,98],[15,81,15,88],[22,111,22,117],[19,2,19,13],[19,60,19,110],[20,60,20,110],[20,2,20,52],[19,14,19,52],[19,53,19,59],[20,53,20,59],[21,53,21,59],[22,53,22,59],[15,76,15,80],[15,89,15,92],[15,99,15,106],[22,14,22,52],[15,60,15,75],[16,60,16,75],[45,171,46,172],[37,2,37,168],[35,111,35,117],[36,111,36,117],[33,53,33,59],[35,53,35,59],[22,60,22,110],[23,2,28,168],[41,49,41,69],[40,2,40,168],[30,118,30,168],[31,111,31,117],[30,2,30,52],[30,53,30,59],[29,2,29,168],[30,111,30,117],[22,2,22,13],[39,2,39,168],[38,57,38,60],[38,126,38,168],[38,61,38,84],[22,146,22,150],[22,162,22,168],[22,154,22,158]]}
[]
[]
[null,null,"Teilnehmerliste",null,null,null,null,null,null,null,null,null,null,null,null,null,null,null,null,null,null,null,null,null,null,null,null,null,null,null,null,null,null,"  Erste Hilfe-Ausbildung ",null,null,null,null,null,null,null,null,null,null,null,null,null,null,null,null,null,null,null,null,null,null,null,null,null,null,null,"  Erste Hilfe-Fortbildung ",null,null,null,null,null,null,null,null,null,null,null,null,null,null,null,null,null,null,null,null,null,null,null,null,null,null,null,"  Erste Hilfe in Betreuungseinrichtungen"]
[null,null,"Dokumentationsblatt nach DGUV Grundsatz 304-001 und für die Fahrerlaubnisbehörden (FeV)"]
[]
[]
[null,null,"Ausbildende Institution (Adresse)",null,null,null,null,null,null,null,null,null,null,null,null,null,null,null,null,null,null,null,null,null,null,null,null,null,null,null,null,null,null,null,null,null,null,null,null,null,null,null,null,null,null,null,null,null,null,null,null,null,null,null,null,null,null,null,null,null,"Lehrgangsort",null,null,null,null,null,null,null,null,null,null,null,null,null,null,null,null,null,null,null,null,null,null,null,null,null,null,null,null,null,null,null,null,null,null,null,null,null,null,null,null,null,null,null,null,null,null,null,null,null,null,null,null,null,null,null,null,null,null,null,null,"  Anerkennung Fahrerlaubnisbehörde (FeV)"]
[]
[null,null,"Name:",null,null,null,null,null,null,null,null,null,null,null,null,null,null,null,null,null,null,null,null,null,null,null,null,null,null,null,null,null,null,null,null,null,null,null,null,null,null,null,null,null,null,null,null,null,null,null,null,null,null,null,null,null,null,null,null,null,"PLZ:",null,null,null,null,null,null,null,null,null,null,null,null,null,"Ort:",null,null,null,null,null,null,null,null,null,null,null,null,null,null,null,null,null,null,null,null,null,null,null,null,null,null,null,null,null,null,null,null,null,null,null,null,null,null,null,null,null,null,null,{"$f":"IF(DO7<>\"\",\"durch Behörde:\",\"\")","v":""}]
[null,null,"Straße:",null,null,null,null,null,null,null,null,null,null,null,null,null,null,null,null,null,null,null,null,null,null,null,null,null,null,null,null,null,null,null,null,null,null,null,null,null,null,null,null,null,null,null,null,null,null,null,null,null,null,null,null,null,null,null,null,null,"Straße:",null,null,null,null,null,null,null,null,null,null,null,null,null,null,null,null,null,null,null,null,null,null,null,null,null,null,null,null,null,null,null,null,null,null,null,null,null,null,null,null,null,null,null,null,null,null,null,null,null,null,null,null,null,null,null,null,null,{"$f":"IF(DO7<>\"\",\"Aktenzeichen:\",\"\")","v":""}]
[null,null,"PLZ/Ort:",null,null,null,null,null,null,null,null,null,null,null,null,null,null,null,null,null,null,null,null,null,null,null,null,null,null,null,null,null,null,null,null,null,null,null,null,null,null,null,null,null,null,null,null,null,null,null,null,null,null,null,null,null,null,null,null,null,"Weitere Angaben zum Lehrgang",null,null,null,null,null,null,null,null,null,null,null,null,null,null,null,null,null,null,null,null,null,null,null,null,null,null,null,null,null,null,null,null,null,null,null,null,null,null,null,null,null,null,null,null,null,null,null,null,null,null,null,null,null,null,null,null,null,{"$f":"IF(DO7<>\"\",\"Anerkannt am:\",\"\")","v":""}]
[null,null,null,null,null,null,null,null,null,null,null,null,null,null,null,null,null,null,null,null,null,null,null,null,null,null,null,null,null,null,null,null,null,null,null,null,null,null,null,null,null,null,null,null,null,null,null,null,null,null,null,null,null,null,null,null,null,null,null,null,null,null,null,null,null,null,null,null,null,null,null,null,null,null,null,null,null,null,null,null,null,null,null,null,null,null,null,null,null,null,null,null,null,null,null,null,null,null,null,null,null,null,null,null,null,null,null,null,null,null,null,null,null,null,null,null,null,null,null,null,null,null,null,null,null,null,null,null,null,null,null,null,null,null,null,null,null,null,null,null,null,null,null,null,null,null,null,null,null,null,null,null,null,null,null,null,null,null,null,null,null,null,null,null,null,null,null,null,null,null,null,"Lfd-Nr. der Bescheinigung"]
[null,null,"Gliederungsnummer:",null,null,null,null,null,null,null,null,null,null,null,null,null,null,null,null,null,null,null,null,null,null,null,null,null,null,null,null,null,null,null,null,null,null,null,null,null,null,null,null,null,null,null,null,null,null,null,null,null,null,null,null,null,null,null,null,null,"TNB Erste Hilfe ausgehändigt:",null,null,null,null,null,null,null,null,null,null,null,null,null,null,null,null,null,null,null,null,null,null,null,null,null,null,null,null,null,null,null,null,"  Ja",null,null,null,null,null,null,null,null,null,"  Nein",null,null,null,null,null,null,null,null,null,null,null,null,null,null,null,null,null,"  Ermächtigte Stelle gemäß DGUV Vorschrift 1",null,null,null,null,null,null,null,null,null,null,null,null,null,null,null,null,null,null,null,null,null,null,null,null,null,null,null,null,null,null,null,null,null,null,null,null,null,null,null,null,null,null,null,null,null,null,null,null,null,"Beginn mit der Nummer?"]
[]
[null,null,"Name des verantwortlichen Arztes (Titel Vorname Name)",null,null,null,null,null,null,null,null,null,null,null,null,null,null,null,null,null,null,null,null,null,null,null,null,null,null,null,null,null,null,null,null,null,null,null,null,null,null,null,null,null,null,null,null,null,null,null,null,null,null,null,null,null,null,null,null,null,"Lehrgang",null,null,null,null,null,null,null,null,null,null,null,null,null,null,null,"vom:",null,null,null,null,null,null,null,null,null,null,null,null,null,null,null,null,null,null,"bis:",null,null,null,null,null,null,null,null,null,null,null,null,null,null,null,null,null,null,null,null,null,null,{"$f":"IF(DO13<>\"\",\"Nummer der ermächtigten Stelle:\",\"\")","v":""},null,null,null,null,null,null,null,null,null,null,null,null,null,null,null,null,null,null,null,null,null,null,null,null,null,null,null,null,null,null,null,null,null,null,null,null,null,null,null,null,null,null,null,null,null,null,null,null,null,null,null,null,1,"bis",{"$f":"IF(NOT(ISBLANK(FP15)),MAX(Data!L3:L22),\"\")","v":0}]
[null,null,"Arzt/Ärztin:",null,null,null,null,null,null,null,null,null,null,null,null,null,null,null,null,null,null,null,null,null,null,null,null,null,null,null,null,null,null,null,null,null,null,null,null,null,null,null,null,null,null,null,null,null,null,null,null,null,null,null,null,null,null,null,null,null,"Lehrgangszeit:",null,null,null,null,null,null,null,null,null,null,null,null,null,null,null,"von:",null,null,null,null,null,null,null,null,null,null,null,null,"Uhr",null,null,null,null,null,"bis:",null,null,null,null,null,null,null,null,null,null,null,"Uhr",null,null,null,null,null,null,null,null,null,null,{"$f":"IF(DO13<>\"\",\"Lehrgangsnummer (QSEH):\",\"\")","v":""}]
[null,null,null,null,null,null,null,null,null,null,null,null,null,null,null,null,null,null,null,null,null,null,null,null,null,null,null,null,null,null,null,null,null,null,null,null,null,null,null,null,null,null,null,null,null,null,null,null,null,null,null,null,null,null,null,null,null,null,null,null,null,null,null,null,null,null,null,null,null,null,null,null,null,null,null,null,"(Uhrzeiten bei Lehrgängen an einem Tag)",null,null,null,null,null,null,null,null,null,null,null,null,null,null,null,null,null,null,null,null,null,null,null,null,null,null,null,null,null,null,null,null,null,null,null,null,null,null,null,null,null,"Die eingesetzten Lehrkräfte sind nach den Regelungen der Qualitätssicherungsstelle Erste Hilfe (QSEH) der DGUV zur Durchführung der Aus- oder Fortbildung befähigt."]
[null,null,"Lehrkräfte (Vorname Name)"]
[null,null,"Lehrkraft 1:",null,null,null,null,null,null,null,null,null,null,null,null,null,null,null,null,null,null,null,null,null,null,null,null,null,null,null,null,null,null,null,null,null,null,null,null,null,null,null,null,null,null,null,null,null,null,null,null,null,null,null,null,null,null,null,null,null,"Lehrgangs-Nr. (DLRG intern):",null,null,null,null,null,null,null,null,null,null,null,null,null,null,null,null,null,null,null,null,null,null,null,null,null,null,null,null,null,null,null,null,null,null,null,null,null,null,null,null,null,null,null,null,null,null,null,null,null,null,null,null,null,null,null,null,null,null,null,null,null,null,null,null,null,null,null,null,null,null,null,null,null,null,null,null,null,null,null,null,null,null,null,null,null,null,null,null,null,null,null,null,null,null,null,null,null,null,null,null,null,null,null,null,null,null,null,null,null,null," Hinweis:\n Bitte das Kreuz entweder bei \"Ermächtigte Stelle DGUV\"\n oder bei  \"Anerkennung Fahrerlaubnisbehörde\" setzen! Ist\n keines von beiden angekreuzt, ist es eine DLRG interne\n Bescheinigung."]
[null,null,"Reg.-Nr. 1:"]
[null,null,null,null,null,null,null,null,null,null,null,null,null,null,null,null,null,null,null,null,null,null,null,null,null,null,null,null,null,null,null,null,null,null,null,null,null,null,null,null,null,null,null,null,null,null,null,null,null,null,null,null,null,null,null,null,null,null,null,null,"Verwendete Gesichtsteile für die HLW",null,null,null,null,null,null,null,null,null,null,null,null,null,null,null,null,null,null,null,null,null,null,null,null,null,null,null,null,null,null,null,null,null,null,null,null,null,null,null,null,null,null,null,null,null,null,null,null,null,null,null,null,null,null,null,null,null,"Aufschlüsselung der Lehrgangsteilnehmer"]
[null,null,"Lehrkraft 2:",null,null,null,null,null,null,null,null,null,null,null,null,null,null,null,null,null,null,null,null,null,null,null,null,null,null,null,null,null,null,null,null,null,null,null,null,null,null,null,null,null,null,null,null,null,null,null,null,null,null,null,null,null,null,null,null,null,null,null,null,null,null,null,null,null,null,null,null,null,null,null,null,null,null,null,null,null,null,null,null,null,null,null,null,null,null,null,null,null,null,null,null,null,null,null,null,null,null,null,null,null,null,null,null,null,null,null,null,null,null,null,null,null,null,null,"Anzahl Lehrgangsteilnehmer:",null,null,null,null,null,null,null,null,null,null,null,null,null,null,null,null,null,null,null,null,null,null,null,null,null,null,null,{"$f":"IF(Data!A47<>0,Data!A47,\"\")","v":""},null,null,null,null,"+",null,null,{"$f":"IF(Data!B47<>0,Data!B47,\"\")","v":""},null,null,null,null,"=",null,null,{"$f":"IF(Data!A48<>0,Data!A48,\"\")","v":""}]
[null,null,"Assistent:",null,null,null,null,null,null,null,null,null,null,null,null,null,null,null,null,null,null,null,null,null,null,null,null,null,null,null,null,null,null,null,null,null,null,null,null,null,null,null,null,null,null,null,null,null,null,null,null,null,null,null,null,null,null,null,null,null,"Charge | Chargen-Nummern",null,null,null,null,null,null,null,null,null,null,null,null,null,null,null,null,null,null,null,null,null,null,null,null,null,null,null,null,null,null,null,null,null,null,null,null,null,null,null,null,null,null,null,null,null,null,null,null,null,null,null,null,null,null,null,null,null,null,null,null,null,null,null,null,null,null,null,null,null,null,null,null,null,null,null,null,null,null,null,null,null,null,null,null,null,"Pv",null,null,null,null,null,null,null,"BG",null,null,null,null,null,null,null,"Gesamt"]
[null,null,"Die Ausbildung bzw. Fortbildung wurde entsprechend den gültigen Vorgaben – genehmigte Leitfäden/Rahmenpläne, Gemeinsame Grundsätze der Bundesarbeitsgemeinschaft Erste Hilfe (BAGEH) und nach der Deutschen Gesetzlichen Unfallversicherung (DGUV) Grundsatz 304-001 – ordnungsgemäß durchgeführt. Spezifische rechtliche Vorgaben wurden beachtet.\n\nDie nachfolgend aufgeführten Personen haben an der Ausbildung bzw. Fortbildung erfolgreich teilgenommen, diese abgeschlossen und eine Teilnehmerbroschüre sowie die Teilnahmebescheinigung erhalten."]
[]
[]
[]
[]
[]
[]
[null,null,"Für die Richtigkeit der Angaben",null,null,null,null,null,null,null,null,null,null,null,null,null,null,null,null,null,null,null,null,null,null,null,null,null,null,null,null,null,null,null,null,null,null,null,null,null,null,null,null,null,null,null,null,null,null,null,null,null,null,null,null,null,null,null,null,null,"Lehrgangsleitung"]
[]
[null,null,"Ort, Datum:",null,null,null,null,null,null,null,null,null,null,null,null,null,null,null,null,null,null,null,null,null,null,null,null,null,null,null,null,null,null,null,null,null,null,null,null,null,null,null,null,null,null,null,null,null,null,null,null,null,null,null,null,null,null,null,null,null,"Ort, Datum:"]
[]
[]
[]
[null,null,"(Unterschrift der Geschäftsstelle)",null,null,null,null,null,null,null,null,null,null,null,null,null,null,null,null,null,null,null,null,null,null,null,null,null,null,null,null,null,null,null,null,null,null,null,null,null,null,null,null,null,null,null,null,null,null,null,null,null,null,null,null,null,null,null,null,null,"(Unterschrift der Lehrgangsleitung)",null,null,null,null,null,null,null,null,null,null,null,null,null,null,null,null,null,null,null,null,null,null,null,null,null,null,null,null,null,null,null,null,null,null,null,null,null,null,null,null,null,null,null,null,null,null,null,null,null,null,null,null,null,null,null,null,null,"(Stempel)"]
[]
[null,null,"Teilnehmerliste",null,null,null,null,null,null,null,null,null,null,null,null,null,null,null,null,null,null,null,null,null,null,null,null,null,null,{"$f":"IF($AD$3<>\"\",$AD$3,\"\")","v":""},null,null,null,"  Erste Hilfe-Ausbildung ",null,null,null,null,null,null,null,null,null,null,null,null,null,null,null,null,null,null,null,null,null,null,null,{"$f":"IF($BF$3<>\"\",$BF$3,\"\")","v":""},null,null,null,"  Erste Hilfe-Fortbildung ",null,null,null,null,null,null,null,null,null,null,null,null,null,null,null,null,null,null,null,null,null,null,null,{"$f":"IF($CH$3<>\"\",$CH$3,\"\")","v":""},null,null,null,"  Erste Hilfe in Betreuungseinrichtungen"]
[]
[]
[null,null,"Gliederungs-Nr.:",null,null,null,null,null,null,null,null,null,null,null,null,null,null,null,{"$f":"IF(AA13<>\"\",AA13,\"\")","v":""},null,null,null,null,null,null,null,null,null,null,null,null,null,"Lehrgangsdatum:",null,null,null,null,null,null,null,null,null,null,null,null,null,null,null,null,{"$f":"IF(CD15<>\"\",TEXT(CD15,\"TT.MM.\"),\"\")&\" – \"&IF(CV15<>\"\",TEXT(CV15,\"TT.MM.JJJJ\"),\"\")","v":" – "},null,null,null,null,null,null,null,null,null,null,null,null,null,null,null,null,null,null,null,null,null,null,null,null,"Lehrgangs-Nr.:",null,null,null,null,null,null,null,null,null,null,null,null,null,null,{"$f":"IF(CI19<>\"\",CI19,\"\")","v":""},null,null,null,null,null,null,null,null,null,null,null,null,null,null,null,null,null,null,null,null,null,"QSEH-Nr.:",null,null,null,null,null,null,null,null,null,null,{"$f":"IF(ET16<>\"\",ET16,\"\")","v":""},null,null,null,null,null,null,null,null,null,null,null,null,null,null,null,null,null,null,null,"Ermächtigungs-Nr.:",null,null,null,null,null,null,null,null,null,null,null,null,null,null,null,null,null,null,{"$f":"IF(ET15<>\"\",ET15,\"\")","v":""}]
[null,null,"Mit der Unterschrift erklärt der Teilnehmer, dass er damit einverstanden ist, dass seine persönlichen Daten ausschließlich zu Abrechnungs- und Kontrollzwecken gespeichert und verarbeitet werden."]
[]
[null,null,"TN\nNr.",null,null,null,"TN\n\nBG\nPv",null,null,null,"  a) Name\n  b) Vorname",null,null,null,null,null,null,null,null,null,null,null,null,null,null,null,null,null,null,null,null,null,null,null,null,null,null,null,null,null,null,null,null,null,null,null,null,null,"Geboren\nam",null,null,null,null,null,null,null,null,null,null,null,"  Teilnehmer über UVT\n  a) Name des Arbeitgeber | b) PLZ, Firmenort\n\n  Privatteilnehmer\n  a) Straße, Hausnummer | b) PLZ, Wohnort",null,null,null,null,null,null,null,null,null,null,null,null,null,null,null,null,null,null,null,null,null,null,null,null,null,null,null,null,null,null,null,null,null,null,null,null,null,null,null,"  Teilnehmer über UVT\n  a) Unfallversicherungsträger\n  b) Mitgliedsnummer des Unternehmens",null,null,null,null,null,null,null,null,null,null,null,null,null,null,null,null,null,null,null,null,null,null,null,null,null,null,null,null,null,null,null,null,null,null,null,null,null,null,"  a) Registrier-Nummer\n\n  b) Unterschrift des Teilnehmers"]
[]
[]
[]
[null,null,1,null,null,null,{"$f":"IF(CW49<>\"\",\"X\",\"\")","v":""},null,null,null,null,null,null,null,null,null,null,null,null,null,null,null,null,null,null,null,null,null,null,null,null,null,null,null,null,null,null,null,null,null,null,null,null,null,null,null,null,null,null,null,null,null,null,null,null,null,null,null,null,null,null,null,null,null,null,null,null,null,null,null,null,null,null,null,null,null,null,null,null,null,null,null,null,null,null,null,null,null,null,null,null,null,null,null,null,null,null,null,null,null,null,null,null,null,null,null,null,null,null,null,null,null,null,null,null,null,null,null,null,null,null,null,null,null,null,null,null,null,null,null,null,null,null,null,null,null,null,null,null,{"$f":"IF(K49<>\"\",Data!N3,\"\")","v":""}]
[null,null,null,null,null,null,{"$f":"IF(K49<>\"\",IF(G49<>\"\",\"\",\"X\"),\"\")","v":""}]
[null,null,2,null,null,null,{"$f":"IF(CW51<>\"\",\"X\",\"\")","v":""},null,null,null,null,null,null,null,null,null,null,null,null,null,null,null,null,null,null,null,null,null,null,null,null,null,null,null,null,null,null,null,null,null,null,null,null,null,null,null,null,null,null,null,null,null,null,null,null,null,null,null,null,null,null,null,null,null,null,null,null,null,null,null,null,null,null,null,null,null,null,null,null,null,null,null,null,null,null,null,null,null,null,null,null,null,null,null,null,null,null,null,null,null,null,null,null,null,null,null,null,null,null,null,null,null,null,null,null,null,null,null,null,null,null,null,null,null,null,null,null,null,null,null,null,null,null,null,null,null,null,null,null,{"$f":"IF(K51<>\"\",Data!N4,\"\")","v":""}]
[null,null,null,null,null,null,{"$f":"IF(K51<>\"\",IF(G51<>\"\",\"\",\"X\"),\"\")","v":""}]
[null,null,3,null,null,null,{"$f":"IF(CW53<>\"\",\"X\",\"\")","v":""},null,null,null,null,null,null,null,null,null,null,null,null,null,null,null,null,null,null,null,null,null,null,null,null,null,null,null,null,null,null,null,null,null,null,null,null,null,null,null,null,null,null,null,null,null,null,null,null,null,null,null,null,null,null,null,null,null,null,null,null,null,null,null,null,null,null,null,null,null,null,null,null,null,null,null,null,null,null,null,null,null,null,null,null,null,null,null,null,null,null,null,null,null,null,null,null,null,null,null,null,null,null,null,null,null,null,null,null,null,null,null,null,null,null,null,null,null,null,null,null,null,null,null,null,null,null,null,null,null,null,null,null,{"$f":"IF(K53<>\"\",Data!N5,\"\")","v":""}]
[null,null,null,null,null,null,{"$f":"IF(K53<>\"\",IF(G53<>\"\",\"\",\"X\"),\"\")","v":""}]
[null,null,4,null,null,null,{"$f":"IF(CW55<>\"\",\"X\",\"\")","v":""},null,null,null,null,null,null,null,null,null,null,null,null,null,null,null,null,null,null,null,null,null,null,null,null,null,null,null,null,null,null,null,null,null,null,null,null,null,null,null,null,null,null,null,null,null,null,null,null,null,null,null,null,null,null,null,null,null,null,null,null,null,null,null,null,null,null,null,null,null,null,null,null,null,null,null,null,null,null,null,null,null,null,null,null,null,null,null,null,null,null,null,null,null,null,null,null,null,null,null,null,null,null,null,null,null,null,null,null,null,null,null,null,null,null,null,null,null,null,null,null,null,null,null,null,null,null,null,null,null,null,null,null,{"$f":"IF(K55<>\"\",Data!N6,\"\")","v":""}]
[null,null,null,null,null,null,{"$f":"IF(K55<>\"\",IF(G55<>\"\",\"\",\"X\"),\"\")","v":""}]
[null,null,5,null,null,null,{"$f":"IF(CW57<>\"\",\"X\",\"\")","v":""},null,null,null,null,null,null,null,null,null,null,null,null,null,null,null,null,null,null,null,null,null,null,null,null,null,null,null,null,null,null,null,null,null,null,null,null,null,null,null,null,null,null,null,null,null,null,null,null,null,null,null,null,null,null,null,null,null,null,null,null,null,null,null,null,null,null,null,null,null,null,null,null,null,null,null,null,null,null,null,null,null,null,null,null,null,null,null,null,null,null,null,null,null,null,null,null,null,null,null,null,null,null,null,null,null,null,null,null,null,null,null,null,null,null,null,null,null,null,null,null,null,null,null,null,null,null,null,null,null,null,null,null,{"$f":"IF(K57<>\"\",Data!N7,\"\")","v":""}]
[null,null,null,null,null,null,{"$f":"IF(K57<>\"\",IF(G57<>\"\",\"\",\"X\"),\"\")","v":""}]
[null,null,6,null,null,null,{"$f":"IF(CW59<>\"\",\"X\",\"\")","v":""},null,null,null,null,null,null,null,null,null,null,null,null,null,null,null,null,null,null,null,null,null,null,null,null,null,null,null,null,null,null,null,null,null,null,null,null,null,null,null,null,null,null,null,null,null,null,null,null,null,null,null,null,null,null,null,null,null,null,null,null,null,null,null,null,null,null,null,null,null,null,null,null,null,null,null,null,null,null,null,null,null,null,null,null,null,null,null,null,null,null,null,null,null,null,null,null,null,null,null,null,null,null,null,null,null,null,null,null,null,null,null,null,null,null,null,null,null,null,null,null,null,null,null,null,null,null,null,null,null,null,null,null,{"$f":"IF(K59<>\"\",Data!N8,\"\")","v":""}]
[null,null,null,null,null,null,{"$f":"IF(K59<>\"\",IF(G59<>\"\",\"\",\"X\"),\"\")","v":""}]
[null,null,7,null,null,null,{"$f":"IF(CW61<>\"\",\"X\",\"\")","v":""},null,null,null,null,null,null,null,null,null,null,null,null,null,null,null,null,null,null,null,null,null,null,null,null,null,null,null,null,null,null,null,null,null,null,null,null,null,null,null,null,null,null,null,null,null,null,null,null,null,null,null,null,null,null,null,null,null,null,null,null,null,null,null,null,null,null,null,null,null,null,null,null,null,null,null,null,null,null,null,null,null,null,null,null,null,null,null,null,null,null,null,null,null,null,null,null,null,null,null,null,null,null,null,null,null,null,null,null,null,null,null,null,null,null,null,null,null,null,null,null,null,null,null,null,null,null,null,null,null,null,null,null,{"$f":"IF(K61<>\"\",Data!N9,\"\")","v":""}]
[null,null,null,null,null,null,{"$f":"IF(K61<>\"\",IF(G61<>\"\",\"\",\"X\"),\"\")","v":""}]
[null,null,8,null,null,null,{"$f":"IF(CW63<>\"\",\"X\",\"\")","v":""},null,null,null,null,null,null,null,null,null,null,null,null,null,null,null,null,null,null,null,null,null,null,null,null,null,null,null,null,null,null,null,null,null,null,null,null,null,null,null,null,null,null,null,null,null,null,null,null,null,null,null,null,null,null,null,null,null,null,null,null,null,null,null,null,null,null,null,null,null,null,null,null,null,null,null,null,null,null,null,null,null,null,null,null,null,null,null,null,null,null,null,null,null,null,null,null,null,null,null,null,null,null,null,null,null,null,null,null,null,null,null,null,null,null,null,null,null,null,null,null,null,null,null,null,null,null,null,null,null,null,null,null,{"$f":"IF(K63<>\"\",Data!N10,\"\")","v":""}]
[null,null,null,null,null,null,{"$f":"IF(K63<>\"\",IF(G63<>\"\",\"\",\"X\"),\"\")","v":""}]
[null,null,9,null,null,null,{"$f":"IF(CW65<>\"\",\"X\",\"\")","v":""},null,null,null,null,null,null,null,null,null,null,null,null,null,null,null,null,null,null,null,null,null,null,null,null,null,null,null,null,null,null,null,null,null,null,null,null,null,null,null,null,null,null,null,null,null,null,null,null,null,null,null,null,null,null,null,null,null,null,null,null,null,null,null,null,null,null,null,null,null,null,null,null,null,null,null,null,null,null,null,null,null,null,null,null,null,null,null,null,null,null,null,null,null,null,null,null,null,null,null,null,null,null,null,null,null,null,null,null,null,null,null,null,null,null,null,null,null,null,null,null,null,null,null,null,null,null,null,null,null,null,null,null,{"$f":"IF(K65<>\"\",Data!N11,\"\")","v":""}]
[null,null,null,null,null,null,{"$f":"IF(K65<>\"\",IF(G65<>\"\",\"\",\"X\"),\"\")","v":""}]
[null,null,10,null,null,null,{"$f":"IF(CW67<>\"\",\"X\",\"\")","v":""},null,null,null,null,null,null,null,null,null,null,null,null,null,null,null,null,null,null,null,null,null,null,null,null,null,null,null,null,null,null,null,null,null,null,null,null,null,null,null,null,null,null,null,null,null,null,null,null,null,null,null,null,null,null,null,null,null,null,null,null,null,null,null,null,null,null,null,null,null,null,null,null,null,null,null,null,null,null,null,null,null,null,null,null,null,null,null,null,null,null,null,null,null,null,null,null,null,null,null,null,null,null,null,null,null,null,null,null,null,null,null,null,null,null,null,null,null,null,null,null,null,null,null,null,null,null,null,null,null,null,null,null,{"$f":"IF(K67<>\"\",Data!N12,\"\")","v":""}]
[null,null,null,null,null,null,{"$f":"IF(K67<>\"\",IF(G67<>\"\",\"\",\"X\"),\"\")","v":""}]
[]
[null,null,"Teilnehmerliste",null,null,null,null,null,null,null,null,null,null,null,null,null,null,null,null,null,null,null,null,null,null,null,null,null,null,{"$f":"IF($AD$3<>\"\",$AD$3,\"\")","v":""},null,null,null,"  Erste Hilfe-Ausbildung ",null,null,null,null,null,null,null,null,null,null,null,null,null,null,null,null,null,null,null,null,null,null,null,{"$f":"IF($BF$3<>\"\",$BF$3,\"\")","v":""},null,null,null,"  Erste Hilfe-Fortbildung ",null,null,null,null,null,null,null,null,null,null,null,null,null,null,null,null,null,null,null,null,null,null,null,{"$f":"IF($CH$3<>\"\",$CH$3,\"\")","v":""},null,null,null,"  Erste Hilfe in Betreuungseinrichtungen"]
[]
[]
[null,null,"Gliederungs-Nr.:",null,null,null,null,null,null,null,null,null,null,null,null,null,null,null,{"$f":"IF(AA13<>\"\",AA13,\"\")","v":""},null,null,null,null,null,null,null,null,null,null,null,null,null,"Lehrgangsdatum:",null,null,null,null,null,null,null,null,null,null,null,null,null,null,null,null,{"$f":"IF(CD15<>\"\",TEXT(CD15,\"TT.MM.\"),\"\")&\" – \"&IF(CV15<>\"\",TEXT(CV15,\"TT.MM.JJJJ\"),\"\")","v":" – "},null,null,null,null,null,null,null,null,null,null,null,null,null,null,null,null,null,null,null,null,null,null,null,null,"Lehrgangs-Nr.:",null,null,null,null,null,null,null,null,null,null,null,null,null,null,{"$f":"IF(CI19<>\"\",CI19,\"\")","v":""},null,null,null,null,null,null,null,null,null,null,null,null,null,null,null,null,null,null,null,null,null,"QSEH-Nr.:",null,null,null,null,null,null,null,null,null,null,{"$f":"IF(ET16<>\"\",ET16,\"\")","v":""},null,null,null,null,null,null,null,null,null,null,null,null,null,null,null,null,null,null,null,"Ermächtigungs-Nr.:",null,null,null,null,null,null,null,null,null,null,null,null,null,null,null,null,null,null,{"$f":"IF(ET15<>\"\",ET15,\"\")","v":""}]
[null,null,"Mit der Unterschrift erklärt der Teilnehmer, dass er damit einverstanden ist, dass seine persönlichen Daten ausschließlich zu Abrechnungs- und Kontrollzwecken gespeichert und verarbeitet werden."]
[]
[null,null,"TN\nNr.",null,null,null,"TN\n\nBG\nPv",null,null,null,"  a) Name\n\n  b) Vorname",null,null,null,null,null,null,null,null,null,null,null,null,null,null,null,null,null,null,null,null,null,null,null,null,null,null,null,null,null,null,null,null,null,null,null,null,null,"Geboren\nam",null,null,null,null,null,null,null,null,null,null,null,"  Teilnehmer über UVT\n  a) Name des Arbeitgeber | b) PLZ, Firmenort\n\n  Privatteilnehmer\n  a) Straße, Hausnummer | b) PLZ, Wohnort",null,null,null,null,null,null,null,null,null,null,null,null,null,null,null,null,null,null,null,null,null,null,null,null,null,null,null,null,null,null,null,null,null,null,null,null,null,null,null,"  Teilnehmer über UVT\n  a) Unfallversicherungsträger\n  b) Mitgliedsnummer des Unternehmens",null,null,null,null,null,null,null,null,null,null,null,null,null,null,null,null,null,null,null,null,null,null,null,null,null,null,null,null,null,null,null,null,null,null,null,null,null,null,"  a) Registrier-Nummer\n\n  b) Unterschrift des Teilnehmers"]
[]
[]
[]
[null,null,11,null,null,null,{"$f":"IF(CW80<>\"\",\"X\",\"\")","v":""},null,null,null,null,null,null,null,null,null,null,null,null,null,null,null,null,null,null,null,null,null,null,null,null,null,null,null,null,null,null,null,null,null,null,null,null,null,null,null,null,null,null,null,null,null,null,null,null,null,null,null,null,null,null,null,null,null,null,null,null,null,null,null,null,null,null,null,null,null,null,null,null,null,null,null,null,null,null,null,null,null,null,null,null,null,null,null,null,null,null,null,null,null,null,null,null,null,null,null,null,null,null,null,null,null,null,null,null,null,null,null,null,null,null,null,null,null,null,null,null,null,null,null,null,null,null,null,null,null,null,null,null,{"$f":"IF(K80<>\"\",Data!N13,\"\")","v":""}]
[null,null,null,null,null,null,{"$f":"IF(K80<>\"\",IF(G80<>\"\",\"\",\"X\"),\"\")","v":""}]
[null,null,12,null,null,null,{"$f":"IF(CW82<>\"\",\"X\",\"\")","v":""},null,null,null,null,null,null,null,null,null,null,null,null,null,null,null,null,null,null,null,null,null,null,null,null,null,null,null,null,null,null,null,null,null,null,null,null,null,null,null,null,null,null,null,null,null,null,null,null,null,null,null,null,null,null,null,null,null,null,null,null,null,null,null,null,null,null,null,null,null,null,null,null,null,null,null,null,null,null,null,null,null,null,null,null,null,null,null,null,null,null,null,null,null,null,null,null,null,null,null,null,null,null,null,null,null,null,null,null,null,null,null,null,null,null,null,null,null,null,null,null,null,null,null,null,null,null,null,null,null,null,null,null,{"$f":"IF(K82<>\"\",Data!N14,\"\")","v":""}]
[null,null,null,null,null,null,{"$f":"IF(K82<>\"\",IF(G82<>\"\",\"\",\"X\"),\"\")","v":""}]
[null,null,13,null,null,null,{"$f":"IF(CW84<>\"\",\"X\",\"\")","v":""},null,null,null,null,null,null,null,null,null,null,null,null,null,null,null,null,null,null,null,null,null,null,null,null,null,null,null,null,null,null,null,null,null,null,null,null,null,null,null,null,null,null,null,null,null,null,null,null,null,null,null,null,null,null,null,null,null,null,null,null,null,null,null,null,null,null,null,null,null,null,null,null,null,null,null,null,null,null,null,null,null,null,null,null,null,null,null,null,null,null,null,null,null,null,null,null,null,null,null,null,null,null,null,null,null,null,null,null,null,null,null,null,null,null,null,null,null,null,null,null,null,null,null,null,null,null,null,null,null,null,null,null,{"$f":"IF(K84<>\"\",Data!N15,\"\")","v":""}]
[null,null,null,null,null,null,{"$f":"IF(K84<>\"\",IF(G84<>\"\",\"\",\"X\"),\"\")","v":""}]
[null,null,14,null,null,null,{"$f":"IF(CW86<>\"\",\"X\",\"\")","v":""},null,null,null,null,null,null,null,null,null,null,null,null,null,null,null,null,null,null,null,null,null,null,null,null,null,null,null,null,null,null,null,null,null,null,null,null,null,null,null,null,null,null,null,null,null,null,null,null,null,null,null,null,null,null,null,null,null,null,null,null,null,null,null,null,null,null,null,null,null,null,null,null,null,null,null,null,null,null,null,null,null,null,null,null,null,null,null,null,null,null,null,null,null,null,null,null,null,null,null,null,null,null,null,null,null,null,null,null,null,null,null,null,null,null,null,null,null,null,null,null,null,null,null,null,null,null,null,null,null,null,null,null,{"$f":"IF(K86<>\"\",Data!N16,\"\")","v":""}]
[null,null,null,null,null,null,{"$f":"IF(K86<>\"\",IF(G86<>\"\",\"\",\"X\"),\"\")","v":""}]
[null,null,15,null,null,null,{"$f":"IF(CW88<>\"\",\"X\",\"\")","v":""},null,null,null,null,null,null,null,null,null,null,null,null,null,null,null,null,null,null,null,null,null,null,null,null,null,null,null,null,null,null,null,null,null,null,null,null,null,null,null,null,null,null,null,null,null,null,null,null,null,null,null,null,null,null,null,null,null,null,null,null,null,null,null,null,null,null,null,null,null,null,null,null,null,null,null,null,null,null,null,null,null,null,null,null,null,null,null,null,null,null,null,null,null,null,null,null,null,null,null,null,null,null,null,null,null,null,null,null,null,null,null,null,null,null,null,null,null,null,null,null,null,null,null,null,null,null,null,null,null,null,null,null,{"$f":"IF(K88<>\"\",Data!N17,\"\")","v":""}]
[null,null,null,null,null,null,{"$f":"IF(K88<>\"\",IF(G88<>\"\",\"\",\"X\"),\"\")","v":""}]
[null,null,16,null,null,null,{"$f":"IF(CW90<>\"\",\"X\",\"\")","v":""},null,null,null,null,null,null,null,null,null,null,null,null,null,null,null,null,null,null,null,null,null,null,null,null,null,null,null,null,null,null,null,null,null,null,null,null,null,null,null,null,null,null,null,null,null,null,null,null,null,null,null,null,null,null,null,null,null,null,null,null,null,null,null,null,null,null,null,null,null,null,null,null,null,null,null,null,null,null,null,null,null,null,null,null,null,null,null,null,null,null,null,null,null,null,null,null,null,null,null,null,null,null,null,null,null,null,null,null,null,null,null,null,null,null,null,null,null,null,null,null,null,null,null,null,null,null,null,null,null,null,null,null,{"$f":"IF(K90<>\"\",Data!N18,\"\")","v":""}]
[null,null,null,null,null,null,{"$f":"IF(K90<>\"\",IF(G90<>\"\",\"\",\"X\"),\"\")","v":""}]
[null,null,17,null,null,null,{"$f":"IF(CW92<>\"\",\"X\",\"\")","v":""},null,null,null,null,null,null,null,null,null,null,null,null,null,null,null,null,null,null,null,null,null,null,null,null,null,null,null,null,null,null,null,null,null,null,null,null,null,null,null,null,null,null,null,null,null,null,null,null,null,null,null,null,null,null,null,null,null,null,null,null,null,null,null,null,null,null,null,null,null,null,null,null,null,null,null,null,null,null,null,null,null,null,null,null,null,null,null,null,null,null,null,null,null,null,null,null,null,null,null,null,null,null,null,null,null,null,null,null,null,null,null,null,null,null,null,null,null,null,null,null,null,null,null,null,null,null,null,null,null,null,null,null,{"$f":"IF(K92<>\"\",Data!N19,\"\")","v":""}]
[null,null,null,null,null,null,{"$f":"IF(K92<>\"\",IF(G92<>\"\",\"\",\"X\"),\"\")","v":""}]
[null,null,18,null,null,null,{"$f":"IF(CW94<>\"\",\"X\",\"\")","v":""},null,null,null,null,null,null,null,null,null,null,null,null,null,null,null,null,null,null,null,null,null,null,null,null,null,null,null,null,null,null,null,null,null,null,null,null,null,null,null,null,null,null,null,null,null,null,null,null,null,null,null,null,null,null,null,null,null,null,null,null,null,null,null,null,null,null,null,null,null,null,null,null,null,null,null,null,null,null,null,null,null,null,null,null,null,null,null,null,null,null,null,null,null,null,null,null,null,null,null,null,null,null,null,null,null,null,null,null,null,null,null,null,null,null,null,null,null,null,null,null,null,null,null,null,null,null,null,null,null,null,null,null,{"$f":"IF(K94<>\"\",Data!N20,\"\")","v":""}]
[null,null,null,null,null,null,{"$f":"IF(K94<>\"\",IF(G94<>\"\",\"\",\"X\"),\"\")","v":""}]
[null,null,19,null,null,null,{"$f":"IF(CW96<>\"\",\"X\",\"\")","v":""},null,null,null,null,null,null,null,null,null,null,null,null,null,null,null,null,null,null,null,null,null,null,null,null,null,null,null,null,null,null,null,null,null,null,null,null,null,null,null,null,null,null,null,null,null,null,null,null,null,null,null,null,null,null,null,null,null,null,null,null,null,null,null,null,null,null,null,null,null,null,null,null,null,null,null,null,null,null,null,null,null,null,null,null,null,null,null,null,null,null,null,null,null,null,null,null,null,null,null,null,null,null,null,null,null,null,null,null,null,null,null,null,null,null,null,null,null,null,null,null,null,null,null,null,null,null,null,null,null,null,null,null,{"$f":"IF(K96<>\"\",Data!N21,\"\")","v":""}]
[null,null,null,null,null,null,{"$f":"IF(K96<>\"\",IF(G96<>\"\",\"\",\"X\"),\"\")","v":""}]
[null,null,20,null,null,null,{"$f":"IF(CW98<>\"\",\"X\",\"\")","v":""},null,null,null,null,null,null,null,null,null,null,null,null,null,null,null,null,null,null,null,null,null,null,null,null,null,null,null,null,null,null,null,null,null,null,null,null,null,null,null,null,null,null,null,null,null,null,null,null,null,null,null,null,null,null,null,null,null,null,null,null,null,null,null,null,null,null,null,null,null,null,null,null,null,null,null,null,null,null,null,null,null,null,null,null,null,null,null,null,null,null,null,null,null,null,null,null,null,null,null,null,null,null,null,null,null,null,null,null,null,null,null,null,null,null,null,null,null,null,null,null,null,null,null,null,null,null,null,null,null,null,null,null,{"$f":"IF(K98<>\"\",Data!N22,\"\")","v":""}]
[null,null,null,null,null,null,{"$f":"IF(K98<>\"\",IF(G98<>\"\",\"\",\"X\"),\"\")","v":""}]

{"sheet":"TNB-DLRG+BG","index":1,"n_rows":61,"n_cols":113,"rows_kept":61,"cut":false,"hidden":false,"merged":[[60,2,61,109],[2,2,2,87],[2,88,7,109],[3,2,3,87],[4,2,4,12],[4,13,4,42],[4,43,4,87],[5,2,5,87],[6,2,6,87],[7,2,7,87],[18,2,20,109],[8,94,8,109],[11,2,11,109],[12,2,12,109],[13,2,15,109],[16,2,16,109],[8,112,9,112],[9,2,9,109],[10,2,10,11],[10,12,10,27],[10,28,10,32],[10,33,10,48],[10,49,10,52],[10,53,10,109],[8,2,8,9],[8,10,8,39],[8,40,8,42],[8,54,8,80],[8,81,8,83],[8,84,8,93],[17,2,17,109],[27,2,27,109],[21,2,21,109],[22,2,22,36],[22,37,26,37],[22,38,22,73],[22,74,26,74],[22,75,25,109],[23,2,23,36],[23,38,23,73],[24,2,24,36],[24,38,24,73],[25,2,25,36],[25,38,25,73],[26,2,26,36],[26,38,26,73],[26,75,26,109],[36,2,36,87],[37,2,37,87],[33,88,38,109],[28,2,28,109],[32,2,32,109],[33,2,33,87],[29,2,30,109],[34,2,34,87],[55,38,55,73],[56,2,56,36],[56,38,56,73],[57,2,57,36],[57,38,57,73],[43,2,43,109],[38,2,38,87],[55,2,55,36],[54,2,54,36],[48,2,48,109],[47,2,47,109],[42,2,42,109],[41,2,41,11],[40,2,40,109],[41,49,41,52],[41,53,41,109],[44,2,46,109],[39,2,39,9],[39,10,39,39],[39,40,39,42],[39,54,39,80],[39,81,39,83],[39,84,39,93],[41,12,41,27],[41,28,41,32],[41,33,41,48],[59,2,59,109],[31,2,31,109],[49,2,51,109],[52,2,52,109],[53,2,53,36],[53,37,57,37],[53,38,53,73],[53,74,57,74],[53,75,56,109],[57,75,57,109],[39,94,39,109],[35,2,35,12],[35,13,35,42],[35,43,35,87],[54,38,54,73],[58,2,58,109]]}
[{"$f":"IF(Data!D3<>\"\",1,0)","v":0}]
[{"$f":"IF(Data!D4<>\"\",2,0)","v":0}]
[{"$f":"IF(Data!D5<>\"\",3,0)","v":0},null,"Teilnahmebescheinigung",null,null,null,null,null,null,null,null,null,null,null,null,null,null,null,null,null,null,null,null,null,null,null,null,null,null,null,null,null,null,null,null,null,null,null,null,null,null,null,null,null,null,null,null,null,null,null,null,null,null,null,null,null,null,null,null,null,null,null,null,null,null,null,null,null,null,null,null,null,null,null,null,null,null,null,null,null,null,null,null,null,null,null,null,null,null,null,null,null,null,null,null,null,null,null,null,null,null,null,null,null,null,null,null,null,null,null,null,null,{"$f":"SUM(Data!P2:P5)","v":0}]
[{"$f":"IF(Data!D6<>\"\",4,0)","v":0}]
[{"$f":"IF(Data!D7<>\"\",5,0)","v":0},null,"Nummer:",null,null,null,null,null,null,null,null,null,null,{"$f":"IF(ISNA(IF(DI9<>\"\",VLOOKUP(DI9,Data!A3:N22,14,FALSE),\"\")),\"\",IF(DI9<>\"\",VLOOKUP(DI9,Data!A3:N22,14,FALSE),\"\"))","v":""}]
[{"$f":"IF(Data!D8<>\"\",6,0)","v":0},null,null,null,null,null,null,null,null,null,null,null,null,null,null,null,null,null,null,null,null,null,null,null,null,null,null,null,null,null,null,null,null,null,null,null,null,null,null,null,null,null,null,null,null,null,null,null,null,null,null,null,null,null,null,null,null,null,null,null,null,null,null,null,null,null,null,null,null,null,null,null,null,null,null,null,null,null,null,null,null,null,null,null,null,null,null,null,null,null,null,null,null,null,null,null,null,null,null,null,null,null,null,null,null,null,null,null,null,null,null,null,"Für das Drucken einzelner Bescheinigung:"]
[{"$f":"IF(Data!D9<>\"\",7,0)","v":0},null,null,null,null,null,null,null,null,null,null,null,null,null,null,null,null,null,null,null,null,null,null,null,null,null,null,null,null,null,null,null,null,null,null,null,null,null,null,null,null,null,null,null,null,null,null,null,null,null,null,null,null,null,null,null,null,null,null,null,null,null,null,null,null,null,null,null,null,null,null,null,null,null,null,null,null,null,null,null,null,null,null,null,null,null,null,null,null,null,null,null,null,null,null,null,null,null,null,null,null,null,null,null,null,null,null,null,null,null,null,null,"Die laufende Nummer aus der Teilnehmerliste (TNL) hier eintragen."]
[{"$f":"IF(Data!D10<>\"\",8,0)","v":0}]
[{"$f":"IF(Data!D11<>\"\",9,0)","v":0},null,"Name:",null,null,null,null,null,null,null,{"$f":"IF(ISNA(IF(DI9<>\"\",VLOOKUP(DI9,Data!B3:N22,3,FALSE),\"\")),\"\",IF(DI9<>\"\",VLOOKUP(DI9,Data!B3:N22,3,FALSE),\"\"))","v":""},null,null,null,null,null,null,null,null,null,null,null,null,null,null,null,null,null,null,null,null,null,null,null,null,null,null,null,null,null,null,null,null,"Vorname:",null,null,null,null,null,null,null,null,null,null,{"$f":"IF(ISNA(IF(DI9<>\"\",VLOOKUP(DI9,Data!B3:N22,4,FALSE),\"\")),\"\",IF(DI9<>\"\",VLOOKUP(DI9,Data!B3:N22,4,FALSE),\"\"))","v":""},null,null,null,null,null,null,null,null,null,null,null,null,null,null,null,null,null,null,null,null,null,null,null,null,null,null,null,null,null,"geb. am:",null,null,null,null,null,null,null,null,null,{"$f":"IF(ISNA(IF(DI9<>\"\",VLOOKUP(DI9,Data!B3:N22,5,FALSE),\"\")),\"\",IF(DI9<>\"\",VLOOKUP(DI9,Data!B3:N22,5,FALSE),\"\"))","v":""}]
[{"$f":"IF(Data!D12<>\"\",10,0)","v":0}]
[{"$f":"IF(Data!D13<>\"\",11,0)","v":0},null,"hat vom:",null,null,null,null,null,null,null,null,null,{"$f":"IF(TNL!CD15<>\"\",IF(DI9<>\"\",TNL!CD15,\"\"),\"\")","v":""},null,null,null,null,null,null,null,null,null,null,null,null,null,null,null,"bis:",null,null,null,null,{"$f":"IF(TNL!CV15<>\"\",IF(DI9<>\"\",TNL!CV15,\"\"),\"\")","v":""},null,null,null,null,null,null,null,null,null,null,null,null,null,null,null,"in:",null,null,null,{"$f":"IF(TNL!BO9<>\"\",IF(DI9<>\"\",CONCATENATE(TEXT(TNL!BO9,\"00000\")&\" \"&TNL!CC9),\"\"),\"\")","v":""}]
[{"$f":"IF(Data!D14<>\"\",12,0)","v":0}]
[{"$f":"IF(Data!D15<>\"\",13,0)","v":0},null,{"$f":"IF(DI3<>0,VLOOKUP(DI3,Data!P2:U5,6,FALSE),\"\")","v":""}]
[{"$f":"IF(Data!D16<>\"\",14,0)","v":0},null,{"$f":"IF(DI3<>0,VLOOKUP(DI3,Data!Q2:T5,2,FALSE),\"\")","v":""}]
[{"$f":"IF(Data!D17<>\"\",15,0)","v":0}]
[{"$f":"IF(Data!D18<>\"\",16,0)","v":0}]
[{"$f":"IF(Data!D19<>\"\",17,0)","v":0},null,"mit 9 Lerneinheiten* teilgenommen. (*Eine Lerneinheit gleich 45 Minuten.)"]
[{"$f":"IF(Data!D20<>\"\",18,0)","v":0}]
[{"$f":"IF(Data!D21<>\"\",19,0)","v":0},null,{"$f":"IF(DI3<>0,VLOOKUP(DI3,Data!P2:T5,5,FALSE),\"\")","v":""}]
[{"$f":"IF(Data!D22<>\"\",20,0)","v":0}]
[]
[]
[null,null,{"$f":"IF(TNL!O19<>\"\",IF(DI9<>\"\",TNL!O19,\"\"),\"\")","v":""}]
[null,null,"Vorname und Nachname der Lehrgangsleitung",null,null,null,null,null,null,null,null,null,null,null,null,null,null,null,null,null,null,null,null,null,null,null,null,null,null,null,null,null,null,null,null,null,null,null,{"$f":"IF(TNL!L9<>\"\",TNL!L9,\"\")","v":""}]
[null,null,null,null,null,null,null,null,null,null,null,null,null,null,null,null,null,null,null,null,null,null,null,null,null,null,null,null,null,null,null,null,null,null,null,null,null,null,{"$f":"IF(TNL!L10<>\"\",TNL!L10,\"\")","v":""}]
[null,null,{"$f":"IF(TNL!CC9<>\"\",IF(DI9<>\"\",CONCATENATE(TNL!CC9,\", \",TEXT(TNL!CV15,\"TT.MM.JJJJ\")),\"\"),\"\")","v":""},null,null,null,null,null,null,null,null,null,null,null,null,null,null,null,null,null,null,null,null,null,null,null,null,null,null,null,null,null,null,null,null,null,null,null,{"$f":"IF(TNL!L11<>\"\",CONCATENATE(TNL!L11,\" \",TNL!W11),\"\")","v":""}]
[null,null,"Ort, Datum",null,null,null,null,null,null,null,null,null,null,null,null,null,null,null,null,null,null,null,null,null,null,null,null,null,null,null,null,null,null,null,null,null,null,null,"Adresse der ausbildenden Stelle",null,null,null,null,null,null,null,null,null,null,null,null,null,null,null,null,null,null,null,null,null,null,null,null,null,null,null,null,null,null,null,null,null,null,null,null,"Stempel | Unterschrift der Lehrgangsleitung"]
[]
[]
[null,null,{"$f":"IF(Data!P10<>0,VLOOKUP(Data!P10,Data!P7:R9,3,FALSE),\"\")","v":""}]
[]
[]
[]
[null,null,"Teilnahmebescheinigung"]
[]
[null,null,"Nummer:",null,null,null,null,null,null,null,null,null,null,{"$f":"IF(ISNA(IF(DI9<>\"\",VLOOKUP(DI9,Data!A3:N22,14,FALSE),\"\")),\"\",IF(DI9<>\"\",VLOOKUP(DI9,Data!A3:N22,14,FALSE),\"\"))","v":""}]
[]
[]
[]
[null,null,"Name:",null,null,null,null,null,null,null,{"$f":"IF(ISNA(IF(DI9<>\"\",VLOOKUP(DI9,Data!B3:N22,3,FALSE),\"\")),\"\",IF(DI9<>\"\",VLOOKUP(DI9,Data!B3:N22,3,FALSE),\"\"))","v":""},null,null,null,null,null,null,null,null,null,null,null,null,null,null,null,null,null,null,null,null,null,null,null,null,null,null,null,null,null,null,null,null,"Vorname:",null,null,null,null,null,null,null,null,null,null,{"$f":"IF(ISNA(IF(DI9<>\"\",VLOOKUP(DI9,Data!B3:N22,4,FALSE),\"\")),\"\",IF(DI9<>\"\",VLOOKUP(DI9,Data!B3:N22,4,FALSE),\"\"))","v":""},null,null,null,null,null,null,null,null,null,null,null,null,null,null,null,null,null,null,null,null,null,null,null,null,null,null,null,null,null,"geb. am:",null,null,null,null,null,null,null,null,null,{"$f":"IF(ISNA(IF(DI9<>\"\",VLOOKUP(DI9,Data!B3:N22,5,FALSE),\"\")),\"\",IF(DI9<>\"\",VLOOKUP(DI9,Data!B3:N22,5,FALSE),\"\"))","v":""}]
[]
[null,null,"hat vom:",null,null,null,null,null,null,null,null,null,{"$f":"IF(TNL!CD15<>\"\",IF(DI9<>\"\",TNL!CD15,\"\"),\"\")","v":""},null,null,null,null,null,null,null,null,null,null,null,null,null,null,null,"bis:",null,null,null,null,{"$f":"IF(TNL!CV15<>\"\",IF(DI9<>\"\",TNL!CV15,\"\"),\"\")","v":""},null,null,null,null,null,null,null,null,null,null,null,null,null,null,null,"in:",null,null,null,{"$f":"IF(TNL!BO9<>\"\",IF(DI9<>\"\",CONCATENATE(TEXT(TNL!BO9,\"00000\")&\" \"&TNL!CC9),\"\"),\"\")","v":""}]
[]
[null,null,{"$f":"IF(DI3<>0,VLOOKUP(DI3,Data!P2:U5,6,FALSE),\"\")","v":""}]
[null,null,{"$f":"IF(DI3<>0,VLOOKUP(DI3,Data!Q2:T5,2,FALSE),\"\")","v":""}]
[]
[]
[null,null,"mit 9 Lerneinheiten* teilgenommen. (*Eine Lerneinheit gleich 45 Minuten.)"]
[]
[null,null,{"$f":"IF(DI3<>0,VLOOKUP(DI3,Data!P2:T5,5,FALSE),\"\")","v":""}]
[]
[]
[]
[null,null,{"$f":"IF(TNL!O19<>\"\",IF(DI9<>\"\",TNL!O19,\"\"),\"\")","v":""}]
[null,null,"Vorname und Nachname der Lehrgangsleitung",null,null,null,null,null,null,null,null,null,null,null,null,null,null,null,null,null,null,null,null,null,null,null,null,null,null,null,null,null,null,null,null,null,null,null,{"$f":"IF(TNL!L9<>\"\",TNL!L9,\"\")","v":""}]
[null,null,null,null,null,null,null,null,null,null,null,null,null,null,null,null,null,null,null,null,null,null,null,null,null,null,null,null,null,null,null,null,null,null,null,null,null,null,{"$f":"IF(TNL!L10<>\"\",TNL!L10,\"\")","v":""}]
[null,null,{"$f":"IF(TNL!CC9<>\"\",IF(DI9<>\"\",CONCATENATE(TNL!CC9,\", \",TEXT(TNL!CV15,\"TT.MM.JJJJ\")),\"\"),\"\")","v":""},null,null,null,null,null,null,null,null,null,null,null,null,null,null,null,null,null,null,null,null,null,null,null,null,null,null,null,null,null,null,null,null,null,null,null,{"$f":"IF(TNL!L11<>\"\",CONCATENATE(TNL!L11,\" \",TNL!W11),\"\")","v":""}]
[null,null,"Ort, Datum",null,null,null,null,null,null,null,null,null,null,null,null,null,null,null,null,null,null,null,null,null,null,null,null,null,null,null,null,null,null,null,null,null,null,null,"Adresse der ausbildenden Stelle",null,null,null,null,null,null,null,null,null,null,null,null,null,null,null,null,null,null,null,null,null,null,null,null,null,null,null,null,null,null,null,null,null,null,null,null,"Stempel | Unterschrift der Lehrgangsleitung"]
[]
[]
[null,null,{"$f":"IF(Data!P10<>0,VLOOKUP(Data!P10,Data!P7:R9,3,FALSE),\"\")","v":""}]

{"sheet":"TNL-BG 1","index":2,"n_rows":82,"n_cols":121,"rows_kept":82,"cut":false,"hidden":true,"merged":[[1,118,6,123],[8,120,12,123],[4,2,4,4],[4,5,4,114],[55,6,55,59],[67,56,67,113],[71,56,71,113],[9,5,9,114],[5,5,5,55],[6,5,6,55],[7,5,7,39],[8,5,8,39],[7,61,7,63],[5,61,5,63],[5,87,5,89],[20,82,20,101],[20,62,20,81],[22,82,22,101],[19,5,19,26],[19,27,19,101],[19,102,20,115],[14,6,14,43],[16,6,16,18],[34,2,34,4],[37,2,37,4],[40,2,40,4],[43,2,43,4],[46,2,46,4],[20,5,20,61],[22,2,22,4],[25,2,25,4],[28,2,28,4],[31,2,31,4],[22,6,22,60],[20,2,20,4],[22,102,22,106],[28,6,28,60],[28,62,28,66],[28,68,28,72],[28,74,28,81],[28,82,28,101],[28,102,28,106],[22,111,22,115],[22,107,22,110],[25,6,25,60],[25,62,25,66],[25,68,25,72],[25,74,25,81],[25,82,25,101],[25,102,25,106],[25,107,25,110],[22,62,22,66],[22,68,22,72],[22,74,22,81],[25,111,25,115],[28,107,28,110],[28,111,28,115],[31,107,31,110],[31,111,31,115],[34,6,34,60],[34,62,34,66],[34,68,34,72],[34,74,34,81],[34,82,34,101],[34,102,34,106],[34,107,34,110],[34,111,34,115],[31,6,31,60],[31,62,31,66],[31,68,31,72],[31,74,31,81],[31,82,31,101],[31,102,31,106],[37,107,37,110],[37,111,37,115],[40,6,40,60],[40,62,40,66],[40,68,40,72],[40,74,40,81],[40,82,40,101],[40,102,40,106],[40,107,40,110],[40,111,40,115],[37,6,37,60],[37,62,37,66],[37,68,37,72],[37,74,37,81],[37,82,37,101],[37,102,37,106],[58,2,58,4],[51,2,51,4],[55,2,55,4],[56,2,56,4],[57,2,57,4],[52,6,52,114],[59,6,59,114],[59,2,59,4],[49,107,49,110],[49,111,49,115],[52,2,52,4],[53,2,53,4],[54,2,54,4],[49,6,49,60],[49,62,49,66],[49,68,49,72],[49,74,49,81],[49,82,49,101],[49,102,49,106],[49,2,49,4],[43,74,43,81],[77,55,77,113],[78,55,78,113],[79,55,79,113],[69,55,70,70],[65,55,66,70],[61,55,62,72],[76,7,76,50],[75,55,75,113],[76,55,76,113],[71,7,71,50],[69,7,70,32],[73,7,74,16],[62,52,63,53],[66,52,67,53],[70,52,71,53],[74,52,79,53],[63,7,63,50],[67,7,67,50],[65,7,66,32],[63,56,63,113],[61,7,62,48],[43,82,43,101],[43,102,43,106],[10,7,11,31],[14,118,15,118],[73,55,74,88],[12,61,12,114],[13,61,13,114],[14,61,14,114],[15,61,15,114],[16,61,16,114],[12,6,12,57],[14,45,14,57],[16,20,16,57],[43,107,43,110],[43,111,43,115],[46,6,46,60],[46,62,46,66],[46,68,46,72],[46,74,46,81],[46,82,46,101],[46,102,46,106],[46,107,46,110],[46,111,46,115],[43,6,43,60],[43,62,43,66],[43,68,43,72],[49,120,49,121],[22,120,22,121],[25,120,25,121],[28,120,28,121],[31,120,31,121],[34,120,34,121],[37,120,37,121],[40,120,40,121],[43,120,43,121],[46,120,46,121]]}
[]
[null,null,null,null,null,null,null,null,null,null,null,null,null,null,null,null,null,null,null,null,null,null,null,null,null,null,null,null,null,null,null,null,null,null,null,null,null,null,null,null,null,null,null,null,null,null,null,null,null,null,null,null,null,null,null,null,null,null,null,null,null,null,null,null,null,null,null,null,null,null,null,null,null,null,null,null,null,null,null,null,null,null,null,null,null,null,null,null,null,null,null,null,null,null,null,null,null,null,null,null,null,null,null,null,null,null,null,null,null,null,null,null,null,null,null,null,null,null," Wichtiger Hinweis!\n Das Anmeldeformular bitte unbedingt in Farbe ausdrucken, da dieses \n Formular bei der Abrechnungsstelle elektronisch zur Bearbeitung \n eingelesen wird."]
[null,null,null,null,null,"Dieses Formular wird maschinell verarbeitet und gespeichert!"]
[null,null,null,null,null,"Nutzen Sie bitte die elektronische Formularfunktion dieses Dokuments. Ansonsten füllen Sie es mit einem schwarzen oder dunkelblauen Stift aus. Vielen Dank!"]
[]
[null,null,null,null,null,null,null,null,null,null,null,null,null,null,null,null,null,null,null,null,null,null,null,null,null,null,null,null,null,null,null,null,null,null,null,null,null,null,null,null,null,null,null,null,null,null,null,null,null,null,null,null,null,null,null,null,null,null,null,null,null,{"$f":"IF(TNL!AD3&TNL!CH3<>\"\",\"X\",\"\")","v":""},null,null," Ausbildung",null,null,null,null,null,null,null,null,null,null,null,null,null,null,null,null,null,null,null,null,null,null,{"$f":"IF(TNL!BF3&TNL!DS3<>\"\",\"X\",\"\")","v":""},null,null," Fortbildung"]
[]
[null,null,null,null,null,"Aus- und Fortbildung",null,null,null,null,null,null,null,null,null,null,null,null,null,null,null,null,null,null,null,null,null,null,null,null,null,null,null,null,null,null,null,null,null,null,null,null,null,null,null,null,null,null,null,null,null,null,null,null,null,null,null,null,null,null,null,{"$f":"IF(TNL!CH3&TNL!DS3<>\"\",\"X\",\"\")","v":""},null,null," Erste Hilfe in Bildungs- und Betreuungseinrichtungen"]
[null,null,null,null,null,"für betriebliche Ersthelfer",null,null,null,null,null,null,null,null,null,null,null,null,null,null,null,null,null,null,null,null,null,null,null,null,null,null,null,null,null,null,null,null,null,null,null,null,null,null,null,null,null,null,null,null,null,null,null,null,null,null,null,null,null,null,null,null,null,null,null,null,null,null,null,null,null,null,null,null,null,null,null,null,null,null,null,null,null,null,null,null,null,null,null,null,null,null,null,null,null,null,null,null,null,null,null,null,null,null,null,null,null,null,null,null,null,null,null,null,null,null,null,null,null,null,"Hinweis:\nZum vervollständigen dieser Liste bitte die laufende Nummer aus der unten stehenden Liste in den weißen Feldern eintragen."]
[]
[null,null,null,null,null,null,null,"Anschrift des Mitgliedsbetriebes"]
[]
[null,null,null,null,null,null,null,null,null,null,null,null,null,null,null,null,null,null,null,null,null,null,null,null,null,null,null,null,null,null,null,null,null,null,null,null,null,null,null,null,null,null,null,null,null,null,null,null,null,null,null,null,null,null,null,null,null,null,null,null,null,"Zuständiger Unfallversicherungsträger:"]
[null,null,null,null,null,null,"Straße / Hausnummer",null,null,null,null,null,null,null,null,null,null,null,null,null,null,null,null,null,null,null,null,null,null,null,null,null,null,null,null,null,null,null,null,null,null,null,null,null,null,null,null,null,null,null,null,null,null,null,null,null,null,null,null,null,null,"(Berufsgenossenschaft, Unfallkasse) "]
[]
[null,null,null,null,null,null,"PLZ",null,null,null,null,null,null,null,null,null,null,null,null,null,"Ort",null,null,null,null,null,null,null,null,null,null,null,null,null,null,null,null,null,null,null,null,null,null,null,null,null,null,null,null,null,null,null,null,null,null,null,null,null,null,null,null,"Mitgliedsnummer / Versicherungsnummer:"]
[]
[]
[]
[null,null,null,null,null," Teilnahmeliste",null,null,null,null,null,null,null,null,null,null,null,null,null,null,null,null,null,null,null,null,null,"Die Teilnahmeliste ist vom Unternehmen auszufüllen.\nDie Teilnahme ist von den Teilnehmenden am Tag des Kurses durch Unterschrift zu bestätigen.",null,null,null,null,null,null,null,null,null,null,null,null,null,null,null,null,null,null,null,null,null,null,null,null,null,null,null,null,null,null,null,null,null,null,null,null,null,null,null,null,null,null,null,null,null,null,null,null,null,null,null,null,null,null,null,null,null,null,null,null,null,null,null,null,null,null,null,null,null,null,null,null,null,null," Bestätigung\n durch die \n Ausbildungsstelle"]
[null,null,null,null,null," Name, Vorname",null,null,null,null,null,null,null,null,null,null,null,null,null,null,null,null,null,null,null,null,null,null,null,null,null,null,null,null,null,null,null,null,null,null,null,null,null,null,null,null,null,null,null,null,null,null,null,null,null,null,null,null,null,null,null,null,"Geburtsdatum",null,null,null,null,null,null,null,null,null,null,null,null,null,null,null,null,null,null,null,"Unterschrift",null,null,null,null,null,null,null,null,null,null,null,null,null,null,null,null,null,null,null,null,null,null,null,null,null,null,null,null,null,null,null,null,null,null,null,"Nr."]
[]
[null,null,1,null,null,null,{"$f":"IF(DO23<>0,VLOOKUP(DO23,Data!Q27:U46,2,FALSE),\"\")","v":""},null,null,null,null,null,null,null,null,null,null,null,null,null,null,null,null,null,null,null,null,null,null,null,null,null,null,null,null,null,null,null,null,null,null,null,null,null,null,null,null,null,null,null,null,null,null,null,null,null,null,null,null,null,null,null,{"$f":"IF(DO23<>\"\",TEXT(DQ23,\"TT\"),\"\")","v":""},null,null,null,null,"•",{"$f":"IF(DO23<>\"\",TEXT(DQ23,\"MM\"),\"\")","v":""},null,null,null,null,"•",{"$f":"IF(DO23<>\"\",TEXT(DQ23,\"JJJJ\"),\"\")","v":""},null,null,null,null,null,null,null,null,null,null,null,null,null,null,null,null,null,null,null,null,null,null,null,null,null,null,null,null,null,null,null,null,null,null,null,null,null,null,null,null,null,null,{"$f":"IF(G23<>\"\",1,\"\")","v":""},null,null,{"$f":"IF(DO23<>\"\",VLOOKUP(DO23,Data!$A$3:$N$22,6,FALSE),\"\")","v":""}]
[]
[]
[null,null,2,null,null,null,{"$f":"IF(DO26<>0,VLOOKUP(DO26,Data!Q27:U46,2,FALSE),\"\")","v":""},null,null,null,null,null,null,null,null,null,null,null,null,null,null,null,null,null,null,null,null,null,null,null,null,null,null,null,null,null,null,null,null,null,null,null,null,null,null,null,null,null,null,null,null,null,null,null,null,null,null,null,null,null,null,null,{"$f":"IF(DO26<>\"\",TEXT(DQ26,\"TT\"),\"\")","v":""},null,null,null,null,"•",{"$f":"IF(DO26<>\"\",TEXT(DQ26,\"MM\"),\"\")","v":""},null,null,null,null,"•",{"$f":"IF(DO26<>\"\",TEXT(DQ26,\"JJJJ\"),\"\")","v":""},null,null,null,null,null,null,null,null,null,null,null,null,null,null,null,null,null,null,null,null,null,null,null,null,null,null,null,null,null,null,null,null,null,null,null,null,null,null,null,null,null,null,{"$f":"IF(G26<>\"\",1,\"\")","v":""},null,null,{"$f":"IF(DO26<>\"\",VLOOKUP(DO26,Data!$A$3:$N$22,6,FALSE),\"\")","v":""}]
[]
[]
[null,null,3,null,null,null,{"$f":"IF(DO29<>0,VLOOKUP(DO29,Data!Q27:U46,2,FALSE),\"\")","v":""},null,null,null,null,null,null,null,null,null,null,null,null,null,null,null,null,null,null,null,null,null,null,null,null,null,null,null,null,null,null,null,null,null,null,null,null,null,null,null,null,null,null,null,null,null,null,null,null,null,null,null,null,null,null,null,{"$f":"IF(DO29<>\"\",TEXT(DQ29,\"TT\"),\"\")","v":""},null,null,null,null,"•",{"$f":"IF(DO29<>\"\",TEXT(DQ29,\"MM\"),\"\")","v":""},null,null,null,null,"•",{"$f":"IF(DO29<>\"\",TEXT(DQ29,\"JJJJ\"),\"\")","v":""},null,null,null,null,null,null,null,null,null,null,null,null,null,null,null,null,null,null,null,null,null,null,null,null,null,null,null,null,null,null,null,null,null,null,null,null,null,null,null,null,null,null,{"$f":"IF(G29<>\"\",1,\"\")","v":""},null,null,{"$f":"IF(DO29<>\"\",VLOOKUP(DO29,Data!$A$3:$N$22,6,FALSE),\"\")","v":""}]
[]
[]
[null,null,4,null,null,null,{"$f":"IF(DO32<>0,VLOOKUP(DO32,Data!Q27:U46,2,FALSE),\"\")","v":""},null,null,null,null,null,null,null,null,null,null,null,null,null,null,null,null,null,null,null,null,null,null,null,null,null,null,null,null,null,null,null,null,null,null,null,null,null,null,null,null,null,null,null,null,null,null,null,null,null,null,null,null,null,null,null,{"$f":"IF(DO32<>\"\",TEXT(DQ32,\"TT\"),\"\")","v":""},null,null,null,null,"•",{"$f":"IF(DO32<>\"\",TEXT(DQ32,\"MM\"),\"\")","v":""},null,null,null,null,"•",{"$f":"IF(DO32<>\"\",TEXT(DQ32,\"JJJJ\"),\"\")","v":""},null,null,null,null,null,null,null,null,null,null,null,null,null,null,null,null,null,null,null,null,null,null,null,null,null,null,null,null,null,null,null,null,null,null,null,null,null,null,null,null,null,null,{"$f":"IF(G32<>\"\",1,\"\")","v":""},null,null,{"$f":"IF(DO32<>\"\",VLOOKUP(DO32,Data!$A$3:$N$22,6,FALSE),\"\")","v":""}]
[]
[]
[null,null,5,null,null,null,{"$f":"IF(DO35<>0,VLOOKUP(DO35,Data!Q27:U46,2,FALSE),\"\")","v":""},null,null,null,null,null,null,null,null,null,null,null,null,null,null,null,null,null,null,null,null,null,null,null,null,null,null,null,null,null,null,null,null,null,null,null,null,null,null,null,null,null,null,null,null,null,null,null,null,null,null,null,null,null,null,null,{"$f":"IF(DO35<>\"\",TEXT(DQ35,\"TT\"),\"\")","v":""},null,null,null,null,"•",{"$f":"IF(DO35<>\"\",TEXT(DQ35,\"MM\"),\"\")","v":""},null,null,null,null,"•",{"$f":"IF(DO35<>\"\",TEXT(DQ35,\"JJJJ\"),\"\")","v":""},null,null,null,null,null,null,null,null,null,null,null,null,null,null,null,null,null,null,null,null,null,null,null,null,null,null,null,null,null,null,null,null,null,null,null,null,null,null,null,null,null,null,{"$f":"IF(G35<>\"\",1,\"\")","v":""},null,null,{"$f":"IF(DO35<>\"\",VLOOKUP(DO35,Data!$A$3:$N$22,6,FALSE),\"\")","v":""}]
[]
[]
[null,null,6,null,null,null,{"$f":"IF(DO38<>0,VLOOKUP(DO38,Data!Q27:U46,2,FALSE),\"\")","v":""},null,null,null,null,null,null,null,null,null,null,null,null,null,null,null,null,null,null,null,null,null,null,null,null,null,null,null,null,null,null,null,null,null,null,null,null,null,null,null,null,null,null,null,null,null,null,null,null,null,null,null,null,null,null,null,{"$f":"IF(DO38<>\"\",TEXT(DQ38,\"TT\"),\"\")","v":""},null,null,null,null,"•",{"$f":"IF(DO38<>\"\",TEXT(DQ38,\"MM\"),\"\")","v":""},null,null,null,null,"•",{"$f":"IF(DO38<>\"\",TEXT(DQ38,\"JJJJ\"),\"\")","v":""},null,null,null,null,null,null,null,null,null,null,null,null,null,null,null,null,null,null,null,null,null,null,null,null,null,null,null,null,null,null,null,null,null,null,null,null,null,null,null,null,null,null,{"$f":"IF(G38<>\"\",1,\"\")","v":""},null,null,{"$f":"IF(DO38<>\"\",VLOOKUP(DO38,Data!$A$3:$N$22,6,FALSE),\"\")","v":""}]
[]
[]
[null,null,7,null,null,null,{"$f":"IF(DO41<>0,VLOOKUP(DO41,Data!Q27:U46,2,FALSE),\"\")","v":""},null,null,null,null,null,null,null,null,null,null,null,null,null,null,null,null,null,null,null,null,null,null,null,null,null,null,null,null,null,null,null,null,null,null,null,null,null,null,null,null,null,null,null,null,null,null,null,null,null,null,null,null,null,null,null,{"$f":"IF(DO41<>\"\",TEXT(DQ41,\"TT\"),\"\")","v":""},null,null,null,null,"•",{"$f":"IF(DO41<>\"\",TEXT(DQ41,\"MM\"),\"\")","v":""},null,null,null,null,"•",{"$f":"IF(DO41<>\"\",TEXT(DQ41,\"JJJJ\"),\"\")","v":""},null,null,null,null,null,null,null,null,null,null,null,null,null,null,null,null,null,null,null,null,null,null,null,null,null,null,null,null,null,null,null,null,null,null,null,null,null,null,null,null,null,null,{"$f":"IF(G41<>\"\",1,\"\")","v":""},null,null,{"$f":"IF(DO41<>\"\",VLOOKUP(DO41,Data!$A$3:$N$22,6,FALSE),\"\")","v":""}]
[]
[]
[null,null,8,null,null,null,{"$f":"IF(DO44<>0,VLOOKUP(DO44,Data!Q27:U46,2,FALSE),\"\")","v":""},null,null,null,null,null,null,null,null,null,null,null,null,null,null,null,null,null,null,null,null,null,null,null,null,null,null,null,null,null,null,null,null,null,null,null,null,null,null,null,null,null,null,null,null,null,null,null,null,null,null,null,null,null,null,null,{"$f":"IF(DO44<>\"\",TEXT(DQ44,\"TT\"),\"\")","v":""},null,null,null,null,"•",{"$f":"IF(DO44<>\"\",TEXT(DQ44,\"MM\"),\"\")","v":""},null,null,null,null,"•",{"$f":"IF(DO44<>\"\",TEXT(DQ44,\"JJJJ\"),\"\")","v":""},null,null,null,null,null,null,null,null,null,null,null,null,null,null,null,null,null,null,null,null,null,null,null,null,null,null,null,null,null,null,null,null,null,null,null,null,null,null,null,null,null,null,{"$f":"IF(G44<>\"\",1,\"\")","v":""},null,null,{"$f":"IF(DO44<>\"\",VLOOKUP(DO44,Data!$A$3:$N$22,6,FALSE),\"\")","v":""}]
[]
[]
[null,null,9,null,null,null,{"$f":"IF(DO47<>0,VLOOKUP(DO47,Data!Q27:U46,2,FALSE),\"\")","v":""},null,null,null,null,null,null,null,null,null,null,null,null,null,null,null,null,null,null,null,null,null,null,null,null,null,null,null,null,null,null,null,null,null,null,null,null,null,null,null,null,null,null,null,null,null,null,null,null,null,null,null,null,null,null,null,{"$f":"IF(DO47<>\"\",TEXT(DQ47,\"TT\"),\"\")","v":""},null,null,null,null,"•",{"$f":"IF(DO47<>\"\",TEXT(DQ47,\"MM\"),\"\")","v":""},null,null,null,null,"•",{"$f":"IF(DO47<>\"\",TEXT(DQ47,\"JJJJ\"),\"\")","v":""},null,null,null,null,null,null,null,null,null,null,null,null,null,null,null,null,null,null,null,null,null,null,null,null,null,null,null,null,null,null,null,null,null,null,null,null,null,null,null,null,null,null,{"$f":"IF(G47<>\"\",1,\"\")","v":""},null,null,{"$f":"IF(DO47<>\"\",VLOOKUP(DO47,Data!$A$3:$N$22,6,FALSE),\"\")","v":""}]
[]
[]
[null,null,10,null,null,null,{"$f":"IF(DO50<>0,VLOOKUP(DO50,Data!Q27:U46,2,FALSE),\"\")","v":""},null,null,null,null,null,null,null,null,null,null,null,null,null,null,null,null,null,null,null,null,null,null,null,null,null,null,null,null,null,null,null,null,null,null,null,null,null,null,null,null,null,null,null,null,null,null,null,null,null,null,null,null,null,null,null,{"$f":"IF(DO50<>\"\",TEXT(DQ50,\"TT\"),\"\")","v":""},null,null,null,null,"•",{"$f":"IF(DO50<>\"\",TEXT(DQ50,\"MM\"),\"\")","v":""},null,null,null,null,"•",{"$f":"IF(DO50<>\"\",TEXT(DQ50,\"JJJJ\"),\"\")","v":""},null,null,null,null,null,null,null,null,null,null,null,null,null,null,null,null,null,null,null,null,null,null,null,null,null,null,null,null,null,null,null,null,null,null,null,null,null,null,null,null,null,null,{"$f":"IF(G50<>\"\",1,\"\")","v":""},null,null,{"$f":"IF(DO50<>\"\",VLOOKUP(DO50,Data!$A$3:$N$22,6,FALSE),\"\")","v":""}]
[]
[]
[null,null,null,null,null,null,"Bestätigung durch das Unternehmen"]
[null,null,null,null,null,null,"Ort, Datum",null,null,null,null,null,null,null,null,null,null,null,null,null,null,null,null,null,null,null,null,null,null,null,null,null,null,null,null,null,null,null,null,null,null,null,null,null,null,null,null,null,null,null,null,null,null,null,null,null,null,null,null,null,null,null,"Stempel, Unterschrift des Unternehmens"]
[]
[]
[]
[]
[]
[null,null,null,null,null,null,"Bestätigung durch die Ausbildungsstelle"]
[]
[null,null,null,null,null,null,null," Abrechenbare Teilnehmeranzahl auf diesem Formular",null,null,null,null,null,null,null,null,null,null,null,null,null,null,null,null,null,null,null,null,null,null,null,null,null,null,null,null,null,null,null,null,null,null,null,null,null,null,null,null,null,null,null,null,null,null,null," Datum des Lehrgangs "]
[]
[null,null,null,null,null,null,null,{"$f":"IF(SUM(DN23:DN50),SUM(DN23:DN50),\"\")","v":""},null,null,null,null,null,null,null,null,null,null,null,null,null,null,null,null,null,null,null,null,null,null,null,null,null,null,null,null,null,null,null,null,null,null,null,null,null,null,null,null,null,null,null,null,null,null,null,null,{"$f":"IF(TNL!CD15<>\"\",CONCATENATE(TEXT(TNL!CD15,\"TT.MM.JJJJ\"),\" – \",TEXT(TNL!CV15,\"TT.MM.JJJJ\")),\"\")","v":""}]
[]
[null,null,null,null,null,null,null," Kennziffer der Ausbildungsstelle",null,null,null,null,null,null,null,null,null,null,null,null,null,null,null,null,null,null,null,null,null,null,null,null,null,null,null,null,null,null,null,null,null,null,null,null,null,null,null,null,null,null,null,null,null,null,null," Name der Lehrkraft "]
[]
[null,null,null,null,null,null,null,{"$f":"IF(TNL!ET15<>\"\",TNL!ET15,\"\")","v":""},null,null,null,null,null,null,null,null,null,null,null,null,null,null,null,null,null,null,null,null,null,null,null,null,null,null,null,null,null,null,null,null,null,null,null,null,null,null,null,null,null,null,null,null,null,null,null,null,{"$f":"IF(TNL!O19<>\"\",TNL!O19,\"\")","v":""}]
[]
[null,null,null,null,null,null,null," Registriernummer des Lehrgangs",null,null,null,null,null,null,null,null,null,null,null,null,null,null,null,null,null,null,null,null,null,null,null,null,null,null,null,null,null,null,null,null,null,null,null,null,null,null,null,null,null,null,null,null,null,null,null," Ort des Lehrgangs"]
[]
[null,null,null,null,null,null,null,{"$f":"IF(TNL!ET16<>\"\",TNL!ET16,\"\")","v":""},null,null,null,null,null,null,null,null,null,null,null,null,null,null,null,null,null,null,null,null,null,null,null,null,null,null,null,null,null,null,null,null,null,null,null,null,null,null,null,null,null,null,null,null,null,null,null,null,{"$f":"IF(TNL!BO9<>\"\",CONCATENATE(TNL!BO9,\" \",TNL!CC9),\"\")","v":""}]
[]
[null,null,null,null,null,null,null," Ort, Datum",null,null,null,null,null,null,null,null,null,null,null,null,null,null,null,null,null,null,null,null,null,null,null,null,null,null,null,null,null,null,null,null,null,null,null,null,null,null,null,null,null,null,null,null,null,null,null," Anschrift, Unterschift der Ausbildungsstelle"]
[]
[]
[null,null,null,null,null,null,null,{"$f":"IF(TNL!BV33<>\"\",TEXT(TNL!BV33,\"TT.MM.JJJJ\"),\"\")","v":""},null,null,null,null,null,null,null,null,null,null,null,null,null,null,null,null,null,null,null,null,null,null,null,null,null,null,null,null,null,null,null,null,null,null,null,null,null,null,null,null,null,null,null,null,null,null,null,{"$f":"IF(TNL!L9<>\"\",TNL!L9,\"\")","v":""}]
[null,null,null,null,null,null,null,null,null,null,null,null,null,null,null,null,null,null,null,null,null,null,null,null,null,null,null,null,null,null,null,null,null,null,null,null,null,null,null,null,null,null,null,null,null,null,null,null,null,null,null,null,null,null,null,{"$f":"IF(TNL!L10<>\"\",TNL!L10,\"\")","v":""}]
[null,null,null,null,null,null,null,null,null,null,null,null,null,null,null,null,null,null,null,null,null,null,null,null,null,null,null,null,null,null,null,null,null,null,null,null,null,null,null,null,null,null,null,null,null,null,null,null,null,null,null,null,null,null,null,{"$f":"IF(TNL!L11<>\"\",CONCATENATE(TNL!L11,\" \",TNL!W11),\"\")","v":""}]
[]
[]
[null,null,null,null,null,"Die personenbezogenen Daten werden aufgrund des § 199 Abs. 1 Nr. 5 i.V.m. § 23 SBG VII erhoben und gespeichert."]

{"sheet":"TNL-BG 2","index":3,"n_rows":82,"n_cols":121,"rows_kept":82,"cut":false,"hidden":true,"merged":[[73,7,74,16],[73,55,74,88],[74,52,79,53],[75,55,75,113],[76,7,76,50],[76,55,76,113],[77,55,77,113],[78,55,78,113],[79,55,79,113],[65,7,66,32],[65,55,66,70],[66,52,67,53],[67,7,67,50],[67,56,67,113],[69,7,70,32],[69,55,70,70],[70,52,71,53],[71,7,71,50],[71,56,71,113],[59,2,59,4],[59,6,59,114],[61,7,62,48],[61,55,62,72],[62,52,63,53],[63,7,63,50],[63,56,63,113],[54,2,54,4],[55,2,55,4],[55,6,55,59],[56,2,56,4],[57,2,57,4],[58,2,58,4],[49,107,49,110],[49,111,49,115],[51,2,51,4],[52,2,52,4],[52,6,52,114],[53,2,53,4],[46,102,46,106],[46,107,46,110],[46,111,46,115],[49,2,49,4],[49,6,49,60],[49,62,49,66],[49,68,49,72],[49,74,49,81],[49,82,49,101],[49,102,49,106],[46,2,46,4],[46,6,46,60],[46,62,46,66],[46,68,46,72],[46,74,46,81],[46,82,46,101],[43,2,43,4],[43,6,43,60],[43,62,43,66],[43,68,43,72],[43,74,43,81],[43,82,43,101],[43,102,43,106],[43,107,43,110],[43,111,43,115],[40,2,40,4],[40,6,40,60],[40,62,40,66],[40,68,40,72],[40,74,40,81],[40,82,40,101],[40,102,40,106],[40,107,40,110],[40,111,40,115],[34,102,34,106],[34,107,34,110],[34,111,34,115],[37,2,37,4],[37,6,37,60],[37,62,37,66],[37,68,37,72],[37,74,37,81],[37,82,37,101],[37,102,37,106],[34,2,34,4],[34,6,34,60],[34,62,34,66],[34,68,34,72],[34,74,34,81],[34,82,34,101],[37,107,37,110],[37,111,37,115],[31,2,31,4],[31,6,31,60],[31,62,31,66],[31,68,31,72],[31,74,31,81],[31,82,31,101],[31,102,31,106],[31,107,31,110],[31,111,31,115],[28,2,28,4],[28,6,28,60],[28,62,28,66],[28,68,28,72],[28,74,28,81],[28,82,28,101],[28,102,28,106],[28,107,28,110],[28,111,28,115],[22,102,22,106],[22,107,22,110],[22,111,22,115],[25,2,25,4],[25,6,25,60],[25,62,25,66],[25,68,25,72],[25,74,25,81],[25,82,25,101],[25,102,25,106],[25,107,25,110],[25,111,25,115],[20,2,20,4],[20,5,20,61],[20,62,20,81],[20,82,20,101],[22,2,22,4],[22,6,22,60],[22,62,22,66],[22,68,22,72],[22,74,22,81],[22,82,22,101],[8,120,12,123],[9,5,9,114],[12,6,12,57],[12,61,12,114],[16,6,16,18],[16,20,16,57],[16,61,16,114],[19,5,19,26],[19,27,19,101],[19,102,20,115],[13,61,13,114],[14,6,14,43],[14,45,14,57],[14,61,14,114],[2,2,3,4],[4,2,4,4],[4,5,4,114],[5,5,5,55],[5,61,5,63],[5,87,5,89],[14,118,15,118],[15,61,15,114],[6,5,6,55],[7,5,7,39],[7,61,7,63],[8,5,8,39],[10,7,11,30],[49,120,49,121],[22,120,22,121],[25,120,25,121],[28,120,28,121],[31,120,31,121],[34,120,34,121],[37,120,37,121],[40,120,40,121],[43,120,43,121],[46,120,46,121]]}
[]
[]
[null,null,null,null,null,"Dieses Formular wird maschinell verarbeitet und gespeichert!"]
[null,null,null,null,null,"Nutzen Sie bitte die elektronische Formularfunktion dieses Dokuments. Ansonsten füllen Sie es mit einem schwarzen oder dunkelblauen Stift aus. Vielen Dank!"]
[null,null,null,null,null,null,null,null,null,null,null,null,null,null,null,null,null,null,null,null,null,null,null,null,null,null,null,null,null,null,null,null,null,null,null,null,null,null,null,null,null,null,null,null,null,null,null,null,null,null,null,null,null,null,null,null,null,null,null,null,null,null,null,null,null,null,null,null,null,null,null,null,null,null,null,null,null,null,null,null,null,null,null,null,null,null,null,null,null,null,null,null,null,null,null,null,null,null,null,null,null,null,null,null,null,null,null,null,null,null,null,null,null,null,null,null,null,null,"1. Anschrift des Mitgliedsbetriebes"]
[null,null,null,null,null,null,null,null,null,null,null,null,null,null,null,null,null,null,null,null,null,null,null,null,null,null,null,null,null,null,null,null,null,null,null,null,null,null,null,null,null,null,null,null,null,null,null,null,null,null,null,null,null,null,null,null,null,null,null,null,null,{"$f":"IF(TNL!AD3&TNL!CH3<>\"\",\"X\",\"\")","v":""},null,null," Ausbildung",null,null,null,null,null,null,null,null,null,null,null,null,null,null,null,null,null,null,null,null,null,null,{"$f":"IF(TNL!BF3&TNL!DS3<>\"\",\"X\",\"\")","v":""},null,null," Fortbildung",null,null,null,null,null,null,null,null,null,null,null,null,null,null,null,null,null,null,null,null,null,null,null,null,null,null,null,"2. Zuständiger Unfallversicherungsträger"]
[]
[null,null,null,null,null,"Aus- und Fortbildung",null,null,null,null,null,null,null,null,null,null,null,null,null,null,null,null,null,null,null,null,null,null,null,null,null,null,null,null,null,null,null,null,null,null,null,null,null,null,null,null,null,null,null,null,null,null,null,null,null,null,null,null,null,null,null,{"$f":"IF(TNL!CH3&TNL!DS3<>\"\",\"X\",\"\")","v":""},null,null," Erste Hilfe in Bildungs- und Betreuungseinrichtungen"]
[null,null,null,null,null,"für betriebliche Ersthelfer",null,null,null,null,null,null,null,null,null,null,null,null,null,null,null,null,null,null,null,null,null,null,null,null,null,null,null,null,null,null,null,null,null,null,null,null,null,null,null,null,null,null,null,null,null,null,null,null,null,null,null,null,null,null,null,null,null,null,null,null,null,null,null,null,null,null,null,null,null,null,null,null,null,null,null,null,null,null,null,null,null,null,null,null,null,null,null,null,null,null,null,null,null,null,null,null,null,null,null,null,null,null,null,null,null,null,null,null,null,null,null,null,null,null,"Hinweis:\nZum vervollständigen dieser Liste bitte die laufende Nummer aus der unten stehenden Liste in den weißen Feldern eintragen."]
[]
[null,null,null,null,null,null,null,"Anschrift des Mitgliedsbetriebes"]
[]
[null,null,null,null,null,null,null,null,null,null,null,null,null,null,null,null,null,null,null,null,null,null,null,null,null,null,null,null,null,null,null,null,null,null,null,null,null,null,null,null,null,null,null,null,null,null,null,null,null,null,null,null,null,null,null,null,null,null,null,null,null,"Zuständiger Unfallversicherungsträger:"]
[null,null,null,null,null,null,"Straße / Hausnummer",null,null,null,null,null,null,null,null,null,null,null,null,null,null,null,null,null,null,null,null,null,null,null,null,null,null,null,null,null,null,null,null,null,null,null,null,null,null,null,null,null,null,null,null,null,null,null,null,null,null,null,null,null,null,"(Berufsgenossenschaft, Unfallkasse) "]
[]
[null,null,null,null,null,null,"PLZ",null,null,null,null,null,null,null,null,null,null,null,null,null,"Ort",null,null,null,null,null,null,null,null,null,null,null,null,null,null,null,null,null,null,null,null,null,null,null,null,null,null,null,null,null,null,null,null,null,null,null,null,null,null,null,null,"Mitgliedsnummer / Versicherungsnummer:"]
[]
[]
[]
[null,null,null,null,null," Teilnahmeliste",null,null,null,null,null,null,null,null,null,null,null,null,null,null,null,null,null,null,null,null,null,"Die Teilnahmeliste ist vom Unternehmen auszufüllen.\nDie Teilnahme ist von den Teilnehmenden am Tag des Kurses durch Unterschrift zu bestätigen.",null,null,null,null,null,null,null,null,null,null,null,null,null,null,null,null,null,null,null,null,null,null,null,null,null,null,null,null,null,null,null,null,null,null,null,null,null,null,null,null,null,null,null,null,null,null,null,null,null,null,null,null,null,null,null,null,null,null,null,null,null,null,null,null,null,null,null,null,null,null,null,null,null,null," Bestätigung\n durch die \n Ausbildungsstelle"]
[null,null,null,null,null," Name, Vorname",null,null,null,null,null,null,null,null,null,null,null,null,null,null,null,null,null,null,null,null,null,null,null,null,null,null,null,null,null,null,null,null,null,null,null,null,null,null,null,null,null,null,null,null,null,null,null,null,null,null,null,null,null,null,null,null,"Geburtsdatum",null,null,null,null,null,null,null,null,null,null,null,null,null,null,null,null,null,null,null,"Unterschrift",null,null,null,null,null,null,null,null,null,null,null,null,null,null,null,null,null,null,null,null,null,null,null,null,null,null,null,null,null,null,null,null,null,null,null,"Nr."]
[]
[null,null,1,null,null,null,{"$f":"IF(DO23<>0,VLOOKUP(DO23,Data!Q27:U46,2,FALSE),\"\")","v":""},null,null,null,null,null,null,null,null,null,null,null,null,null,null,null,null,null,null,null,null,null,null,null,null,null,null,null,null,null,null,null,null,null,null,null,null,null,null,null,null,null,null,null,null,null,null,null,null,null,null,null,null,null,null,null,{"$f":"IF(DO23<>\"\",TEXT(DQ23,\"TT\"),\"\")","v":""},null,null,null,null,"•",{"$f":"IF(DO23<>\"\",TEXT(DQ23,\"MM\"),\"\")","v":""},null,null,null,null,"•",{"$f":"IF(DO23<>\"\",TEXT(DQ23,\"JJJJ\"),\"\")","v":""},null,null,null,null,null,null,null,null,null,null,null,null,null,null,null,null,null,null,null,null,null,null,null,null,null,null,null,null,null,null,null,null,null,null,null,null,null,null,null,null,null,null,{"$f":"IF(G23<>\"\",1,\"\")","v":""},null,null,{"$f":"IF(DO23<>\"\",VLOOKUP(DO23,Data!$A$3:$N$22,6,FALSE),\"\")","v":""}]
[]
[]
[null,null,2,null,null,null,{"$f":"IF(DO26<>0,VLOOKUP(DO26,Data!Q27:U46,2,FALSE),\"\")","v":""},null,null,null,null,null,null,null,null,null,null,null,null,null,null,null,null,null,null,null,null,null,null,null,null,null,null,null,null,null,null,null,null,null,null,null,null,null,null,null,null,null,null,null,null,null,null,null,null,null,null,null,null,null,null,null,{"$f":"IF(DO26<>\"\",TEXT(DQ26,\"TT\"),\"\")","v":""},null,null,null,null,"•",{"$f":"IF(DO26<>\"\",TEXT(DQ26,\"MM\"),\"\")","v":""},null,null,null,null,"•",{"$f":"IF(DO26<>\"\",TEXT(DQ26,\"JJJJ\"),\"\")","v":""},null,null,null,null,null,null,null,null,null,null,null,null,null,null,null,null,null,null,null,null,null,null,null,null,null,null,null,null,null,null,null,null,null,null,null,null,null,null,null,null,null,null,{"$f":"IF(G26<>\"\",1,\"\")","v":""},null,null,{"$f":"IF(DO26<>\"\",VLOOKUP(DO26,Data!$A$3:$N$22,6,FALSE),\"\")","v":""}]
[]
[]
[null,null,3,null,null,null,{"$f":"IF(DO29<>0,VLOOKUP(DO29,Data!Q27:U46,2,FALSE),\"\")","v":""},null,null,null,null,null,null,null,null,null,null,null,null,null,null,null,null,null,null,null,null,null,null,null,null,null,null,null,null,null,null,null,null,null,null,null,null,null,null,null,null,null,null,null,null,null,null,null,null,null,null,null,null,null,null,null,{"$f":"IF(DO29<>\"\",TEXT(DQ29,\"TT\"),\"\")","v":""},null,null,null,null,"•",{"$f":"IF(DO29<>\"\",TEXT(DQ29,\"MM\"),\"\")","v":""},null,null,null,null,"•",{"$f":"IF(DO29<>\"\",TEXT(DQ29,\"JJJJ\"),\"\")","v":""},null,null,null,null,null,null,null,null,null,null,null,null,null,null,null,null,null,null,null,null,null,null,null,null,null,null,null,null,null,null,null,null,null,null,null,null,null,null,null,null,null,null,{"$f":"IF(G29<>\"\",1,\"\")","v":""},null,null,{"$f":"IF(DO29<>\"\",VLOOKUP(DO29,Data!$A$3:$N$22,6,FALSE),\"\")","v":""}]
[]
[]
[null,null,4,null,null,null,{"$f":"IF(DO32<>0,VLOOKUP(DO32,Data!Q27:U46,2,FALSE),\"\")","v":""},null,null,null,null,null,null,null,null,null,null,null,null,null,null,null,null,null,null,null,null,null,null,null,null,null,null,null,null,null,null,null,null,null,null,null,null,null,null,null,null,null,null,null,null,null,null,null,null,null,null,null,null,null,null,null,{"$f":"IF(DO32<>\"\",TEXT(DQ32,\"TT\"),\"\")","v":""},null,null,null,null,"•",{"$f":"IF(DO32<>\"\",TEXT(DQ32,\"MM\"),\"\")","v":""},null,null,null,null,"•",{"$f":"IF(DO32<>\"\",TEXT(DQ32,\"JJJJ\"),\"\")","v":""},null,null,null,null,null,null,null,null,null,null,null,null,null,null,null,null,null,null,null,null,null,null,null,null,null,null,null,null,null,null,null,null,null,null,null,null,null,null,null,null,null,null,{"$f":"IF(G32<>\"\",1,\"\")","v":""},null,null,{"$f":"IF(DO32<>\"\",VLOOKUP(DO32,Data!$A$3:$N$22,6,FALSE),\"\")","v":""}]
[]
[]
[null,null,5,null,null,null,{"$f":"IF(DO35<>0,VLOOKUP(DO35,Data!Q27:U46,2,FALSE),\"\")","v":""},null,null,null,null,null,null,null,null,null,null,null,null,null,null,null,null,null,null,null,null,null,null,null,null,null,null,null,null,null,null,null,null,null,null,null,null,null,null,null,null,null,null,null,null,null,null,null,null,null,null,null,null,null,null,null,{"$f":"IF(DO35<>\"\",TEXT(DQ35,\"TT\"),\"\")","v":""},null,null,null,null,"•",{"$f":"IF(DO35<>\"\",TEXT(DQ35,\"MM\"),\"\")","v":""},null,null,null,null,"•",{"$f":"IF(DO35<>\"\",TEXT(DQ35,\"JJJJ\"),\"\")","v":""},null,null,null,null,null,null,null,null,null,null,null,null,null,null,null,null,null,null,null,null,null,null,null,null,null,null,null,null,null,null,null,null,null,null,null,null,null,null,null,null,null,null,{"$f":"IF(G35<>\"\",1,\"\")","v":""},null,null,{"$f":"IF(DO35<>\"\",VLOOKUP(DO35,Data!$A$3:$N$22,6,FALSE),\"\")","v":""}]
[]
[]
[null,null,6,null,null,null,{"$f":"IF(DO38<>0,VLOOKUP(DO38,Data!Q27:U46,2,FALSE),\"\")","v":""},null,null,null,null,null,null,null,null,null,null,null,null,null,null,null,null,null,null,null,null,null,null,null,null,null,null,null,null,null,null,null,null,null,null,null,null,null,null,null,null,null,null,null,null,null,null,null,null,null,null,null,null,null,null,null,{"$f":"IF(DO38<>\"\",TEXT(DQ38,\"TT\"),\"\")","v":""},null,null,null,null,"•",{"$f":"IF(DO38<>\"\",TEXT(DQ38,\"MM\"),\"\")","v":""},null,null,null,null,"•",{"$f":"IF(DO38<>\"\",TEXT(DQ38,\"JJJJ\"),\"\")","v":""},null,null,null,null,null,null,null,null,null,null,null,null,null,null,null,null,null,null,null,null,null,null,null,null,null,null,null,null,null,null,null,null,null,null,null,null,null,null,null,null,null,null,{"$f":"IF(G38<>\"\",1,\"\")","v":""},null,null,{"$f":"IF(DO38<>\"\",VLOOKUP(DO38,Data!$A$3:$N$22,6,FALSE),\"\")","v":""}]
[]
[]
[null,null,7,null,null,null,{"$f":"IF(DO41<>0,VLOOKUP(DO41,Data!Q27:U46,2,FALSE),\"\")","v":""},null,null,null,null,null,null,null,null,null,null,null,null,null,null,null,null,null,null,null,null,null,null,null,null,null,null,null,null,null,null,null,null,null,null,null,null,null,null,null,null,null,null,null,null,null,null,null,null,null,null,null,null,null,null,null,{"$f":"IF(DO41<>\"\",TEXT(DQ41,\"TT\"),\"\")","v":""},null,null,null,null,"•",{"$f":"IF(DO41<>\"\",TEXT(DQ41,\"MM\"),\"\")","v":""},null,null,null,null,"•",{"$f":"IF(DO41<>\"\",TEXT(DQ41,\"JJJJ\"),\"\")","v":""},null,null,null,null,null,null,null,null,null,null,null,null,null,null,null,null,null,null,null,null,null,null,null,null,null,null,null,null,null,null,null,null,null,null,null,null,null,null,null,null,null,null,{"$f":"IF(G41<>\"\",1,\"\")","v":""},null,null,{"$f":"IF(DO41<>\"\",VLOOKUP(DO41,Data!$A$3:$N$22,6,FALSE),\"\")","v":""}]
[]
[]
[null,null,8,null,null,null,{"$f":"IF(DO44<>0,VLOOKUP(DO44,Data!Q27:U46,2,FALSE),\"\")","v":""},null,null,null,null,null,null,null,null,null,null,null,null,null,null,null,null,null,null,null,null,null,null,null,null,null,null,null,null,null,null,null,null,null,null,null,null,null,null,null,null,null,null,null,null,null,null,null,null,null,null,null,null,null,null,null,{"$f":"IF(DO44<>\"\",TEXT(DQ44,\"TT\"),\"\")","v":""},null,null,null,null,"•",{"$f":"IF(DO44<>\"\",TEXT(DQ44,\"MM\"),\"\")","v":""},null,null,null,null,"•",{"$f":"IF(DO44<>\"\",TEXT(DQ44,\"JJJJ\"),\"\")","v":""},null,null,null,null,null,null,null,null,null,null,null,null,null,null,null,null,null,null,null,null,null,null,null,null,null,null,null,null,null,null,null,null,null,null,null,null,null,null,null,null,null,null,{"$f":"IF(G44<>\"\",1,\"\")","v":""},null,null,{"$f":"IF(DO44<>\"\",VLOOKUP(DO44,Data!$A$3:$N$22,6,FALSE),\"\")","v":""}]
[]
[]
[null,null,9,null,null,null,{"$f":"IF(DO47<>0,VLOOKUP(DO47,Data!Q27:U46,2,FALSE),\"\")","v":""},null,null,null,null,null,null,null,null,null,null,null,null,null,null,null,null,null,null,null,null,null,null,null,null,null,null,null,null,null,null,null,null,null,null,null,null,null,null,null,null,null,null,null,null,null,null,null,null,null,null,null,null,null,null,null,{"$f":"IF(DO47<>\"\",TEXT(DQ47,\"TT\"),\"\")","v":""},null,null,null,null,"•",{"$f":"IF(DO47<>\"\",TEXT(DQ47,\"MM\"),\"\")","v":""},null,null,null,null,"•",{"$f":"IF(DO47<>\"\",TEXT(DQ47,\"JJJJ\"),\"\")","v":""},null,null,null,null,null,null,null,null,null,null,null,null,null,null,null,null,null,null,null,null,null,null,null,null,null,null,null,null,null,null,null,null,null,null,null,null,null,null,null,null,null,null,{"$f":"IF(G47<>\"\",1,\"\")","v":""},null,null,{"$f":"IF(DO47<>\"\",VLOOKUP(DO47,Data!$A$3:$N$22,6,FALSE),\"\")","v":""}]
[]
[]
[null,null,10,null,null,null,{"$f":"IF(DO50<>0,VLOOKUP(DO50,Data!Q27:U46,2,FALSE),\"\")","v":""},null,null,null,null,null,null,null,null,null,null,null,null,null,null,null,null,null,null,null,null,null,null,null,null,null,null,null,null,null,null,null,null,null,null,null,null,null,null,null,null,null,null,null,null,null,null,null,null,null,null,null,null,null,null,null,{"$f":"IF(DO50<>\"\",TEXT(DQ50,\"TT\"),\"\")","v":""},null,null,null,null,"•",{"$f":"IF(DO50<>\"\",TEXT(DQ50,\"MM\"),\"\")","v":""},null,null,null,null,"•",{"$f":"IF(DO50<>\"\",TEXT(DQ50,\"JJJJ\"),\"\")","v":""},null,null,null,null,null,null,null,null,null,null,null,null,null,null,null,null,null,null,null,null,null,null,null,null,null,null,null,null,null,null,null,null,null,null,null,null,null,null,null,null,null,null,{"$f":"IF(G50<>\"\",1,\"\")","v":""},null,null,{"$f":"IF(DO50<>\"\",VLOOKUP(DO50,Data!$A$3:$N$22,6,FALSE),\"\")","v":""}]
[]
[]
[null,null,null,null,null,null,"Bestätigung durch das Unternehmen"]
[null,null,null,null,null,null,"Ort, Datum",null,null,null,null,null,null,null,null,null,null,null,null,null,null,null,null,null,null,null,null,null,null,null,null,null,null,null,null,null,null,null,null,null,null,null,null,null,null,null,null,null,null,null,null,null,null,null,null,null,null,null,null,null,null,null,"Stempel, Unterschrift des Unternehmens"]
[]
[]
[]
[]
[]
[null,null,null,null,null,null,"Bestätigung durch die Ausbildungsstelle"]
[]
[null,null,null,null,null,null,null," Abrechenbare Teilnehmeranzahl auf diesem Formular",null,null,null,null,null,null,null,null,null,null,null,null,null,null,null,null,null,null,null,null,null,null,null,null,null,null,null,null,null,null,null,null,null,null,null,null,null,null,null,null,null,null,null,null,null,null,null," Datum des Lehrgangs "]
[]
[null,null,null,null,null,null,null,{"$f":"IF(SUM(DN23:DN50),SUM(DN23:DN50),\"\")","v":""},null,null,null,null,null,null,null,null,null,null,null,null,null,null,null,null,null,null,null,null,null,null,null,null,null,null,null,null,null,null,null,null,null,null,null,null,null,null,null,null,null,null,null,null,null,null,null,null,{"$f":"IF(TNL!CD15<>\"\",CONCATENATE(TEXT(TNL!CD15,\"TT.MM.JJJJ\"),\" – \",TEXT(TNL!CV15,\"TT.MM.JJJJ\")),\"\")","v":""}]
[]
[null,null,null,null,null,null,null," Kennziffer der Ausbildungsstelle",null,null,null,null,null,null,null,null,null,null,null,null,null,null,null,null,null,null,null,null,null,null,null,null,null,null,null,null,null,null,null,null,null,null,null,null,null,null,null,null,null,null,null,null,null,null,null," Name der Lehrkraft "]
[]
[null,null,null,null,null,null,null,{"$f":"IF(TNL!ET15<>\"\",TNL!ET15,\"\")","v":""},null,null,null,null,null,null,null,null,null,null,null,null,null,null,null,null,null,null,null,null,null,null,null,null,null,null,null,null,null,null,null,null,null,null,null,null,null,null,null,null,null,null,null,null,null,null,null,null,{"$f":"IF(TNL!O19<>\"\",TNL!O19,\"\")","v":""}]
[]
[null,null,null,null,null,null,null," Registriernummer des Lehrgangs",null,null,null,null,null,null,null,null,null,null,null,null,null,null,null,null,null,null,null,null,null,null,null,null,null,null,null,null,null,null,null,null,null,null,null,null,null,null,null,null,null,null,null,null,null,null,null," Ort des Lehrgangs"]
[]
[null,null,null,null,null,null,null,{"$f":"IF(TNL!ET16<>\"\",TNL!ET16,\"\")","v":""},null,null,null,null,null,null,null,null,null,null,null,null,null,null,null,null,null,null,null,null,null,null,null,null,null,null,null,null,null,null,null,null,null,null,null,null,null,null,null,null,null,null,null,null,null,null,null,null,{"$f":"IF(TNL!BO9<>\"\",CONCATENATE(TNL!BO9,\" \",TNL!CC9),\"\")","v":""}]
[]
[null,null,null,null,null,null,null," Ort, Datum",null,null,null,null,null,null,null,null,null,null,null,null,null,null,null,null,null,null,null,null,null,null,null,null,null,null,null,null,null,null,null,null,null,null,null,null,null,null,null,null,null,null,null,null,null,null,null," Anschrift, Unterschift der Ausbildungsstelle"]
[]
[]
[null,null,null,null,null,null,null,{"$f":"IF(TNL!BV33<>\"\",TEXT(TNL!BV33,\"TT.MM.JJJJ\"),\"\")","v":""},null,null,null,null,null,null,null,null,null,null,null,null,null,null,null,null,null,null,null,null,null,null,null,null,null,null,null,null,null,null,null,null,null,null,null,null,null,null,null,null,null,null,null,null,null,null,null,{"$f":"IF(TNL!L9<>\"\",TNL!L9,\"\")","v":""}]
[null,null,null,null,null,null,null,null,null,null,null,null,null,null,null,null,null,null,null,null,null,null,null,null,null,null,null,null,null,null,null,null,null,null,null,null,null,null,null,null,null,null,null,null,null,null,null,null,null,null,null,null,null,null,null,{"$f":"IF(TNL!L10<>\"\",TNL!L10,\"\")","v":""}]
[null,null,null,null,null,null,null,null,null,null,null,null,null,null,null,null,null,null,null,null,null,null,null,null,null,null,null,null,null,null,null,null,null,null,null,null,null,null,null,null,null,null,null,null,null,null,null,null,null,null,null,null,null,null,null,{"$f":"IF(TNL!L11<>\"\",CONCATENATE(TNL!L11,\" \",TNL!W11),\"\")","v":""}]
[]
[]
[null,null,null,null,null,"Die personenbezogenen Daten werden aufgrund des § 199 Abs. 1 Nr. 5 i.V.m. § 23 SBG VII erhoben und gespeichert."]

{"sheet":"TNL-FeV","index":4,"n_rows":39,"n_cols":117,"rows_kept":39,"cut":false,"hidden":true,"merged":[[37,83,37,109],[38,6,38,28],[38,29,38,49],[38,50,38,61],[38,62,38,82],[38,83,38,109],[37,6,37,28],[37,29,37,49],[37,50,37,61],[37,62,37,82],[35,83,35,109],[36,6,36,28],[36,29,36,49],[36,50,36,61],[36,62,36,82],[36,83,36,109],[35,6,35,28],[35,29,35,49],[35,50,35,61],[35,62,35,82],[33,83,33,109],[34,6,34,28],[34,29,34,49],[34,50,34,61],[34,62,34,82],[34,83,34,109],[33,6,33,28],[33,29,33,49],[33,50,33,61],[33,62,33,82],[31,83,31,109],[32,6,32,28],[32,29,32,49],[32,50,32,61],[32,62,32,82],[32,83,32,109],[31,6,31,28],[31,29,31,49],[31,50,31,61],[31,62,31,82],[29,83,29,109],[30,29,30,49],[30,50,30,61],[30,62,30,82],[30,83,30,109],[29,6,29,28],[29,29,29,49],[29,50,29,61],[29,62,29,82],[27,83,27,109],[28,29,28,49],[28,50,28,61],[28,62,28,82],[28,83,28,109],[27,6,27,28],[27,29,27,49],[27,50,27,61],[27,62,27,82],[24,29,24,49],[24,50,24,61],[24,62,24,82],[24,83,24,109],[23,29,23,49],[23,50,23,61],[23,62,23,82],[23,83,23,109],[26,29,26,49],[26,50,26,61],[26,62,26,82],[26,83,26,109],[25,29,25,49],[25,50,25,61],[25,62,25,82],[25,83,25,109],[30,2,30,5],[31,2,31,5],[24,2,24,5],[25,2,25,5],[26,2,26,5],[27,2,27,5],[38,2,38,5],[20,6,20,28],[21,6,21,28],[22,6,22,28],[23,6,23,28],[24,6,24,28],[25,6,25,28],[26,6,26,28],[32,2,32,5],[33,2,33,5],[36,2,36,5],[37,2,37,5],[34,2,34,5],[35,2,35,5],[28,2,28,5],[29,2,29,5],[28,6,28,28],[30,6,30,28],[20,2,20,5],[21,2,21,5],[22,2,22,5],[23,2,23,5],[12,45,12,109],[13,45,13,109],[14,2,14,109],[20,29,20,49],[20,50,20,61],[20,62,20,82],[20,83,20,109],[22,29,22,49],[22,50,22,61],[22,62,22,82],[22,83,22,109],[21,29,21,49],[21,50,21,61],[21,62,21,82],[21,83,21,109],[19,29,19,49],[19,50,19,61],[19,62,19,82],[19,2,19,5],[19,6,19,28],[10,44,10,49],[10,50,10,76],[11,45,11,47],[15,83,15,109],[16,84,18,108],[15,7,16,27],[11,55,11,57],[11,48,11,54],[2,2,2,109],[3,2,3,109],[4,2,4,43],[8,2,8,43],[7,2,7,43],[7,44,7,51],[7,52,7,76],[8,45,8,109],[5,2,5,43],[4,45,4,109],[5,45,5,109],[9,2,9,43],[19,83,19,109],[6,2,6,109],[7,100,7,109],[7,96,7,99],[7,77,7,79],[7,80,7,95],[11,58,11,76],[12,2,12,43],[13,2,13,43],[11,77,11,82],[11,83,11,109],[10,77,10,82],[10,83,10,109],[10,2,10,43],[11,2,11,43],[15,2,18,5],[17,7,18,27],[15,30,16,48],[17,30,18,48],[15,51,16,60],[17,51,18,60],[15,63,16,81],[17,63,18,81],[9,45,9,109]]}
[{"$f":"IF(Data!A3<>0,Data!A3,0)","v":0},null,null,null,null,null,null,null,null,null,null,null,null,null,null,null,null,null,null,null,null,null,null,null,null,null,null,null,null,null,null,null,null,null,null,null,null,null,null,null,null,null,null,null,null,null,null,null,null,null,null,null,null,null,null,null,null,null,null,null,null,null,null,null,null,null,null,null,null,null,null,null,null,null,null,null,null,null,null,null,null,null,null,null,null,null,null,null,null,null,null,null,null,null,null,null,null,null,null,null,null,null,null,null,null,null,null,null,null,null,null,null,{"$f":"IF(TNL!AD3<>\"\",1,0)","v":0},null,{"$f":"TNL!L11","v":0},{"$f":"TNL!W11","v":0},{"$f":"TNL!L10","v":0}]
[{"$f":"IF(Data!A4<>0,Data!A4,0)","v":0},null,null,null,null,null,null,null,null,null,null,null,null,null,null,null,null,null,null,null,null,null,null,null,null,null,null,null,null,null,null,null,null,null,null,null,null,null,null,null,null,null,null,null,null,null,null,null,null,null,null,null,null,null,null,null,null,null,null,null,null,null,null,null,null,null,null,null,null,null,null,null,null,null,null,null,null,null,null,null,null,null,null,null,null,null,null,null,null,null,null,null,null,null,null,null,null,null,null,null,null,null,null,null,null,null,null,null,null,null,null,null,{"$f":"IF(TNL!DO7<>\"\",1,0)","v":0}]
[{"$f":"IF(Data!A5<>0,Data!A5,0)","v":0},null,{"$f":"IF(DI4<>1,\"Dokumentation einer Schulung in Erster Hilfe im Sinne des § 68 der Fahrerlaubnis-Verordnung\",\"\")","v":"Dokumentation einer Schulung in Erster Hilfe im Sinne des § 68 der Fahrerlaubnis-Verordnung"}]
[{"$f":"IF(Data!A6<>0,Data!A6,0)","v":0},null,{"$f":"IF(DI4<>1,\"I. Allgemeines\",\"\")","v":"I. Allgemeines"},null,null,null,null,null,null,null,null,null,null,null,null,null,null,null,null,null,null,null,null,null,null,null,null,null,null,null,null,null,null,null,null,null,null,null,null,null,null,null,null,null,null,null,null,null,null,null,null,null,null,null,null,null,null,null,null,null,null,null,null,null,null,null,null,null,null,null,null,null,null,null,null,null,null,null,null,null,null,null,null,null,null,null,null,null,null,null,null,null,null,null,null,null,null,null,null,null,null,null,null,null,null,null,null,null,null,null,null,null,{"$f":"SUM(DI1:DI3)","v":0}]
[{"$f":"IF(Data!A7<>0,Data!A7,0)","v":0},null,{"$f":"IF(DI4<>1,\" Name der anerkannten Ausbildungsstelle:\",\"\")","v":" Name der anerkannten Ausbildungsstelle:"},null,null,null,null,null,null,null,null,null,null,null,null,null,null,null,null,null,null,null,null,null,null,null,null,null,null,null,null,null,null,null,null,null,null,null,null,null,null,null,null,null,null,{"$f":"IF(DI4<>1,IF(TNL!L9<>\"\",TNL!L9,\"\"),\"\")","v":""}]
[{"$f":"IF(Data!A8<>0,Data!A8,0)","v":0},null,{"$f":"IF(DI4<>1,\" Adresse der Ausbildungsstelle (PLZ Ort, Straße):\",\"\")","v":" Adresse der Ausbildungsstelle (PLZ Ort, Straße):"},null,null,null,null,null,null,null,null,null,null,null,null,null,null,null,null,null,null,null,null,null,null,null,null,null,null,null,null,null,null,null,null,null,null,null,null,null,null,null,null,null,null,{"$f":"IF(DI4<>1,DI6,\"\")","v":""},null,null,null,null,null,null,null,null,null,null,null,null,null,null,null,null,null,null,null,null,null,null,null,null,null,null,null,null,null,null,null,null,null,null,null,null,null,null,null,null,null,null,null,null,null,null,null,null,null,null,null,null,null,null,null,null,null,null,null,null,null,null,null,null,null,null,{"$f":"IF(DK1<>0,CONCATENATE(TEXT(DK1,\"00000 \"),DL1,\", \",DM1),\"\")","v":""}]
[{"$f":"IF(Data!A9<>0,Data!A9,0)","v":0}]
[{"$f":"IF(Data!A10<>0,Data!A10,0)","v":0},null,{"$f":"IF(DI4<>1,\" Anerkannte Stelle: Anerkannt durch, AZ, am\",\"\")","v":" Anerkannte Stelle: Anerkannt durch, AZ, am"},null,null,null,null,null,null,null,null,null,null,null,null,null,null,null,null,null,null,null,null,null,null,null,null,null,null,null,null,null,null,null,null,null,null,null,null,null,null,null,null,null,{"$f":"IF(DI4<>1,\"Behörde:\",\"\")","v":"Behörde:"},null,null,null,null,null,null,null,{"$f":"IF(DI4<>1,IF(TNL!ED9<>\"\",TNL!ED9,\"\"),\"\")","v":""},null,null,null,null,null,null,null,null,null,null,null,null,null,null,null,null,null,null,null,null,null,null,null,null,{"$f":"IF(DI4<>1,\"AZ:\",\"\")","v":"AZ:"},null,null,{"$f":"IF(DI4<>1,IF(TNL!ED10<>\"\",TNL!ED10,\"\"),\"\")","v":""},null,null,null,null,null,null,null,null,null,null,null,null,null,null,null,{"$f":"IF(DI4<>1,\"am:\",\"\")","v":"am:"},null,null,null,{"$f":"IF(DI4<>1,IF(TNL!ED11<>\"\",TEXT(TNL!ED11,\"TT.MM.JJJJ\"),\"\"),\"\")","v":""}]
[{"$f":"IF(Data!A11<>0,Data!A11,0)","v":0},null,{"$f":"IF(DI4<>1,\" Art der Schulungsmaßnahme:\",\"\")","v":" Art der Schulungsmaßnahme:"},null,null,null,null,null,null,null,null,null,null,null,null,null,null,null,null,null,null,null,null,null,null,null,null,null,null,null,null,null,null,null,null,null,null,null,null,null,null,null,null,null,null,{"$f":"IF(DI4<>1,\"Erste Hilfe im Sinne des § 68 der Fahrerlaubnis-Verordnung\",\"\")","v":"Erste Hilfe im Sinne des § 68 der Fahrerlaubnis-Verordnung"}]
[{"$f":"IF(Data!A12<>0,Data!A12,0)","v":0},null,{"$f":"IF(DI4<>1,\" Ort = Raum, genaue Bezeichnung (PLZ Ort, Straße):\",\"\")","v":" Ort = Raum, genaue Bezeichnung (PLZ Ort, Straße):"},null,null,null,null,null,null,null,null,null,null,null,null,null,null,null,null,null,null,null,null,null,null,null,null,null,null,null,null,null,null,null,null,null,null,null,null,null,null,null,null,null,null,{"$f":"IF(DI4<>1,CONCATENATE(TEXT(TNL!BO9,\"00000 \"),TNL!CC9,\", \",TNL!BQ10),\"\")","v":"00000 , "}]
[{"$f":"IF(Data!A13<>0,Data!A13,0)","v":0},null,{"$f":"IF(DI4<>1,\" Datum und Dauer, von Uhrzeit – bis Uhrzeit:\",\"\")","v":" Datum und Dauer, von Uhrzeit – bis Uhrzeit:"},null,null,null,null,null,null,null,null,null,null,null,null,null,null,null,null,null,null,null,null,null,null,null,null,null,null,null,null,null,null,null,null,null,null,null,null,null,null,null,null,null,{"$f":"IF(DI4<>1,\"Datum:\",\"\")","v":"Datum:"},null,null,null,null,null,{"$f":"IF(DI4<>1,CONCATENATE(TEXT(TNL!CD15,\"TT.MM.JJJJ\"),\" – \",TEXT(TNL!CV15,\"TT.MM.JJJJ\")),\"\")","v":"00.01.1900 – 00.01.1900"},null,null,null,null,null,null,null,null,null,null,null,null,null,null,null,null,null,null,null,null,null,null,null,null,null,null,{"$f":"IF(DI4<>1,\"Uhrzeit:\",\"\")","v":"Uhrzeit:"},null,null,null,null,null,{"$f":"IF(DI4<>1,IF(TNL!CD16<>\"\",CONCATENATE(TEXT(TNL!CD16,\"HH:MM\"),\" – \",TEXT(TNL!CV16,\"HH:mm\"),\" Uhr\"),\"\"),\"\")","v":""}]
[{"$f":"IF(Data!A14<>0,Data!A14,0)","v":0},null,{"$f":"IF(DI4<>1,\" Informationsschrift wurde ausgehändigt:\",\"\")","v":" Informationsschrift wurde ausgehändigt:"},null,null,null,null,null,null,null,null,null,null,null,null,null,null,null,null,null,null,null,null,null,null,null,null,null,null,null,null,null,null,null,null,null,null,null,null,null,null,null,null,null,null,{"$f":"IF(DI4<>1,IF(TNL!CL13<>\"\",TNL!CL13,\"\"),\"\")","v":""},null,null,{"$f":"IF(DI4<>1,\" Ja\",\"\")","v":" Ja"},null,null,null,null,null,null,{"$f":"IF(DI4<>1,IF(TNL!CV13<>\"\",TNL!CV13,\"\"),\"\")","v":""},null,null,{"$f":"IF(DI4<>1,\" Nein\",\"\")","v":" Nein"},null,null,null,null,null,null,null,null,null,null,null,null,null,null,null,null,null,null,{"$f":"IF(DI4<>1,\"Lg-Nr.:\",\"\")","v":"Lg-Nr.:"},null,null,null,null,null,{"$f":"IF(DI4<>1,IF(TNL!CI19<>\"\",TNL!CI19,\"\"),\"\")","v":""}]
[{"$f":"IF(Data!A15<>0,Data!A15,0)","v":0},null,{"$f":"IF(DI4<>1,\" Name, Vorname der Lehrkraft/Ausbilders:\",\"\")","v":" Name, Vorname der Lehrkraft/Ausbilders:"},null,null,null,null,null,null,null,null,null,null,null,null,null,null,null,null,null,null,null,null,null,null,null,null,null,null,null,null,null,null,null,null,null,null,null,null,null,null,null,null,null,null,{"$f":"IF(DI4<>1,IF(TNL!O19<>\"\",TNL!O19,\"\"),\"\")","v":""}]
[{"$f":"IF(Data!A16<>0,Data!A16,0)","v":0},null,{"$f":"IF(DI4<>1,\" Ggf. Name, Vorname der Ausbildungshelfers:\",\"\")","v":" Ggf. Name, Vorname der Ausbildungshelfers:"},null,null,null,null,null,null,null,null,null,null,null,null,null,null,null,null,null,null,null,null,null,null,null,null,null,null,null,null,null,null,null,null,null,null,null,null,null,null,null,null,null,null,{"$f":"IF(DI4<>1,IF(TNL!O22<>\"\",TNL!O22,\"\"),\"\")","v":""}]
[{"$f":"IF(Data!A17<>0,Data!A17,0)","v":0},null,{"$f":"IF(DI4<>1,\"II. Teilnehmerdaten\",\"\")","v":"II. Teilnehmerdaten"}]
[{"$f":"IF(Data!A18<>0,Data!A18,0)","v":0},null,{"$f":"IF(DI4<>1,CONCATENATE(\"Lfd.\",CHAR(10),\"Nr.\"),\"\")","v":"Lfd.\nNr."},null,null,null,null,{"$f":"IF(DI4<>1,\"Name\",\"\")","v":"Name"},null,null,null,null,null,null,null,null,null,null,null,null,null,null,null,null,null,null,null,null,null,null,{"$f":"IF(DI4<>1,\"Vorname\",\"\")","v":"Vorname"},null,null,null,null,null,null,null,null,null,null,null,null,null,null,null,null,null,null,null,null,{"$f":"IF(DI4<>1,\"Geburts-\",\"\")","v":"Geburts-"},null,null,null,null,null,null,null,null,null,null,null,{"$f":"IF(DI4<>1,\"Wohnhaft\",\"\")","v":"Wohnhaft"},null,null,null,null,null,null,null,null,null,null,null,null,null,null,null,null,null,null,null,{"$f":"IF(DI4<>1,\"Unterschrift des Teilnehmers=\",\"\")","v":"Unterschrift des Teilnehmers="}]
[{"$f":"IF(Data!A19<>0,Data!A19,0)","v":0},null,null,null,null,null,null,null,null,null,null,null,null,null,null,null,null,null,null,null,null,null,null,null,null,null,null,null,null,null,null,null,null,null,null,null,null,null,null,null,null,null,null,null,null,null,null,null,null,null,null,null,null,null,null,null,null,null,null,null,null,null,null,null,null,null,null,null,null,null,null,null,null,null,null,null,null,null,null,null,null,null,null,null,{"$f":"IF(DI4<>1,\"Ich bestätige die o.a. Angaben zu I, die Angaben zu meiner Person, meine Teilnehme sowie den Erhalt einer Info-Schrift zur Ersten Hilfe und der Teilnahmebescheinigung.\",\"\")","v":"Ich bestätige die o.a. Angaben zu I, die Angaben zu meiner Person, meine Teilnehme sowie den Erhalt einer Info-Schrift zur Ersten Hilfe und der Teilnahmebescheinigung."}]
[{"$f":"IF(Data!A20<>0,Data!A20,0)","v":0},null,null,null,null,null,null,{"$f":"IF(DI4<>1,\"in Druckbuchstaben\",\"\")","v":"in Druckbuchstaben"},null,null,null,null,null,null,null,null,null,null,null,null,null,null,null,null,null,null,null,null,null,null,{"$f":"IF(DI4<>1,\"in Druckbuchstaben\",\"\")","v":"in Druckbuchstaben"},null,null,null,null,null,null,null,null,null,null,null,null,null,null,null,null,null,null,null,null,{"$f":"IF(DI4<>1,\"datum\",\"\")","v":"datum"},null,null,null,null,null,null,null,null,null,null,null,{"$f":"IF(DI4<>1,\"in Druckbuchstaben\",\"\")","v":"in Druckbuchstaben"}]
[{"$f":"IF(Data!A21<>0,Data!A21,0)","v":0}]
[{"$f":"IF(Data!A22<>0,Data!A22,0)","v":0},null,{"$f":"IF($DI$4<>1,1,\"\")","v":1},null,null,null,{"$f":"IF($DI$4<>1,IF(A1<>0,VLOOKUP(A1,Data!$B$3:$N$22,3,FALSE),\"\"),\"\")","v":""},null,null,null,null,null,null,null,null,null,null,null,null,null,null,null,null,null,null,null,null,null,null,{"$f":"IF($DI$4<>1,IF(A1<>0,VLOOKUP(A1,Data!$B$3:$N$22,4,FALSE),\"\"),\"\")","v":""},null,null,null,null,null,null,null,null,null,null,null,null,null,null,null,null,null,null,null,null,{"$f":"IF($DI$4<>1,IF(A1<>0,VLOOKUP(A1,Data!$B$3:$N$22,5,FALSE),\"\"),\"\")","v":""},null,null,null,null,null,null,null,null,null,null,null,{"$f":"IF($DI$4<>1,IF(A1<>0,CONCATENATE(DI20,\" | \",DJ20),\"\"),\"\")","v":""},null,null,null,null,null,null,null,null,null,null,null,null,null,null,null,null,null,null,null,null,null,null,null,null,null,null,null,null,null,null,null,null,null,null,null,null,null,null,null,null,null,null,null,null,null,null,null,null,null,{"$f":"IF(A1<>0,VLOOKUP(A1,Data!$B$3:$N$22,6,FALSE),\"\")","v":""},{"$f":"IF(A1<>0,VLOOKUP(A1,Data!$B$3:$N$22,7,FALSE),\"\")","v":""}]
[null,null,{"$f":"IF($DI$4<>1,2,\"\")","v":2},null,null,null,{"$f":"IF($DI$4<>1,IF(A2<>0,VLOOKUP(A2,Data!$B$3:$N$22,3,FALSE),\"\"),\"\")","v":""},null,null,null,null,null,null,null,null,null,null,null,null,null,null,null,null,null,null,null,null,null,null,{"$f":"IF($DI$4<>1,IF(A2<>0,VLOOKUP(A2,Data!$B$3:$N$22,4,FALSE),\"\"),\"\")","v":""},null,null,null,null,null,null,null,null,null,null,null,null,null,null,null,null,null,null,null,null,{"$f":"IF($DI$4<>1,IF(A2<>0,VLOOKUP(A2,Data!$B$3:$N$22,5,FALSE),\"\"),\"\")","v":""},null,null,null,null,null,null,null,null,null,null,null,{"$f":"IF($DI$4<>1,IF(A2<>0,CONCATENATE(DI21,\" | \",DJ21),\"\"),\"\")","v":""},null,null,null,null,null,null,null,null,null,null,null,null,null,null,null,null,null,null,null,null,null,null,null,null,null,null,null,null,null,null,null,null,null,null,null,null,null,null,null,null,null,null,null,null,null,null,null,null,null,{"$f":"IF(A2<>0,VLOOKUP(A2,Data!$B$3:$N$22,6,FALSE),\"\")","v":""},{"$f":"IF(A2<>0,VLOOKUP(A2,Data!$B$3:$N$22,7,FALSE),\"\")","v":""}]
[null,null,{"$f":"IF($DI$4<>1,3,\"\")","v":3},null,null,null,{"$f":"IF($DI$4<>1,IF(A3<>0,VLOOKUP(A3,Data!$B$3:$N$22,3,FALSE),\"\"),\"\")","v":""},null,null,null,null,null,null,null,null,null,null,null,null,null,null,null,null,null,null,null,null,null,null,{"$f":"IF($DI$4<>1,IF(A3<>0,VLOOKUP(A3,Data!$B$3:$N$22,4,FALSE),\"\"),\"\")","v":""},null,null,null,null,null,null,null,null,null,null,null,null,null,null,null,null,null,null,null,null,{"$f":"IF($DI$4<>1,IF(A3<>0,VLOOKUP(A3,Data!$B$3:$N$22,5,FALSE),\"\"),\"\")","v":""},null,null,null,null,null,null,null,null,null,null,null,"",null,null,null,null,null,null,null,null,null,null,null,null,null,null,null,null,null,null,null,null,null,null,null,null,null,null,null,null,null,null,null,null,null,null,null,null,null,null,null,null,null,null,null,null,null,null,null,null,null,{"$f":"IF(A3<>0,VLOOKUP(A3,Data!$B$3:$N$22,6,FALSE),\"\")","v":""},{"$f":"IF(A3<>0,VLOOKUP(A3,Data!$B$3:$N$22,7,FALSE),\"\")","v":""}]
[null,null,{"$f":"IF($DI$4<>1,4,\"\")","v":4},null,null,null,{"$f":"IF($DI$4<>1,IF(A4<>0,VLOOKUP(A4,Data!$B$3:$N$22,3,FALSE),\"\"),\"\")","v":""},null,null,null,null,null,null,null,null,null,null,null,null,null,null,null,null,null,null,null,null,null,null,{"$f":"IF($DI$4<>1,IF(A4<>0,VLOOKUP(A4,Data!$B$3:$N$22,4,FALSE),\"\"),\"\")","v":""},null,null,null,null,null,null,null,null,null,null,null,null,null,null,null,null,null,null,null,null,{"$f":"IF($DI$4<>1,IF(A4<>0,VLOOKUP(A4,Data!$B$3:$N$22,5,FALSE),\"\"),\"\")","v":""},null,null,null,null,null,null,null,null,null,null,null,"",null,null,null,null,null,null,null,null,null,null,null,null,null,null,null,null,null,null,null,null,null,null,null,null,null,null,null,null,null,null,null,null,null,null,null,null,null,null,null,null,null,null,null,null,null,null,null,null,null,{"$f":"IF(A4<>0,VLOOKUP(A4,Data!$B$3:$N$22,6,FALSE),\"\")","v":""},{"$f":"IF(A4<>0,VLOOKUP(A4,Data!$B$3:$N$22,7,FALSE),\"\")","v":""}]
[null,null,{"$f":"IF($DI$4<>1,5,\"\")","v":5},null,null,null,{"$f":"IF($DI$4<>1,IF(A5<>0,VLOOKUP(A5,Data!$B$3:$N$22,3,FALSE),\"\"),\"\")","v":""},null,null,null,null,null,null,null,null,null,null,null,null,null,null,null,null,null,null,null,null,null,null,{"$f":"IF($DI$4<>1,IF(A5<>0,VLOOKUP(A5,Data!$B$3:$N$22,4,FALSE),\"\"),\"\")","v":""},null,null,null,null,null,null,null,null,null,null,null,null,null,null,null,null,null,null,null,null,{"$f":"IF($DI$4<>1,IF(A5<>0,VLOOKUP(A5,Data!$B$3:$N$22,5,FALSE),\"\"),\"\")","v":""},null,null,null,null,null,null,null,null,null,null,null,"",null,null,null,null,null,null,null,null,null,null,null,null,null,null,null,null,null,null,null,null,null,null,null,null,null,null,null,null,null,null,null,null,null,null,null,null,null,null,null,null,null,null,null,null,null,null,null,null,null,{"$f":"IF(A5<>0,VLOOKUP(A5,Data!$B$3:$N$22,6,FALSE),\"\")","v":""},{"$f":"IF(A5<>0,VLOOKUP(A5,Data!$B$3:$N$22,7,FALSE),\"\")","v":""}]
[null,null,{"$f":"IF($DI$4<>1,6,\"\")","v":6},null,null,null,{"$f":"IF($DI$4<>1,IF(A6<>0,VLOOKUP(A6,Data!$B$3:$N$22,3,FALSE),\"\"),\"\")","v":""},null,null,null,null,null,null,null,null,null,null,null,null,null,null,null,null,null,null,null,null,null,null,{"$f":"IF($DI$4<>1,IF(A6<>0,VLOOKUP(A6,Data!$B$3:$N$22,4,FALSE),\"\"),\"\")","v":""},null,null,null,null,null,null,null,null,null,null,null,null,null,null,null,null,null,null,null,null,{"$f":"IF($DI$4<>1,IF(A6<>0,VLOOKUP(A6,Data!$B$3:$N$22,5,FALSE),\"\"),\"\")","v":""},null,null,null,null,null,null,null,null,null,null,null,"",null,null,null,null,null,null,null,null,null,null,null,null,null,null,null,null,null,null,null,null,null,null,null,null,null,null,null,null,null,null,null,null,null,null,null,null,null,null,null,null,null,null,null,null,null,null,null,null,null,{"$f":"IF(A6<>0,VLOOKUP(A6,Data!$B$3:$N$22,6,FALSE),\"\")","v":""},{"$f":"IF(A6<>0,VLOOKUP(A6,Data!$B$3:$N$22,7,FALSE),\"\")","v":""}]
[null,null,{"$f":"IF($DI$4<>1,7,\"\")","v":7},null,null,null,{"$f":"IF($DI$4<>1,IF(A7<>0,VLOOKUP(A7,Data!$B$3:$N$22,3,FALSE),\"\"),\"\")","v":""},null,null,null,null,null,null,null,null,null,null,null,null,null,null,null,null,null,null,null,null,null,null,{"$f":"IF($DI$4<>1,IF(A7<>0,VLOOKUP(A7,Data!$B$3:$N$22,4,FALSE),\"\"),\"\")","v":""},null,null,null,null,null,null,null,null,null,null,null,null,null,null,null,null,null,null,null,null,{"$f":"IF($DI$4<>1,IF(A7<>0,VLOOKUP(A7,Data!$B$3:$N$22,5,FALSE),\"\"),\"\")","v":""},null,null,null,null,null,null,null,null,null,null,null,"",null,null,null,null,null,null,null,null,null,null,null,null,null,null,null,null,null,null,null,null,null,null,null,null,null,null,null,null,null,null,null,null,null,null,null,null,null,null,null,null,null,null,null,null,null,null,null,null,null,{"$f":"IF(A7<>0,VLOOKUP(A7,Data!$B$3:$N$22,6,FALSE),\"\")","v":""},{"$f":"IF(A7<>0,VLOOKUP(A7,Data!$B$3:$N$22,7,FALSE),\"\")","v":""}]
[null,null,{"$f":"IF($DI$4<>1,8,\"\")","v":8},null,null,null,{"$f":"IF($DI$4<>1,IF(A8<>0,VLOOKUP(A8,Data!$B$3:$N$22,3,FALSE),\"\"),\"\")","v":""},null,null,null,null,null,null,null,null,null,null,null,null,null,null,null,null,null,null,null,null,null,null,{"$f":"IF($DI$4<>1,IF(A8<>0,VLOOKUP(A8,Data!$B$3:$N$22,4,FALSE),\"\"),\"\")","v":""},null,null,null,null,null,null,null,null,null,null,null,null,null,null,null,null,null,null,null,null,{"$f":"IF($DI$4<>1,IF(A8<>0,VLOOKUP(A8,Data!$B$3:$N$22,5,FALSE),\"\"),\"\")","v":""},null,null,null,null,null,null,null,null,null,null,null,"",null,null,null,null,null,null,null,null,null,null,null,null,null,null,null,null,null,null,null,null,null,null,null,null,null,null,null,null,null,null,null,null,null,null,null,null,null,null,null,null,null,null,null,null,null,null,null,null,null,{"$f":"IF(A8<>0,VLOOKUP(A8,Data!$B$3:$N$22,6,FALSE),\"\")","v":""},{"$f":"IF(A8<>0,VLOOKUP(A8,Data!$B$3:$N$22,7,FALSE),\"\")","v":""}]
[null,null,{"$f":"IF($DI$4<>1,9,\"\")","v":9},null,null,null,{"$f":"IF($DI$4<>1,IF(A9<>0,VLOOKUP(A9,Data!$B$3:$N$22,3,FALSE),\"\"),\"\")","v":""},null,null,null,null,null,null,null,null,null,null,null,null,null,null,null,null,null,null,null,null,null,null,{"$f":"IF($DI$4<>1,IF(A9<>0,VLOOKUP(A9,Data!$B$3:$N$22,4,FALSE),\"\"),\"\")","v":""},null,null,null,null,null,null,null,null,null,null,null,null,null,null,null,null,null,null,null,null,{"$f":"IF($DI$4<>1,IF(A9<>0,VLOOKUP(A9,Data!$B$3:$N$22,5,FALSE),\"\"),\"\")","v":""},null,null,null,null,null,null,null,null,null,null,null,"",null,null,null,null,null,null,null,null,null,null,null,null,null,null,null,null,null,null,null,null,null,null,null,null,null,null,null,null,null,null,null,null,null,null,null,null,null,null,null,null,null,null,null,null,null,null,null,null,null,{"$f":"IF(A9<>0,VLOOKUP(A9,Data!$B$3:$N$22,6,FALSE),\"\")","v":""},{"$f":"IF(A9<>0,VLOOKUP(A9,Data!$B$3:$N$22,7,FALSE),\"\")","v":""}]
[null,null,{"$f":"IF($DI$4<>1,10,\"\")","v":10},null,null,null,{"$f":"IF($DI$4<>1,IF(A10<>0,VLOOKUP(A10,Data!$B$3:$N$22,3,FALSE),\"\"),\"\")","v":""},null,null,null,null,null,null,null,null,null,null,null,null,null,null,null,null,null,null,null,null,null,null,{"$f":"IF($DI$4<>1,IF(A10<>0,VLOOKUP(A10,Data!$B$3:$N$22,4,FALSE),\"\"),\"\")","v":""},null,null,null,null,null,null,null,null,null,null,null,null,null,null,null,null,null,null,null,null,{"$f":"IF($DI$4<>1,IF(A10<>0,VLOOKUP(A10,Data!$B$3:$N$22,5,FALSE),\"\"),\"\")","v":""},null,null,null,null,null,null,null,null,null,null,null,"",null,null,null,null,null,null,null,null,null,null,null,null,null,null,null,null,null,null,null,null,null,null,null,null,null,null,null,null,null,null,null,null,null,null,null,null,null,null,null,null,null,null,null,null,null,null,null,null,null,{"$f":"IF(A10<>0,VLOOKUP(A10,Data!$B$3:$N$22,6,FALSE),\"\")","v":""},{"$f":"IF(A10<>0,VLOOKUP(A10,Data!$B$3:$N$22,7,FALSE),\"\")","v":""}]
[null,null,{"$f":"IF($DI$4<>1,11,\"\")","v":11},null,null,null,{"$f":"IF($DI$4<>1,IF(A11<>0,VLOOKUP(A11,Data!$B$3:$N$22,3,FALSE),\"\"),\"\")","v":""},null,null,null,null,null,null,null,null,null,null,null,null,null,null,null,null,null,null,null,null,null,null,{"$f":"IF($DI$4<>1,IF(A11<>0,VLOOKUP(A11,Data!$B$3:$N$22,4,FALSE),\"\"),\"\")","v":""},null,null,null,null,null,null,null,null,null,null,null,null,null,null,null,null,null,null,null,null,{"$f":"IF($DI$4<>1,IF(A11<>0,VLOOKUP(A11,Data!$B$3:$N$22,5,FALSE),\"\"),\"\")","v":""},null,null,null,null,null,null,null,null,null,null,null,"",null,null,null,null,null,null,null,null,null,null,null,null,null,null,null,null,null,null,null,null,null,null,null,null,null,null,null,null,null,null,null,null,null,null,null,null,null,null,null,null,null,null,null,null,null,null,null,null,null,{"$f":"IF(A11<>0,VLOOKUP(A11,Data!$B$3:$N$22,6,FALSE),\"\")","v":""},{"$f":"IF(A11<>0,VLOOKUP(A11,Data!$B$3:$N$22,7,FALSE),\"\")","v":""}]
[null,null,{"$f":"IF($DI$4<>1,12,\"\")","v":12},null,null,null,{"$f":"IF($DI$4<>1,IF(A12<>0,VLOOKUP(A12,Data!$B$3:$N$22,3,FALSE),\"\"),\"\")","v":""},null,null,null,null,null,null,null,null,null,null,null,null,null,null,null,null,null,null,null,null,null,null,{"$f":"IF($DI$4<>1,IF(A12<>0,VLOOKUP(A12,Data!$B$3:$N$22,4,FALSE),\"\"),\"\")","v":""},null,null,null,null,null,null,null,null,null,null,null,null,null,null,null,null,null,null,null,null,{"$f":"IF($DI$4<>1,IF(A12<>0,VLOOKUP(A12,Data!$B$3:$N$22,5,FALSE),\"\"),\"\")","v":""},null,null,null,null,null,null,null,null,null,null,null,"",null,null,null,null,null,null,null,null,null,null,null,null,null,null,null,null,null,null,null,null,null,null,null,null,null,null,null,null,null,null,null,null,null,null,null,null,null,null,null,null,null,null,null,null,null,null,null,null,null,{"$f":"IF(A12<>0,VLOOKUP(A12,Data!$B$3:$N$22,6,FALSE),\"\")","v":""},{"$f":"IF(A12<>0,VLOOKUP(A12,Data!$B$3:$N$22,7,FALSE),\"\")","v":""}]
[null,null,{"$f":"IF($DI$4<>1,13,\"\")","v":13},null,null,null,{"$f":"IF($DI$4<>1,IF(A13<>0,VLOOKUP(A13,Data!$B$3:$N$22,3,FALSE),\"\"),\"\")","v":""},null,null,null,null,null,null,null,null,null,null,null,null,null,null,null,null,null,null,null,null,null,null,{"$f":"IF($DI$4<>1,IF(A13<>0,VLOOKUP(A13,Data!$B$3:$N$22,4,FALSE),\"\"),\"\")","v":""},null,null,null,null,null,null,null,null,null,null,null,null,null,null,null,null,null,null,null,null,{"$f":"IF($DI$4<>1,IF(A13<>0,VLOOKUP(A13,Data!$B$3:$N$22,5,FALSE),\"\"),\"\")","v":""},null,null,null,null,null,null,null,null,null,null,null,"",null,null,null,null,null,null,null,null,null,null,null,null,null,null,null,null,null,null,null,null,null,null,null,null,null,null,null,null,null,null,null,null,null,null,null,null,null,null,null,null,null,null,null,null,null,null,null,null,null,{"$f":"IF(A13<>0,VLOOKUP(A13,Data!$B$3:$N$22,6,FALSE),\"\")","v":""},{"$f":"IF(A13<>0,VLOOKUP(A13,Data!$B$3:$N$22,7,FALSE),\"\")","v":""}]
[null,null,{"$f":"IF($DI$4<>1,14,\"\")","v":14},null,null,null,{"$f":"IF($DI$4<>1,IF(A14<>0,VLOOKUP(A14,Data!$B$3:$N$22,3,FALSE),\"\"),\"\")","v":""},null,null,null,null,null,null,null,null,null,null,null,null,null,null,null,null,null,null,null,null,null,null,{"$f":"IF($DI$4<>1,IF(A14<>0,VLOOKUP(A14,Data!$B$3:$N$22,4,FALSE),\"\"),\"\")","v":""},null,null,null,null,null,null,null,null,null,null,null,null,null,null,null,null,null,null,null,null,{"$f":"IF($DI$4<>1,IF(A14<>0,VLOOKUP(A14,Data!$B$3:$N$22,5,FALSE),\"\"),\"\")","v":""},null,null,null,null,null,null,null,null,null,null,null,"",null,null,null,null,null,null,null,null,null,null,null,null,null,null,null,null,null,null,null,null,null,null,null,null,null,null,null,null,null,null,null,null,null,null,null,null,null,null,null,null,null,null,null,null,null,null,null,null,null,{"$f":"IF(A14<>0,VLOOKUP(A14,Data!$B$3:$N$22,6,FALSE),\"\")","v":""},{"$f":"IF(A14<>0,VLOOKUP(A14,Data!$B$3:$N$22,7,FALSE),\"\")","v":""}]
[null,null,{"$f":"IF($DI$4<>1,15,\"\")","v":15},null,null,null,{"$f":"IF($DI$4<>1,IF(A15<>0,VLOOKUP(A15,Data!$B$3:$N$22,3,FALSE),\"\"),\"\")","v":""},null,null,null,null,null,null,null,null,null,null,null,null,null,null,null,null,null,null,null,null,null,null,{"$f":"IF($DI$4<>1,IF(A15<>0,VLOOKUP(A15,Data!$B$3:$N$22,4,FALSE),\"\"),\"\")","v":""},null,null,null,null,null,null,null,null,null,null,null,null,null,null,null,null,null,null,null,null,{"$f":"IF($DI$4<>1,IF(A15<>0,VLOOKUP(A15,Data!$B$3:$N$22,5,FALSE),\"\"),\"\")","v":""},null,null,null,null,null,null,null,null,null,null,null,"",null,null,null,null,null,null,null,null,null,null,null,null,null,null,null,null,null,null,null,null,null,null,null,null,null,null,null,null,null,null,null,null,null,null,null,null,null,null,null,null,null,null,null,null,null,null,null,null,null,{"$f":"IF(A15<>0,VLOOKUP(A15,Data!$B$3:$N$22,6,FALSE),\"\")","v":""},{"$f":"IF(A15<>0,VLOOKUP(A15,Data!$B$3:$N$22,7,FALSE),\"\")","v":""}]
[null,null,{"$f":"IF($DI$4<>1,16,\"\")","v":16},null,null,null,{"$f":"IF($DI$4<>1,IF(A16<>0,VLOOKUP(A16,Data!$B$3:$N$22,3,FALSE),\"\"),\"\")","v":""},null,null,null,null,null,null,null,null,null,null,null,null,null,null,null,null,null,null,null,null,null,null,{"$f":"IF($DI$4<>1,IF(A16<>0,VLOOKUP(A16,Data!$B$3:$N$22,4,FALSE),\"\"),\"\")","v":""},null,null,null,null,null,null,null,null,null,null,null,null,null,null,null,null,null,null,null,null,{"$f":"IF($DI$4<>1,IF(A16<>0,VLOOKUP(A16,Data!$B$3:$N$22,5,FALSE),\"\"),\"\")","v":""},null,null,null,null,null,null,null,null,null,null,null,"",null,null,null,null,null,null,null,null,null,null,null,null,null,null,null,null,null,null,null,null,null,null,null,null,null,null,null,null,null,null,null,null,null,null,null,null,null,null,null,null,null,null,null,null,null,null,null,null,null,{"$f":"IF(A16<>0,VLOOKUP(A16,Data!$B$3:$N$22,6,FALSE),\"\")","v":""},{"$f":"IF(A16<>0,VLOOKUP(A16,Data!$B$3:$N$22,7,FALSE),\"\")","v":""}]
[null,null,{"$f":"IF($DI$4<>1,17,\"\")","v":17},null,null,null,{"$f":"IF($DI$4<>1,IF(A17<>0,VLOOKUP(A17,Data!$B$3:$N$22,3,FALSE),\"\"),\"\")","v":""},null,null,null,null,null,null,null,null,null,null,null,null,null,null,null,null,null,null,null,null,null,null,{"$f":"IF($DI$4<>1,IF(A17<>0,VLOOKUP(A17,Data!$B$3:$N$22,4,FALSE),\"\"),\"\")","v":""},null,null,null,null,null,null,null,null,null,null,null,null,null,null,null,null,null,null,null,null,{"$f":"IF($DI$4<>1,IF(A17<>0,VLOOKUP(A17,Data!$B$3:$N$22,5,FALSE),\"\"),\"\")","v":""},null,null,null,null,null,null,null,null,null,null,null,"",null,null,null,null,null,null,null,null,null,null,null,null,null,null,null,null,null,null,null,null,null,null,null,null,null,null,null,null,null,null,null,null,null,null,null,null,null,null,null,null,null,null,null,null,null,null,null,null,null,{"$f":"IF(A17<>0,VLOOKUP(A17,Data!$B$3:$N$22,6,FALSE),\"\")","v":""},{"$f":"IF(A17<>0,VLOOKUP(A17,Data!$B$3:$N$22,7,FALSE),\"\")","v":""}]
[null,null,{"$f":"IF($DI$4<>1,18,\"\")","v":18},null,null,null,{"$f":"IF($DI$4<>1,IF(A18<>0,VLOOKUP(A18,Data!$B$3:$N$22,3,FALSE),\"\"),\"\")","v":""},null,null,null,null,null,null,null,null,null,null,null,null,null,null,null,null,null,null,null,null,null,null,{"$f":"IF($DI$4<>1,IF(A18<>0,VLOOKUP(A18,Data!$B$3:$N$22,4,FALSE),\"\"),\"\")","v":""},null,null,null,null,null,null,null,null,null,null,null,null,null,null,null,null,null,null,null,null,{"$f":"IF($DI$4<>1,IF(A18<>0,VLOOKUP(A18,Data!$B$3:$N$22,5,FALSE),\"\"),\"\")","v":""},null,null,null,null,null,null,null,null,null,null,null,"",null,null,null,null,null,null,null,null,null,null,null,null,null,null,null,null,null,null,null,null,null,null,null,null,null,null,null,null,null,null,null,null,null,null,null,null,null,null,null,null,null,null,null,null,null,null,null,null,null,{"$f":"IF(A18<>0,VLOOKUP(A18,Data!$B$3:$N$22,6,FALSE),\"\")","v":""},{"$f":"IF(A18<>0,VLOOKUP(A18,Data!$B$3:$N$22,7,FALSE),\"\")","v":""}]
[null,null,{"$f":"IF($DI$4<>1,19,\"\")","v":19},null,null,null,{"$f":"IF($DI$4<>1,IF(A19<>0,VLOOKUP(A19,Data!$B$3:$N$22,3,FALSE),\"\"),\"\")","v":""},null,null,null,null,null,null,null,null,null,null,null,null,null,null,null,null,null,null,null,null,null,null,{"$f":"IF($DI$4<>1,IF(A19<>0,VLOOKUP(A19,Data!$B$3:$N$22,4,FALSE),\"\"),\"\")","v":""},null,null,null,null,null,null,null,null,null,null,null,null,null,null,null,null,null,null,null,null,{"$f":"IF($DI$4<>1,IF(A19<>0,VLOOKUP(A19,Data!$B$3:$N$22,5,FALSE),\"\"),\"\")","v":""},null,null,null,null,null,null,null,null,null,null,null,"",null,null,null,null,null,null,null,null,null,null,null,null,null,null,null,null,null,null,null,null,null,null,null,null,null,null,null,null,null,null,null,null,null,null,null,null,null,null,null,null,null,null,null,null,null,null,null,null,null,{"$f":"IF(A19<>0,VLOOKUP(A19,Data!$B$3:$N$22,6,FALSE),\"\")","v":""},{"$f":"IF(A19<>0,VLOOKUP(A19,Data!$B$3:$N$22,7,FALSE),\"\")","v":""}]
[null,null,{"$f":"IF($DI$4<>1,20,\"\")","v":20},null,null,null,{"$f":"IF($DI$4<>1,IF(A20<>0,VLOOKUP(A20,Data!$B$3:$N$22,3,FALSE),\"\"),\"\")","v":""},null,null,null,null,null,null,null,null,null,null,null,null,null,null,null,null,null,null,null,null,null,null,{"$f":"IF($DI$4<>1,IF(A20<>0,VLOOKUP(A20,Data!$B$3:$N$22,4,FALSE),\"\"),\"\")","v":""},null,null,null,null,null,null,null,null,null,null,null,null,null,null,null,null,null,null,null,null,{"$f":"IF($DI$4<>1,IF(A20<>0,VLOOKUP(A20,Data!$B$3:$N$22,5,FALSE),\"\"),\"\")","v":""},null,null,null,null,null,null,null,null,null,null,null,"",null,null,null,null,null,null,null,null,null,null,null,null,null,null,null,null,null,null,null,null,null,null,null,null,null,null,null,null,null,null,null,null,null,null,null,null,null,null,null,null,null,null,null,null,null,null,null,null,null,{"$f":"IF(A20<>0,VLOOKUP(A20,Data!$B$3:$N$22,6,FALSE),\"\")","v":""},{"$f":"IF(A20<>0,VLOOKUP(A20,Data!$B$3:$N$22,7,FALSE),\"\")","v":""}]

{"sheet":"TNB-FeV","index":5,"n_rows":63,"n_cols":118,"rows_kept":63,"cut":false,"hidden":true,"merged":[[41,2,41,11],[8,112,9,112],[33,2,33,109],[32,2,32,109],[42,2,42,109],[41,94,41,98],[40,99,41,109],[41,74,41,78],[41,49,41,65],[35,2,35,109],[36,2,36,109],[34,2,34,109],[38,94,38,109],[37,94,37,109],[40,66,40,73],[40,49,40,65],[40,79,41,80],[41,81,41,85],[40,94,40,98],[40,81,40,85],[39,2,39,109],[37,2,37,12],[40,2,40,11],[40,12,40,27],[40,28,40,32],[40,33,40,48],[37,82,37,83],[37,13,37,81],[38,84,38,93],[37,84,37,93],[38,13,38,81],[38,82,38,83],[38,2,38,12],[40,86,40,93],[40,74,40,78],[54,37,55,74],[62,71,62,109],[56,2,56,109],[59,2,59,53],[61,2,61,53],[41,28,41,32],[59,58,59,109],[48,58,48,59],[47,58,47,59],[52,64,52,69],[52,50,52,52],[52,54,52,59],[52,60,52,62],[51,2,51,74],[47,60,47,89],[47,90,47,109],[50,2,50,109],[51,75,54,109],[60,58,60,70],[44,2,44,9],[41,33,41,48],[41,12,41,27],[41,66,41,73],[41,86,41,93],[62,58,62,70],[58,71,58,109],[60,71,60,109],[61,58,61,109],[60,2,60,14],[62,2,62,14],[60,15,60,53],[62,15,62,53],[57,2,57,53],[57,58,57,109],[57,54,62,57],[58,58,58,70],[24,2,24,109],[58,2,58,14],[23,2,23,36],[58,15,58,53],[53,2,53,74],[46,2,46,109],[44,10,44,58],[43,59,44,60],[45,2,45,109],[43,2,43,9],[43,61,43,109],[44,61,44,109],[43,10,43,58],[48,60,48,109],[49,2,49,109],[47,25,47,57],[52,70,52,74],[52,2,52,49],[47,2,47,24],[48,25,48,57],[48,2,48,24],[55,75,55,109],[55,2,55,36],[54,2,54,36],[7,2,7,109],[22,2,22,36],[17,2,17,109],[18,2,18,109],[19,2,19,74],[19,75,22,109],[20,2,20,49],[20,50,20,52],[20,54,20,59],[20,60,20,62],[20,64,20,69],[20,70,20,74],[21,2,21,74],[22,37,23,74],[23,75,23,109],[8,94,8,98],[8,99,9,109],[9,2,9,11],[9,12,9,27],[9,28,9,32],[9,33,9,48],[9,49,9,65],[9,66,9,73],[9,74,9,78],[2,2,2,109],[3,2,3,109],[4,2,4,109],[5,2,5,12],[5,13,5,81],[5,82,5,83],[5,84,5,93],[5,94,5,109],[6,2,6,12],[6,13,6,81],[6,82,6,83],[6,84,6,93],[6,94,6,109],[9,81,9,85],[9,86,9,93],[9,94,9,98],[8,2,8,11],[8,12,8,27],[8,28,8,32],[8,33,8,48],[8,49,8,65],[8,66,8,73],[8,74,8,78],[8,79,9,80],[8,81,8,85],[8,86,8,93],[10,2,10,109],[11,2,11,9],[11,10,11,58],[11,59,12,60],[11,61,11,109],[12,2,12,9],[12,10,12,58],[12,61,12,109],[13,2,13,109],[14,2,14,109],[15,2,15,24],[15,25,15,57],[15,58,15,59],[15,60,15,89],[15,90,15,109],[16,2,16,24],[16,25,16,57],[16,58,16,59],[16,60,16,109],[31,2,31,109],[25,2,25,53],[25,54,30,57],[25,58,25,109],[26,2,26,14],[26,15,26,53],[26,58,26,70],[26,71,26,109],[27,2,27,53],[27,58,27,109],[28,2,28,14],[28,15,28,53],[28,58,28,70],[28,71,28,109],[29,2,29,53],[29,58,29,109],[30,2,30,14],[30,15,30,53],[30,58,30,70],[30,71,30,109]]}
[{"$f":"IF(Data!D3<>\"\",1,0)","v":0},null,null,null,null,null,null,null,null,null,null,null,null,null,null,null,null,null,null,null,null,null,null,null,null,null,null,null,null,null,null,null,null,null,null,null,null,null,null,null,null,null,null,null,null,null,null,null,null,null,null,null,null,null,null,null,null,null,null,null,null,null,null,null,null,null,null,null,null,null,null,null,null,null,null,null,null,null,null,null,null,null,null,null,null,null,null,null,null,null,null,null,null,null,null,null,null,null,null,null,null,null,null,null,null,null,null,null,null,null,null,null,null,null,null,null,null,{"$f":"IF(TNL!AD3<>\"\",1,0)","v":0}]
[{"$f":"IF(Data!D4<>\"\",2,0)","v":0},null,null,null,null,null,null,null,null,null,null,null,null,null,null,null,null,null,null,null,null,null,null,null,null,null,null,null,null,null,null,null,null,null,null,null,null,null,null,null,null,null,null,null,null,null,null,null,null,null,null,null,null,null,null,null,null,null,null,null,null,null,null,null,null,null,null,null,null,null,null,null,null,null,null,null,null,null,null,null,null,null,null,null,null,null,null,null,null,null,null,null,null,null,null,null,null,null,null,null,null,null,null,null,null,null,null,null,null,null,null,null,null,null,null,null,null,{"$f":"IF(TNL!DO7<>\"\",1,0)","v":0}]
[{"$f":"IF(Data!D5<>\"\",3,0)","v":0},null,{"$f":"IF(DN4<>1,\"Bescheinigung über die Teilnahme an einer Schulung in Erster Hilfe\",\"\")","v":"Bescheinigung über die Teilnahme an einer Schulung in Erster Hilfe"},null,null,null,null,null,null,null,null,null,null,null,null,null,null,null,null,null,null,null,null,null,null,null,null,null,null,null,null,null,null,null,null,null,null,null,null,null,null,null,null,null,null,null,null,null,null,null,null,null,null,null,null,null,null,null,null,null,null,null,null,null,null,null,null,null,null,null,null,null,null,null,null,null,null,null,null,null,null,null,null,null,null,null,null,null,null,null,null,null,null,null,null,null,null,null,null,null,null,null,null,null,null,null,null,null,null,null,null,null,{"$f":"SUM(Data!P2:P5)","v":0}]
[{"$f":"IF(Data!D6<>\"\",4,0)","v":0},null,{"$f":"IF(DN4<>1,\"durch eine amtlich anerkannte andere Stelle gemäß § 68 Abs. 1 Fahrerlaubnisverordnung (FeV)\",\"\")","v":"durch eine amtlich anerkannte andere Stelle gemäß § 68 Abs. 1 Fahrerlaubnisverordnung (FeV)"},null,null,null,null,null,null,null,null,null,null,null,null,null,null,null,null,null,null,null,null,null,null,null,null,null,null,null,null,null,null,null,null,null,null,null,null,null,null,null,null,null,null,null,null,null,null,null,null,null,null,null,null,null,null,null,null,null,null,null,null,null,null,null,null,null,null,null,null,null,null,null,null,null,null,null,null,null,null,null,null,null,null,null,null,null,null,null,null,null,null,null,null,null,null,null,null,null,null,null,null,null,null,null,null,null,null,null,null,null,null,null,null,null,null,{"$f":"SUM(DN1:DN3)","v":0}]
[{"$f":"IF(Data!D7<>\"\",5,0)","v":0}]
[{"$f":"IF(Data!D8<>\"\",6,0)","v":0},null,{"$f":"IF(DN4<>1,\"Herr/Frau:\",\"\")","v":"Herr/Frau:"},null,null,null,null,null,null,null,null,null,null,{"$f":"IF(C6<>\"\",IF(ISNA(IF(DI9<>\"\",VLOOKUP(DI9,Data!B3:N22,2,FALSE),\"\")),\"\",IF(DI9<>\"\",VLOOKUP(DI9,Data!B3:N22,2,FALSE),\"\")),\"\")","v":""},null,null,null,null,null,null,null,null,null,null,null,null,null,null,null,null,null,null,null,null,null,null,null,null,null,null,null,null,null,null,null,null,null,null,null,null,null,null,null,null,null,null,null,null,null,null,null,null,null,null,null,null,null,null,null,null,null,null,null,null,null,null,null,null,null,null,null,null,null,null,{"$f":"IF(DN4<>1,\"geb. am:\",\"\")","v":"geb. am:"},null,null,null,null,null,null,null,null,null,{"$f":"IF(CG6<>\"\",IF(ISNA(IF(DI9<>\"\",VLOOKUP(DI9,Data!B3:N22,5,FALSE),\"\")),\"\",IF(DI9<>\"\",VLOOKUP(DI9,Data!B3:N22,5,FALSE),\"\")),\"\")","v":""},null,null,null,null,null,null,null,null,null,null,null,null,null,null,null,null,null,"Für das Drucken einzelner Bescheinigung:"]
[{"$f":"IF(Data!D9<>\"\",7,0)","v":0},null,null,null,null,null,null,null,null,null,null,null,null,{"$f":"IF(DN4<>1,\"Name, Vorname\",\"\")","v":"Name, Vorname"},null,null,null,null,null,null,null,null,null,null,null,null,null,null,null,null,null,null,null,null,null,null,null,null,null,null,null,null,null,null,null,null,null,null,null,null,null,null,null,null,null,null,null,null,null,null,null,null,null,null,null,null,null,null,null,null,null,null,null,null,null,null,null,null,null,null,null,null,null,null,null,null,null,null,null,null,null,null,null,null,{"$f":"IF(DN4<>1,\"Datum\",\"\")","v":"Datum"},null,null,null,null,null,null,null,null,null,null,null,null,null,null,null,null,null,"Die laufende Nummer aus der Teilnehmerliste (TNL) hier eintragen."]
[{"$f":"IF(Data!D10<>\"\",8,0)","v":0}]
[{"$f":"IF(Data!D11<>\"\",9,0)","v":0},null,{"$f":"IF(DN4<>1,\"hat vom:\",\"\")","v":"hat vom:"},null,null,null,null,null,null,null,null,null,{"$f":"IF(C9<>\"\",IF(TNL!CD15<>\"\",CONCATENATE(TEXT(TNL!CD15,\"TT.MM.JJJJ\")),\"\"),\"\")","v":""},null,null,null,null,null,null,null,null,null,null,null,null,null,null,null,{"$f":"IF(DN4<>1,\"bis:\",\"\")","v":"bis:"},null,null,null,null,{"$f":"IF(AC9<>\"\",IF(TNL!CD15<>\"\",CONCATENATE(TEXT(TNL!CV15,\"TT.MM.JJJJ\")),\"\"),\"\")","v":""},null,null,null,null,null,null,null,null,null,null,null,null,null,null,null,{"$f":"IF(DN4<>1,\"in der Zeit von:\",\"\")","v":"in der Zeit von:"},null,null,null,null,null,null,null,null,null,null,null,null,null,null,null,null,{"$f":"IF(AX9<>\"\",IF(TNL!CD16<>\"\",CONCATENATE(TEXT(TNL!CD16,\"HH.mm\")),\"\"),\"\")","v":""},null,null,null,null,null,null,null,{"$f":"IF(DN4<>1,\"Uhr\",\"\")","v":"Uhr"},null,null,null,null,null,null,{"$f":"IF(DN4<>1,\"bis:\",\"\")","v":"bis:"},null,null,null,null,{"$f":"IF(CD9<>\"\",IF(TNL!CV16<>\"\",CONCATENATE(TEXT(TNL!CV16,\"HH.mm\")),\"\"),\"\")","v":""},null,null,null,null,null,null,null,{"$f":"IF(DN4<>1,\"Uhr\",\"\")","v":"Uhr"},null,null,null,null,null,null,null,null,null,null,null,null,null,null,null,null,null,1]
[{"$f":"IF(Data!D12<>\"\",10,0)","v":0},null,null,null,null,null,null,null,null,null,null,null,{"$f":"IF(DN4<>1,\"Datum\",\"\")","v":"Datum"},null,null,null,null,null,null,null,null,null,null,null,null,null,null,null,null,null,null,null,null,{"$f":"IF(DN4<>1,\"Datum\",\"\")","v":"Datum"},null,null,null,null,null,null,null,null,null,null,null,null,null,null,null,null,null,null,null,null,null,null,null,null,null,null,null,null,null,null,null,null,{"$f":"IF(DN4<>1,\"Uhrzeit\",\"\")","v":"Uhrzeit"},null,null,null,null,null,null,null,null,null,null,null,null,null,null,null,null,null,null,null,{"$f":"IF(DN4<>1,\"Uhrzeit\",\"\")","v":"Uhrzeit"}]
[{"$f":"IF(Data!D13<>\"\",11,0)","v":0}]
[{"$f":"IF(Data!D14<>\"\",12,0)","v":0},null,{"$f":"IF(DN4<>1,\"in (Ort):\",\"\")","v":"in (Ort):"},null,null,null,null,null,null,null,{"$f":"IF(C12<>\"\",CONCATENATE(TEXT(TNL!BO9,\"00000\"),\" \",TNL!CC9),\"\")","v":"00000 "},null,null,null,null,null,null,null,null,null,null,null,null,null,null,null,null,null,null,null,null,null,null,null,null,null,null,null,null,null,null,null,null,null,null,null,null,null,null,null,null,null,null,null,null,null,null,null,null,null,null,{"$f":"IF(C12<>\"\",CONCATENATE(TNL!BQ10),\"\")","v":""}]
[{"$f":"IF(Data!D15<>\"\",13,0)","v":0},null,null,null,null,null,null,null,null,null,{"$f":"IF(DN4<>1,\"Postleitzahl und Ort\",\"\")","v":"Postleitzahl und Ort"},null,null,null,null,null,null,null,null,null,null,null,null,null,null,null,null,null,null,null,null,null,null,null,null,null,null,null,null,null,null,null,null,null,null,null,null,null,null,null,null,null,null,null,null,null,null,null,null,null,null,{"$f":"IF(DN4<>1,\"Straße und Hausnummer\",\"\")","v":"Straße und Hausnummer"}]
[{"$f":"IF(Data!D16<>\"\",14,0)","v":0}]
[{"$f":"IF(Data!D17<>\"\",15,0)","v":0}]
[{"$f":"IF(Data!D18<>\"\",16,0)","v":0},null,{"$f":"IF(DN4<>1,\"unter der Leitung von:\",\"\")","v":"unter der Leitung von:"},null,null,null,null,null,null,null,null,null,null,null,null,null,null,null,null,null,null,null,null,null,null,{"$f":"IF(C16<>\"\",CONCATENATE(TNL!O19),\"\")","v":""},null,null,null,null,null,null,null,null,null,null,null,null,null,null,null,null,null,null,null,null,null,null,null,null,null,null,null,null,null,null,null,null,null,null,{"$f":"IF(DN4<>1,\"mit der Lehrgangs-Nummer:\",\"\")","v":"mit der Lehrgangs-Nummer:"},null,null,null,null,null,null,null,null,null,null,null,null,null,null,null,null,null,null,null,null,null,null,null,null,null,null,null,null,null,{"$f":"IF(BI16<>\"\",CONCATENATE(TNL!ET16),\"\")","v":""}]
[{"$f":"IF(Data!D19<>\"\",17,0)","v":0},null,null,null,null,null,null,null,null,null,null,null,null,null,null,null,null,null,null,null,null,null,null,null,null,{"$f":"IF(DN4<>1,\"Vorname und Nachname der Lehrgangsleitung\",\"\")","v":"Vorname und Nachname der Lehrgangsleitung"}]
[{"$f":"IF(Data!D20<>\"\",18,0)","v":0}]
[{"$f":"IF(Data!D21<>\"\",19,0)","v":0},null,{"$f":"IF(DN4<>1,\"an einer Schulung in Erster Hilfe mit 9 Unterrichtseinheiten teilgenommen.\",\"\")","v":"an einer Schulung in Erster Hilfe mit 9 Unterrichtseinheiten teilgenommen."}]
[{"$f":"IF(Data!D22<>\"\",20,0)","v":0}]
[null,null,{"$f":"IF(DN4<>1,\"Eine Informationsschrift wurde ausgehändigt:\",\"\")","v":"Eine Informationsschrift wurde ausgehändigt:"},null,null,null,null,null,null,null,null,null,null,null,null,null,null,null,null,null,null,null,null,null,null,null,null,null,null,null,null,null,null,null,null,null,null,null,null,null,null,null,null,null,null,null,null,null,null,null,{"$f":"IF(BC21<>\"\",IF(TNL!CL13<>\"\",TNL!CL13,\"\"),\"\")","v":""},null,null,null,{"$f":"IF(DN4<>1,\"Ja\",\"\")","v":"Ja"},null,null,null,null,null,{"$f":"IF(BM21<>\"\",IF(TNL!CV13<>\"\",TNL!CV13,\"\"),\"\")","v":""},null,null,null,{"$f":"IF(DN4<>1,\"Nein\",\"\")","v":"Nein"}]
[]
[null,null,{"$f":"IF(C27<>\"\",CONCATENATE(TNL!CC9,\", \",TEXT(TNL!CV15,\"TT.MM.JJJJ\")),\"\")","v":", 00.01.1900"}]
[null,null,{"$f":"IF(DN4<>1,\"Ort, Datum\",\"\")","v":"Ort, Datum"},null,null,null,null,null,null,null,null,null,null,null,null,null,null,null,null,null,null,null,null,null,null,null,null,null,null,null,null,null,null,null,null,null,null,null,null,null,null,null,null,null,null,null,null,null,null,null,null,null,null,null,null,null,null,null,null,null,null,null,null,null,null,null,null,null,null,null,null,null,null,null,null,{"$f":"IF(DN4<>1,\"Stempel | Unterschrift der Lehrgangsleitung\",\"\")","v":"Stempel | Unterschrift der Lehrgangsleitung"}]
[]
[]
[null,null,{"$f":"IF(DN4<>1,\"Anerk. Stelle:\",\"\")","v":"Anerk. Stelle:"},null,null,null,null,null,null,null,null,null,null,null,null,{"$f":"IF(C27<>\"\",CONCATENATE(TNL!L9),\"\")","v":""},null,null,null,null,null,null,null,null,null,null,null,null,null,null,null,null,null,null,null,null,null,null,null,null,null,null,null,null,null,null,null,null,null,null,null,null,null,null,null,null,null,null,{"$f":"IF(DN4<>1,\"Anerkannt am:\",\"\")","v":"Anerkannt am:"},null,null,null,null,null,null,null,null,null,null,null,null,{"$f":"IF(BG27<>\"\",IF(TNL!ED11<>\"\",CONCATENATE(TEXT(TNL!ED11,\"TT.MM.JJJJ\")),\"\"),\"\")","v":""}]
[]
[null,null,{"$f":"IF(DN4<>1,\"Straße:\",\"\")","v":"Straße:"},null,null,null,null,null,null,null,null,null,null,null,null,{"$f":"IF(C29<>\"\",CONCATENATE(TNL!L10),\"\")","v":""},null,null,null,null,null,null,null,null,null,null,null,null,null,null,null,null,null,null,null,null,null,null,null,null,null,null,null,null,null,null,null,null,null,null,null,null,null,null,null,null,null,null,{"$f":"IF(DN4<>1,\"durch Behörde:\",\"\")","v":"durch Behörde:"},null,null,null,null,null,null,null,null,null,null,null,null,{"$f":"IF(BG29<>\"\",CONCATENATE(TNL!ED9),\"\")","v":""}]
[]
[null,null,{"$f":"IF(DN4<>1,\"PLZ und Ort:\",\"\")","v":"PLZ und Ort:"},null,null,null,null,null,null,null,null,null,null,null,null,{"$f":"IF(C31<>\"\",CONCATENATE(TNL!L11,\" \",TNL!W11),\"\")","v":" "},null,null,null,null,null,null,null,null,null,null,null,null,null,null,null,null,null,null,null,null,null,null,null,null,null,null,null,null,null,null,null,null,null,null,null,null,null,null,null,null,null,null,{"$f":"IF(DN4<>1,\"Aktenzeichen:\",\"\")","v":"Aktenzeichen:"},null,null,null,null,null,null,null,null,null,null,null,null,{"$f":"IF(BG31<>\"\",CONCATENATE(TNL!ED10),\"\")","v":""}]
[]
[]
[]
[null,null,{"$f":"IF(DN4<>1,\"Bescheinigung über die Teilnahme an einer Schulung in Erster Hilfe\",\"\")","v":"Bescheinigung über die Teilnahme an einer Schulung in Erster Hilfe"}]
[null,null,{"$f":"IF(DN4<>1,\"durch eine amtlich anerkannte andere Stelle gemäß § 68 Abs. 1 Fahrerlaubnisverordnung (FeV)\",\"\")","v":"durch eine amtlich anerkannte andere Stelle gemäß § 68 Abs. 1 Fahrerlaubnisverordnung (FeV)"}]
[]
[null,null,{"$f":"IF(DN4<>1,\"Herr/Frau:\",\"\")","v":"Herr/Frau:"},null,null,null,null,null,null,null,null,null,null,{"$f":"IF(C38<>\"\",IF(ISNA(IF(DI9<>\"\",VLOOKUP(DI9,Data!B3:N22,2,FALSE),\"\")),\"\",IF(DI9<>\"\",VLOOKUP(DI9,Data!B3:N22,2,FALSE),\"\")),\"\")","v":""},null,null,null,null,null,null,null,null,null,null,null,null,null,null,null,null,null,null,null,null,null,null,null,null,null,null,null,null,null,null,null,null,null,null,null,null,null,null,null,null,null,null,null,null,null,null,null,null,null,null,null,null,null,null,null,null,null,null,null,null,null,null,null,null,null,null,null,null,null,null,{"$f":"IF(DN4<>1,\"geb. am:\",\"\")","v":"geb. am:"},null,null,null,null,null,null,null,null,null,{"$f":"IF(CG6<>\"\",IF(ISNA(IF(DI9<>\"\",VLOOKUP(DI9,Data!B3:N22,5,FALSE),\"\")),\"\",IF(DI9<>\"\",VLOOKUP(DI9,Data!B3:N22,5,FALSE),\"\")),\"\")","v":""}]
[null,null,null,null,null,null,null,null,null,null,null,null,null,{"$f":"IF(DN4<>1,\"Name, Vorname\",\"\")","v":"Name, Vorname"},null,null,null,null,null,null,null,null,null,null,null,null,null,null,null,null,null,null,null,null,null,null,null,null,null,null,null,null,null,null,null,null,null,null,null,null,null,null,null,null,null,null,null,null,null,null,null,null,null,null,null,null,null,null,null,null,null,null,null,null,null,null,null,null,null,null,null,null,null,null,null,null,null,null,null,null,null,null,null,null,{"$f":"IF(DN4<>1,\"Datum\",\"\")","v":"Datum"}]
[]
[null,null,{"$f":"IF(DN4<>1,\"hat vom:\",\"\")","v":"hat vom:"},null,null,null,null,null,null,null,null,null,{"$f":"IF(C41<>\"\",CONCATENATE(TEXT(TNL!CD15,\"TT.MM.JJJJ\")),\"\")","v":"00.01.1900"},null,null,null,null,null,null,null,null,null,null,null,null,null,null,null,{"$f":"IF(DN4<>1,\"bis:\",\"\")","v":"bis:"},null,null,null,null,{"$f":"IF(AC41<>\"\",CONCATENATE(TEXT(TNL!CV15,\"TT.MM.JJJJ\")),\"\")","v":"00.01.1900"},null,null,null,null,null,null,null,null,null,null,null,null,null,null,null,{"$f":"IF(DN4<>1,\"in der Zeit von:\",\"\")","v":"in der Zeit von:"},null,null,null,null,null,null,null,null,null,null,null,null,null,null,null,null,{"$f":"IF(AX41<>\"\",IF(TNL!CD16<>\"\",CONCATENATE(TEXT(TNL!CD16,\"HH.mm\")),\"\"),\"\")","v":""},null,null,null,null,null,null,null,{"$f":"IF(DN4<>1,\"Uhr\",\"\")","v":"Uhr"},null,null,null,null,null,null,{"$f":"IF(DN4<>1,\"bis:\",\"\")","v":"bis:"},null,null,null,null,{"$f":"IF(CD41<>\"\",IF(TNL!CV16<>\"\",CONCATENATE(TEXT(TNL!CV16,\"HH.mm\")),\"\"),\"\")","v":""},null,null,null,null,null,null,null,{"$f":"IF(DN4<>1,\"Uhr\",\"\")","v":"Uhr"}]
[null,null,null,null,null,null,null,null,null,null,null,null,{"$f":"IF(DN4<>1,\"Datum\",\"\")","v":"Datum"},null,null,null,null,null,null,null,null,null,null,null,null,null,null,null,null,null,null,null,null,{"$f":"IF(DN4<>1,\"Datum\",\"\")","v":"Datum"},null,null,null,null,null,null,null,null,null,null,null,null,null,null,null,null,null,null,null,null,null,null,null,null,null,null,null,null,null,null,null,null,{"$f":"IF(DN4<>1,\"Uhrzeit\",\"\")","v":"Uhrzeit"},null,null,null,null,null,null,null,null,null,null,null,null,null,null,null,null,null,null,null,{"$f":"IF(DN4<>1,\"Uhrzeit\",\"\")","v":"Uhrzeit"}]
[]
[null,null,{"$f":"IF(DN4<>1,\"in (Ort):\",\"\")","v":"in (Ort):"},null,null,null,null,null,null,null,{"$f":"IF(C44<>\"\",CONCATENATE(TEXT(TNL!BO9,\"00000\"),\" \",TNL!CC9),\"\")","v":"00000 "},null,null,null,null,null,null,null,null,null,null,null,null,null,null,null,null,null,null,null,null,null,null,null,null,null,null,null,null,null,null,null,null,null,null,null,null,null,null,null,null,null,null,null,null,null,null,null,null,null,null,{"$f":"IF(C44<>\"\",CONCATENATE(TNL!BQ10),\"\")","v":""}]
[null,null,null,null,null,null,null,null,null,null,{"$f":"IF(DN4<>1,\"Postleitzahl und Ort\",\"\")","v":"Postleitzahl und Ort"},null,null,null,null,null,null,null,null,null,null,null,null,null,null,null,null,null,null,null,null,null,null,null,null,null,null,null,null,null,null,null,null,null,null,null,null,null,null,null,null,null,null,null,null,null,null,null,null,null,null,{"$f":"IF(DN4<>1,\"Straße und Hausnummer\",\"\")","v":"Straße und Hausnummer"}]
[]
[]
[null,null,{"$f":"IF(DN4<>1,\"unter der Leitung von:\",\"\")","v":"unter der Leitung von:"},null,null,null,null,null,null,null,null,null,null,null,null,null,null,null,null,null,null,null,null,null,null,{"$f":"IF(C48<>\"\",CONCATENATE(TNL!O19),\"\")","v":""},null,null,null,null,null,null,null,null,null,null,null,null,null,null,null,null,null,null,null,null,null,null,null,null,null,null,null,null,null,null,null,null,null,null,{"$f":"IF(DN4<>1,\"mit der Lehrgangs-Nummer:\",\"\")","v":"mit der Lehrgangs-Nummer:"},null,null,null,null,null,null,null,null,null,null,null,null,null,null,null,null,null,null,null,null,null,null,null,null,null,null,null,null,null,{"$f":"IF(BI48<>\"\",CONCATENATE(TNL!ET16),\"\")","v":""}]
[null,null,null,null,null,null,null,null,null,null,null,null,null,null,null,null,null,null,null,null,null,null,null,null,null,{"$f":"IF(DN4<>1,\"Vorname und Nachname der Lehrgangsleitung\",\"\")","v":"Vorname und Nachname der Lehrgangsleitung"}]
[]
[null,null,{"$f":"IF(DN4<>1,\"an einer Schulung in Erster Hilfe mit 9 Unterrichtseinheiten teilgenommen.\",\"\")","v":"an einer Schulung in Erster Hilfe mit 9 Unterrichtseinheiten teilgenommen."}]
[]
[null,null,{"$f":"IF(DN4<>1,\"Eine Informationsschrift wurde ausgehändigt:\",\"\")","v":"Eine Informationsschrift wurde ausgehändigt:"},null,null,null,null,null,null,null,null,null,null,null,null,null,null,null,null,null,null,null,null,null,null,null,null,null,null,null,null,null,null,null,null,null,null,null,null,null,null,null,null,null,null,null,null,null,null,null,{"$f":"IF(BC53<>\"\",IF(TNL!DO7<>\"\",TNL!CL13,\"\"),\"\")","v":""},null,null,null,{"$f":"IF(DN4<>1,\"Ja\",\"\")","v":"Ja"},null,null,null,null,null,{"$f":"IF(BM53<>\"\",IF(TNL!CV13<>\"\",TNL!CV13,\"\"),\"\")","v":""},null,null,null,{"$f":"IF(DN4<>1,\"Nein\",\"\")","v":"Nein"}]
[]
[null,null,{"$f":"IF(C59<>\"\",CONCATENATE(TNL!CC9,\", \",TEXT(TNL!CV15,\"TT.MM.JJJJ\")),\"\")","v":", 00.01.1900"}]
[null,null,{"$f":"IF(DN4<>1,\"Ort, Datum\",\"\")","v":"Ort, Datum"},null,null,null,null,null,null,null,null,null,null,null,null,null,null,null,null,null,null,null,null,null,null,null,null,null,null,null,null,null,null,null,null,null,null,null,null,null,null,null,null,null,null,null,null,null,null,null,null,null,null,null,null,null,null,null,null,null,null,null,null,null,null,null,null,null,null,null,null,null,null,null,null,{"$f":"IF(DN4<>1,\"Stempel | Unterschrift der Lehrgangsleitung\",\"\")","v":"Stempel | Unterschrift der Lehrgangsleitung"}]
[]
[]
[null,null,{"$f":"IF(DN4<>1,\"Anerk. Stelle:\",\"\")","v":"Anerk. Stelle:"},null,null,null,null,null,null,null,null,null,null,null,null,{"$f":"IF(C59<>\"\",CONCATENATE(TNL!L9),\"\")","v":""},null,null,null,null,null,null,null,null,null,null,null,null,null,null,null,null,null,null,null,null,null,null,null,null,null,null,null,null,null,null,null,null,null,null,null,null,null,null,null,null,null,null,{"$f":"IF(DN4<>1,\"Anerkannt am:\",\"\")","v":"Anerkannt am:"},null,null,null,null,null,null,null,null,null,null,null,null,{"$f":"IF(BG59<>\"\",IF(TNL!ED11<>\"\",CONCATENATE(TEXT(TNL!ED11,\"TT.MM.JJJJ\")),\"\"),\"\")","v":""}]
[]
[null,null,{"$f":"IF(DN4<>1,\"Straße:\",\"\")","v":"Straße:"},null,null,null,null,null,null,null,null,null,null,null,null,{"$f":"IF(C61<>\"\",CONCATENATE(TNL!L10),\"\")","v":""},null,null,null,null,null,null,null,null,null,null,null,null,null,null,null,null,null,null,null,null,null,null,null,null,null,null,null,null,null,null,null,null,null,null,null,null,null,null,null,null,null,null,{"$f":"IF(DN4<>1,\"durch Behörde:\",\"\")","v":"durch Behörde:"},null,null,null,null,null,null,null,null,null,null,null,null,{"$f":"IF(BG61<>\"\",CONCATENATE(TNL!ED9),\"\")","v":""}]
[]
[null,null,{"$f":"IF(DN4<>1,\"PLZ und Ort:\",\"\")","v":"PLZ und Ort:"},null,null,null,null,null,null,null,null,null,null,null,null,{"$f":"IF(C63<>\"\",CONCATENATE(TNL!L11,\" \",TNL!W11),\"\")","v":" "},null,null,null,null,null,null,null,null,null,null,null,null,null,null,null,null,null,null,null,null,null,null,null,null,null,null,null,null,null,null,null,null,null,null,null,null,null,null,null,null,null,null,{"$f":"IF(DN4<>1,\"Aktenzeichen:\",\"\")","v":"Aktenzeichen:"},null,null,null,null,null,null,null,null,null,null,null,null,{"$f":"IF(BG63<>\"\",CONCATENATE(TNL!ED10),\"\")","v":""}]

{"sheet":"Data","index":6,"n_rows":71,"n_cols":21,"rows_kept":71,"cut":false,"hidden":true,"merged":[[68,2,68,3],[69,2,69,3],[70,2,70,3],[63,2,63,3],[64,2,64,3],[65,2,65,3],[66,2,66,3],[67,2,67,3],[58,2,58,3],[59,2,59,3],[60,2,60,3],[61,2,61,3],[62,2,62,3],[53,2,53,3],[54,2,54,3],[55,2,55,3],[56,2,56,3],[57,2,57,3],[23,1,23,13],[47,0,47,1],[50,2,50,3],[51,2,51,3],[52,2,52,3]]}
[1,2,3,4,5,6,7,8,9,10,11,12,13,14,null,{"$f":"SUM(P2:P5)","v":0},2,3,4,5]
["DNr.","Nr.","Name, Vorname","Name","Vorname","Geb.","Straße","Wohnort","Nr. Gliederung","Qualifikation","Plus Nr.","Lfd.-Nr.","Jahr","Reg.-Nr.",null,{"$f":"IF(TNL!AD3<>\"\",1,0)","v":0},1,"Erste Hilfe",312,"Diese Ausbildung entspricht den Gemeinsamen Grundsätzen der Bundesarbeitsgemeinschaft Erste Hilfe (BAGEH), sowie dem Grundsatz 304-001 der Deutschen Gesetzlichen Unfallversicherung (DGUV) im Einklang mit den Fahrerlaubnis- behörden.","erfolgreich an einer Ausbildung"]
[{"$f":"IF(B3<>\"\",B3,0)","v":0},{"$f":"IF(C3<>\"\",1,\"\")","v":""},{"$f":"IF(TNL!K49<>\"\",TNL!K49&\", \"&TNL!K50,\"\")","v":""},{"$f":"IF(C3<>\"\",TNL!K49,\"\")","v":""},{"$f":"IF(C3<>\"\",TNL!K50,\"\")","v":""},{"$f":"IF(C3<>\"\",TEXT(TNL!AW49,\"TT.MM.JJJJ\"),\"\")","v":""},{"$f":"IF(C3<>\"\",TNL!BI49,\"\")","v":""},{"$f":"IF(C3<>\"\",TNL!BI50,\"\")","v":""},{"$f":"IF(C3<>\"\",IF(TNL!$AA$13<>\"\",TEXT(TNL!$AA$13,\"00 00 000\"),\"\"),\"\")","v":""},{"$f":"IF(C3<>\"\",VLOOKUP($P$1,$P$2:$T$5,4,FALSE),\"\")","v":""},{"$f":"IF(C3<>\"\",0,\"\")","v":""},{"$f":"IF(C3<>\"\",TNL!$FP$15+K3,\"\")","v":""},{"$f":"IF(C3<>\"\",IF(TNL!$CV$15<>\"\",TEXT(TNL!$CV$15,\"JJ\"),\"\"),\"\")","v":""},{"$f":"IF(C3<>\"\",TEXT(I3,\"00 00 000\")&\" / \"&J3&\" / \"&TEXT(L3,\"0000\")&\" / \"&M3,\"\")","v":""},null,{"$f":"IF(TNL!BF3<>\"\",2,0)","v":0},2,"Erste Hilfe",321,"Diese Fortbildung entspricht den Gemeinsamen Grundsätzen der Bundesarbeitsgemeinschaft Erste Hilfe (BAGEH), sowie dem Grundsatz 304-001 der Deutschen Gesetzlichen Unfallversicherung (DGUV) im Einklang mit den Fahrerlaubnis- behörden.","erfolgreich an einer Fortbildung"]
[{"$f":"IF(B4<>\"\",B4,0)","v":0},{"$f":"IF(C4<>\"\",2,\"\")","v":""},{"$f":"IF(TNL!K51<>\"\",TNL!K51&\", \"&TNL!K52,\"\")","v":""},{"$f":"IF(C4<>\"\",TNL!K51,\"\")","v":""},{"$f":"IF(C4<>\"\",TNL!K52,\"\")","v":""},{"$f":"IF(C4<>\"\",TEXT(TNL!AW51,\"TT.MM.JJJJ\"),\"\")","v":""},{"$f":"IF(C4<>\"\",TNL!BI51,\"\")","v":""},{"$f":"IF(C4<>\"\",TNL!BI52,\"\")","v":""},{"$f":"IF(C4<>\"\",IF(TNL!$AA$13<>\"\",TEXT(TNL!$AA$13,\"00 00 000\"),\"\"),\"\")","v":""},{"$f":"IF(C4<>\"\",VLOOKUP($P$1,$P$2:$T$5,4,FALSE),\"\")","v":""},{"$f":"IF(C4<>\"\",1,\"\")","v":""},{"$f":"IF(C4<>\"\",TNL!$FP$15+K4,\"\")","v":""},{"$f":"IF(C4<>\"\",IF(TNL!$CV$15<>\"\",TEXT(TNL!$CV$15,\"JJ\"),\"\"),\"\")","v":""},{"$f":"IF(C4<>\"\",TEXT(I4,\"00 00 000\")&\" / \"&J4&\" / \"&TEXT(L4,\"0000\")&\" / \"&M4,\"\")","v":""},null,{"$f":"IF(TNL!CH3<>\"\",3,0)","v":0},3,"Erste Hilfe in Bildungs- und Betreuungseinrichtungen für Kinder",315,"Diese Ausbildung entspricht den Gemeinsamen Grundsätzen der Bundesarbeitsgemeinschaft Erste Hilfe (BAGEH), sowie dem Grundsatz 304-001 der Deutschen Gesetzlichen Unfallversicherung (DGUV) im Einklang mit den Fahrerlaubnis- behörden.","erfolgreich an einer Schulung"]
[0,{"$f":"IF(C5<>\"\",3,\"\")","v":""},{"$f":"IF(TNL!K53<>\"\",TNL!K53&\", \"&TNL!K54,\"\")","v":""},{"$f":"IF(C5<>\"\",TNL!K53,\"\")","v":""},{"$f":"IF(C5<>\"\",TNL!K54,\"\")","v":""},{"$f":"IF(C5<>\"\",TEXT(TNL!AW53,\"TT.MM.JJJJ\"),\"\")","v":""},{"$f":"IF(C5<>\"\",TNL!BI53,\"\")","v":""},{"$f":"IF(C5<>\"\",TNL!BI54,\"\")","v":""},{"$f":"IF(C5<>\"\",IF(TNL!$AA$13<>\"\",TEXT(TNL!$AA$13,\"00 00 000\"),\"\"),\"\")","v":""},"",{"$f":"IF(C5<>\"\",2,\"\")","v":""},{"$f":"IF(C5<>\"\",TNL!$FP$15+K5,\"\")","v":""},{"$f":"IF(C5<>\"\",IF(TNL!$CV$15<>\"\",TEXT(TNL!$CV$15,\"JJ\"),\"\"),\"\")","v":""},"",null,{"$f":"IF(TNL!DS3<>\"\",4,0)","v":0},4,null,null,null," "]
[0,{"$f":"IF(C6<>\"\",4,\"\")","v":""},{"$f":"IF(TNL!K55<>\"\",TNL!K55&\", \"&TNL!K56,\"\")","v":""},{"$f":"IF(C6<>\"\",TNL!K55,\"\")","v":""},{"$f":"IF(C6<>\"\",TNL!K56,\"\")","v":""},{"$f":"IF(C6<>\"\",TEXT(TNL!AW55,\"TT.MM.JJJJ\"),\"\")","v":""},{"$f":"IF(C6<>\"\",TNL!BI55,\"\")","v":""},{"$f":"IF(C6<>\"\",TNL!BI56,\"\")","v":""},{"$f":"IF(C6<>\"\",IF(TNL!$AA$13<>\"\",TEXT(TNL!$AA$13,\"00 00 000\"),\"\"),\"\")","v":""},"",{"$f":"IF(C6<>\"\",3,\"\")","v":""},{"$f":"IF(C6<>\"\",TNL!$FP$15+K6,\"\")","v":""},{"$f":"IF(C6<>\"\",IF(TNL!$CV$15<>\"\",TEXT(TNL!$CV$15,\"JJ\"),\"\"),\"\")","v":""},""]
[0,{"$f":"IF(C7<>\"\",5,\"\")","v":""},{"$f":"IF(TNL!K57<>\"\",TNL!K57&\", \"&TNL!K58,\"\")","v":""},{"$f":"IF(C7<>\"\",TNL!K57,\"\")","v":""},{"$f":"IF(C7<>\"\",TNL!K58,\"\")","v":""},{"$f":"IF(C7<>\"\",TEXT(TNL!AW57,\"TT.MM.JJJJ\"),\"\")","v":""},{"$f":"IF(C7<>\"\",TNL!BI57,\"\")","v":""},{"$f":"IF(C7<>\"\",TNL!BI58,\"\")","v":""},{"$f":"IF(C7<>\"\",IF(TNL!$AA$13<>\"\",TEXT(TNL!$AA$13,\"00 00 000\"),\"\"),\"\")","v":""},"",{"$f":"IF(C7<>\"\",4,\"\")","v":""},{"$f":"IF(C7<>\"\",TNL!$FP$15+K7,\"\")","v":""},{"$f":"IF(C7<>\"\",IF(TNL!$CV$15<>\"\",TEXT(TNL!$CV$15,\"JJ\"),\"\"),\"\")","v":""},"",null,{"$f":"IF(TNL!DO7<>\"\",Q7,0)","v":0},1,{"$f":"CONCATENATE(\"Amtlich anerkannt gemäß § 68 Absatz 1 der Fahrerlaubnisverordnung (FeV) durch die Behörde: \",TNL!ED9,\" | \",\"Aktenzeichen: \",TNL!ED10,\" | \",\"vom: \",TEXT(TNL!ED11,\"TT.MM.JJJJ\"))","v":"Amtlich anerkannt gemäß § 68 Absatz 1 der Fahrerlaubnisverordnung (FeV) durch die Behörde:  | Aktenzeichen:  | vom: 00.01.1900"}]
[0,{"$f":"IF(C8<>\"\",6,\"\")","v":""},{"$f":"IF(TNL!K59<>\"\",TNL!K59&\", \"&TNL!K60,\"\")","v":""},{"$f":"IF(C8<>\"\",TNL!K59,\"\")","v":""},{"$f":"IF(C8<>\"\",TNL!K60,\"\")","v":""},{"$f":"IF(C8<>\"\",TEXT(TNL!AW59,\"TT.MM.JJJJ\"),\"\")","v":""},{"$f":"IF(C8<>\"\",TNL!BI59,\"\")","v":""},{"$f":"IF(C8<>\"\",TNL!BI60,\"\")","v":""},{"$f":"IF(C8<>\"\",IF(TNL!$AA$13<>\"\",TEXT(TNL!$AA$13,\"00 00 000\"),\"\"),\"\")","v":""},"",{"$f":"IF(C8<>\"\",5,\"\")","v":""},{"$f":"IF(C8<>\"\",TNL!$FP$15+K8,\"\")","v":""},{"$f":"IF(C8<>\"\",IF(TNL!$CV$15<>\"\",TEXT(TNL!$CV$15,\"JJ\"),\"\"),\"\")","v":""},"",null,{"$f":"IF(TNL!DO13<>\"\",Q8,0)","v":0},2,{"$f":"CONCATENATE(\"Kennziffer der ermächtigten Ausbildungsstelle gemäß DGUV-Vorschrift 1 – \",TNL!ET15,\"  |  \",\"DGUV – QSEH-Lehrgangs-Nummer: \",TNL!ET16)","v":"Kennziffer der ermächtigten Ausbildungsstelle gemäß DGUV-Vorschrift 1 –   |  DGUV – QSEH-Lehrgangs-Nummer: "}]
[0,{"$f":"IF(C9<>\"\",7,\"\")","v":""},{"$f":"IF(TNL!K61<>\"\",TNL!K61&\", \"&TNL!K62,\"\")","v":""},{"$f":"IF(C9<>\"\",TNL!K61,\"\")","v":""},{"$f":"IF(C9<>\"\",TNL!K62,\"\")","v":""},{"$f":"IF(C9<>\"\",TEXT(TNL!AW61,\"TT.MM.JJJJ\"),\"\")","v":""},{"$f":"IF(C9<>\"\",TNL!BI61,\"\")","v":""},{"$f":"IF(C9<>\"\",TNL!BI62,\"\")","v":""},{"$f":"IF(C9<>\"\",IF(TNL!$AA$13<>\"\",TEXT(TNL!$AA$13,\"00 00 000\"),\"\"),\"\")","v":""},"",{"$f":"IF(C9<>\"\",6,\"\")","v":""},{"$f":"IF(C9<>\"\",TNL!$FP$15+K9,\"\")","v":""},{"$f":"IF(C9<>\"\",IF(TNL!$CV$15<>\"\",TEXT(TNL!$CV$15,\"JJ\"),\"\"),\"\")","v":""},"",null,{"$f":"IF(TNL!DO7&TNL!DO13<=\"\",Q9,0)","v":3},3,{"$f":"CONCATENATE(\"Diese Teilnahmebescheinigung wurde im Rahmen einer DLRG-Aus- oder Fortbildung für Einsatzkräfte im Bereich Rettungsschwimmen, Wasserrettungsdienst, Katastrophenschutz oder Sanitätsdienst erworben.\")","v":"Diese Teilnahmebescheinigung wurde im Rahmen einer DLRG-Aus- oder Fortbildung für Einsatzkräfte im Bereich Rettungsschwimmen, Wasserrettungsdienst, Katastrophenschutz oder Sanitätsdienst erworben."}]
[0,{"$f":"IF(C10<>\"\",8,\"\")","v":""},{"$f":"IF(TNL!K63<>\"\",TNL!K63&\", \"&TNL!K64,\"\")","v":""},{"$f":"IF(C10<>\"\",TNL!K63,\"\")","v":""},{"$f":"IF(C10<>\"\",TNL!K64,\"\")","v":""},{"$f":"IF(C10<>\"\",TEXT(TNL!AW63,\"TT.MM.JJJJ\"),\"\")","v":""},{"$f":"IF(C10<>\"\",TNL!BI63,\"\")","v":""},{"$f":"IF(C10<>\"\",TNL!BI64,\"\")","v":""},{"$f":"IF(C10<>\"\",IF(TNL!$AA$13<>\"\",TEXT(TNL!$AA$13,\"00 00 000\"),\"\"),\"\")","v":""},"",{"$f":"IF(C10<>\"\",7,\"\")","v":""},{"$f":"IF(C10<>\"\",TNL!$FP$15+K10,\"\")","v":""},{"$f":"IF(C10<>\"\",IF(TNL!$CV$15<>\"\",TEXT(TNL!$CV$15,\"JJ\"),\"\"),\"\")","v":""},"",null,{"$f":"IF(TNL!AD3&TNL!BF3&TNL!CH3<>\"\",SUM(P7:P9),0)","v":0}]
[0,{"$f":"IF(C11<>\"\",9,\"\")","v":""},{"$f":"IF(TNL!K65<>\"\",TNL!K65&\", \"&TNL!K66,\"\")","v":""},{"$f":"IF(C11<>\"\",TNL!K65,\"\")","v":""},{"$f":"IF(C11<>\"\",TNL!K66,\"\")","v":""},{"$f":"IF(C11<>\"\",TEXT(TNL!AW65,\"TT.MM.JJJJ\"),\"\")","v":""},{"$f":"IF(C11<>\"\",TNL!BI65,\"\")","v":""},{"$f":"IF(C11<>\"\",TNL!BI66,\"\")","v":""},{"$f":"IF(C11<>\"\",IF(TNL!$AA$13<>\"\",TEXT(TNL!$AA$13,\"00 00 000\"),\"\"),\"\")","v":""},"",{"$f":"IF(C11<>\"\",8,\"\")","v":""},{"$f":"IF(C11<>\"\",TNL!$FP$15+K11,\"\")","v":""},{"$f":"IF(C11<>\"\",IF(TNL!$CV$15<>\"\",TEXT(TNL!$CV$15,\"JJ\"),\"\"),\"\")","v":""},""]
[0,{"$f":"IF(C12<>\"\",10,\"\")","v":""},{"$f":"IF(TNL!K67<>\"\",TNL!K67&\", \"&TNL!K68,\"\")","v":""},{"$f":"IF(C12<>\"\",TNL!K67,\"\")","v":""},{"$f":"IF(C12<>\"\",TNL!K68,\"\")","v":""},{"$f":"IF(C12<>\"\",TEXT(TNL!AW67,\"TT.MM.JJJJ\"),\"\")","v":""},{"$f":"IF(C12<>\"\",TNL!BI67,\"\")","v":""},{"$f":"IF(C12<>\"\",TNL!BI68,\"\")","v":""},{"$f":"IF(C12<>\"\",IF(TNL!$AA$13<>\"\",TEXT(TNL!$AA$13,\"00 00 000\"),\"\"),\"\")","v":""},"",{"$f":"IF(C12<>\"\",9,\"\")","v":""},{"$f":"IF(C12<>\"\",TNL!$FP$15+K12,\"\")","v":""},{"$f":"IF(C12<>\"\",IF(TNL!$CV$15<>\"\",TEXT(TNL!$CV$15,\"JJ\"),\"\"),\"\")","v":""},"",null,null,null,{"$f":"CONCATENATE(TEXT(TNL!AA13,\"00 00 000\"),\" | \",TNL!L9,\" • \",TNL!L10,\" • \",TNL!L11,\" \",TNL!W11,\" | \",\"Ausbilder: \",TNL!O19,\", Reg.-Nr.: \",TNL!O20)","v":"00 00 000 |  •  •   | Ausbilder: , Reg.-Nr.: "}]
[0,{"$f":"IF(C13<>\"\",11,\"\")","v":""},{"$f":"IF(TNL!K80<>\"\",TNL!K80&\", \"&TNL!K81,\"\")","v":""},{"$f":"IF(C13<>\"\",TNL!K80,\"\")","v":""},{"$f":"IF(C13<>\"\",TNL!K81,\"\")","v":""},{"$f":"IF(C13<>\"\",TEXT(TNL!AW80,\"TT.MM.JJJJ\"),\"\")","v":""},{"$f":"IF(C13<>\"\",TNL!BI80,\"\")","v":""},{"$f":"IF(C13<>\"\",TNL!BI81,\"\")","v":""},{"$f":"IF(C13<>\"\",IF(TNL!$AA$13<>\"\",TEXT(TNL!$AA$13,\"00 00 000\"),\"\"),\"\")","v":""},"",{"$f":"IF(C13<>\"\",10,\"\")","v":""},{"$f":"IF(C13<>\"\",TNL!$FP$15+K13,\"\")","v":""},{"$f":"IF(C13<>\"\",IF(TNL!$CV$15<>\"\",TEXT(TNL!$CV$15,\"JJ\"),\"\"),\"\")","v":""},""]
[0,{"$f":"IF(C14<>\"\",12,\"\")","v":""},{"$f":"IF(TNL!K82<>\"\",TNL!K82&\", \"&TNL!K83,\"\")","v":""},{"$f":"IF(C14<>\"\",TNL!K82,\"\")","v":""},{"$f":"IF(C14<>\"\",TNL!K83,\"\")","v":""},{"$f":"IF(C14<>\"\",TEXT(TNL!AW82,\"TT.MM.JJJJ\"),\"\")","v":""},{"$f":"IF(C14<>\"\",TNL!BI82,\"\")","v":""},{"$f":"IF(C14<>\"\",TNL!BI83,\"\")","v":""},{"$f":"IF(C14<>\"\",IF(TNL!$AA$13<>\"\",TEXT(TNL!$AA$13,\"00 00 000\"),\"\"),\"\")","v":""},"",{"$f":"IF(C14<>\"\",11,\"\")","v":""},{"$f":"IF(C14<>\"\",TNL!$FP$15+K14,\"\")","v":""},{"$f":"IF(C14<>\"\",IF(TNL!$CV$15<>\"\",TEXT(TNL!$CV$15,\"JJ\"),\"\"),\"\")","v":""},"",null,null,null,{"$f":"CONCATENATE(\"Diese Teilnahmebescheinigung wurde im Rahmen einer DLRG-Aus- oder Fortbildung für Einsatzkräfte im Bereich Rettungsschwimmen, Wasserrettungsdienst, Kathasstrophenschutz oder Sanitätsdienst erworben.\")","v":"Diese Teilnahmebescheinigung wurde im Rahmen einer DLRG-Aus- oder Fortbildung für Einsatzkräfte im Bereich Rettungsschwimmen, Wasserrettungsdienst, Kathasstrophenschutz oder Sanitätsdienst erworben."}]
[0,{"$f":"IF(C15<>\"\",13,\"\")","v":""},{"$f":"IF(TNL!K84<>\"\",TNL!K84&\", \"&TNL!K85,\"\")","v":""},{"$f":"IF(C15<>\"\",TNL!K84,\"\")","v":""},{"$f":"IF(C15<>\"\",TNL!K85,\"\")","v":""},{"$f":"IF(C15<>\"\",TEXT(TNL!AW84,\"TT.MM.JJJJ\"),\"\")","v":""},{"$f":"IF(C15<>\"\",TNL!BI84,\"\")","v":""},{"$f":"IF(C15<>\"\",TNL!BI85,\"\")","v":""},{"$f":"IF(C15<>\"\",IF(TNL!$AA$13<>\"\",TEXT(TNL!$AA$13,\"00 00 000\"),\"\"),\"\")","v":""},"",{"$f":"IF(C15<>\"\",12,\"\")","v":""},{"$f":"IF(C15<>\"\",TNL!$FP$15+K15,\"\")","v":""},{"$f":"IF(C15<>\"\",IF(TNL!$CV$15<>\"\",TEXT(TNL!$CV$15,\"JJ\"),\"\"),\"\")","v":""},""]
[0,{"$f":"IF(C16<>\"\",14,\"\")","v":""},{"$f":"IF(TNL!K86<>\"\",TNL!K86&\", \"&TNL!K87,\"\")","v":""},{"$f":"IF(C16<>\"\",TNL!K86,\"\")","v":""},{"$f":"IF(C16<>\"\",TNL!K87,\"\")","v":""},{"$f":"IF(C16<>\"\",TEXT(TNL!AW86,\"TT.MM.JJJJ\"),\"\")","v":""},{"$f":"IF(C16<>\"\",TNL!BI86,\"\")","v":""},{"$f":"IF(C16<>\"\",TNL!BI87,\"\")","v":""},{"$f":"IF(C16<>\"\",IF(TNL!$AA$13<>\"\",TEXT(TNL!$AA$13,\"00 00 000\"),\"\"),\"\")","v":""},"",{"$f":"IF(C16<>\"\",13,\"\")","v":""},{"$f":"IF(C16<>\"\",TNL!$FP$15+K16,\"\")","v":""},{"$f":"IF(C16<>\"\",IF(TNL!$CV$15<>\"\",TEXT(TNL!$CV$15,\"JJ\"),\"\"),\"\")","v":""},""]
[0,{"$f":"IF(C17<>\"\",15,\"\")","v":""},{"$f":"IF(TNL!K88<>\"\",TNL!K88&\", \"&TNL!K89,\"\")","v":""},{"$f":"IF(C17<>\"\",TNL!K88,\"\")","v":""},{"$f":"IF(C17<>\"\",TNL!K89,\"\")","v":""},{"$f":"IF(C17<>\"\",TEXT(TNL!AW88,\"TT.MM.JJJJ\"),\"\")","v":""},{"$f":"IF(C17<>\"\",TNL!BI88,\"\")","v":""},{"$f":"IF(C17<>\"\",TNL!BI89,\"\")","v":""},{"$f":"IF(C17<>\"\",IF(TNL!$AA$13<>\"\",TEXT(TNL!$AA$13,\"00 00 000\"),\"\"),\"\")","v":""},"",{"$f":"IF(C17<>\"\",14,\"\")","v":""},{"$f":"IF(C17<>\"\",TNL!$FP$15+K17,\"\")","v":""},{"$f":"IF(C17<>\"\",IF(TNL!$CV$15<>\"\",TEXT(TNL!$CV$15,\"JJ\"),\"\"),\"\")","v":""},""]
[0,{"$f":"IF(C18<>\"\",16,\"\")","v":""},{"$f":"IF(TNL!K90<>\"\",TNL!K90&\", \"&TNL!K91,\"\")","v":""},{"$f":"IF(C18<>\"\",TNL!K90,\"\")","v":""},{"$f":"IF(C18<>\"\",TNL!K91,\"\")","v":""},{"$f":"IF(C18<>\"\",TEXT(TNL!AW90,\"TT.MM.JJJJ\"),\"\")","v":""},{"$f":"IF(C18<>\"\",TNL!BI90,\"\")","v":""},{"$f":"IF(C18<>\"\",TNL!BI91,\"\")","v":""},{"$f":"IF(C18<>\"\",IF(TNL!$AA$13<>\"\",TEXT(TNL!$AA$13,\"00 00 000\"),\"\"),\"\")","v":""},"",{"$f":"IF(C18<>\"\",15,\"\")","v":""},{"$f":"IF(C18<>\"\",TNL!$FP$15+K18,\"\")","v":""},{"$f":"IF(C18<>\"\",IF(TNL!$CV$15<>\"\",TEXT(TNL!$CV$15,\"JJ\"),\"\"),\"\")","v":""},""]
[0,{"$f":"IF(C19<>\"\",17,\"\")","v":""},{"$f":"IF(TNL!K92<>\"\",TNL!K92&\", \"&TNL!K93,\"\")","v":""},{"$f":"IF(C19<>\"\",TNL!K92,\"\")","v":""},{"$f":"IF(C19<>\"\",TNL!K93,\"\")","v":""},{"$f":"IF(C19<>\"\",TEXT(TNL!AW92,\"TT.MM.JJJJ\"),\"\")","v":""},{"$f":"IF(C19<>\"\",TNL!BI92,\"\")","v":""},{"$f":"IF(C19<>\"\",TNL!BI93,\"\")","v":""},{"$f":"IF(C19<>\"\",IF(TNL!$AA$13<>\"\",TEXT(TNL!$AA$13,\"00 00 000\"),\"\"),\"\")","v":""},"",{"$f":"IF(C19<>\"\",16,\"\")","v":""},{"$f":"IF(C19<>\"\",TNL!$FP$15+K19,\"\")","v":""},{"$f":"IF(C19<>\"\",IF(TNL!$CV$15<>\"\",TEXT(TNL!$CV$15,\"JJ\"),\"\"),\"\")","v":""},""]
[0,{"$f":"IF(C20<>\"\",18,\"\")","v":""},{"$f":"IF(TNL!K94<>\"\",TNL!K94&\", \"&TNL!K95,\"\")","v":""},{"$f":"IF(C20<>\"\",TNL!K94,\"\")","v":""},{"$f":"IF(C20<>\"\",TNL!K95,\"\")","v":""},{"$f":"IF(C20<>\"\",TEXT(TNL!AW94,\"TT.MM.JJJJ\"),\"\")","v":""},{"$f":"IF(C20<>\"\",TNL!BI94,\"\")","v":""},{"$f":"IF(C20<>\"\",TNL!BI95,\"\")","v":""},{"$f":"IF(C20<>\"\",IF(TNL!$AA$13<>\"\",TEXT(TNL!$AA$13,\"00 00 000\"),\"\"),\"\")","v":""},"",{"$f":"IF(C20<>\"\",17,\"\")","v":""},{"$f":"IF(C20<>\"\",TNL!$FP$15+K20,\"\")","v":""},{"$f":"IF(C20<>\"\",IF(TNL!$CV$15<>\"\",TEXT(TNL!$CV$15,\"JJ\"),\"\"),\"\")","v":""},""]
[0,{"$f":"IF(C21<>\"\",19,\"\")","v":""},{"$f":"IF(TNL!K96<>\"\",TNL!K96&\", \"&TNL!K97,\"\")","v":""},{"$f":"IF(C21<>\"\",TNL!K96,\"\")","v":""},{"$f":"IF(C21<>\"\",TNL!K97,\"\")","v":""},{"$f":"IF(C21<>\"\",TEXT(TNL!AW96,\"TT.MM.JJJJ\"),\"\")","v":""},{"$f":"IF(C21<>\"\",TNL!BI96,\"\")","v":""},{"$f":"IF(C21<>\"\",TNL!BI97,\"\")","v":""},{"$f":"IF(C21<>\"\",IF(TNL!$AA$13<>\"\",TEXT(TNL!$AA$13,\"00 00 000\"),\"\"),\"\")","v":""},"",{"$f":"IF(C21<>\"\",18,\"\")","v":""},{"$f":"IF(C21<>\"\",TNL!$FP$15+K21,\"\")","v":""},{"$f":"IF(C21<>\"\",IF(TNL!$CV$15<>\"\",TEXT(TNL!$CV$15,\"JJ\"),\"\"),\"\")","v":""},""]
[0,{"$f":"IF(C22<>\"\",20,\"\")","v":""},{"$f":"IF(TNL!K98<>\"\",TNL!K98&\", \"&TNL!K99,\"\")","v":""},{"$f":"IF(C22<>\"\",TNL!K98,\"\")","v":""},{"$f":"IF(C22<>\"\",TNL!K99,\"\")","v":""},{"$f":"IF(C22<>\"\",TEXT(TNL!AW98,\"TT.MM.JJJJ\"),\"\")","v":""},{"$f":"IF(C22<>\"\",TNL!BI98,\"\")","v":""},{"$f":"IF(C22<>\"\",TNL!BI99,\"\")","v":""},{"$f":"IF(C22<>\"\",IF(TNL!$AA$13<>\"\",TEXT(TNL!$AA$13,\"00 00 000\"),\"\"),\"\")","v":""},"",{"$f":"IF(C22<>\"\",19,\"\")","v":""},{"$f":"IF(C22<>\"\",TNL!$FP$15+K22,\"\")","v":""},{"$f":"IF(C22<>\"\",IF(TNL!$CV$15<>\"\",TEXT(TNL!$CV$15,\"JJ\"),\"\"),\"\")","v":""},""]
[]
[null,"DGUV"]
[1,2,3,4,5,6,7,8,9,10,11,12,13,14]
["PV","Nr.","Name, Vorname","Name","Vorname","Geb.","Firma","Firmen-Ort",null,null,null,"BG | GUV","Nr. – BG | GUV","Reg.-Nr.",null,null,"Nr.","Name, Vorname","Geb.","BG | GUV","Nr. – BG | GUV"]
[{"$f":"IF(TNL!G50<>\"\",1,\"\")","v":""},{"$f":"IF(C27<>\"\",1,\"\")","v":""},{"$f":"IF(TNL!G49<>\"\",TNL!K49&\", \"&TNL!K50,\"\")","v":""},{"$f":"IF(C27<>\"\",TNL!K49,\"\")","v":""},{"$f":"IF(C27<>\"\",TNL!K50,\"\")","v":""},{"$f":"IF(C27<>\"\",TEXT(TNL!AW49,\"TT.MM.JJJJ\"),\"\")","v":""},{"$f":"IF(C27<>\"\",TNL!BI49,\"\")","v":""},{"$f":"IF(C27<>\"\",TNL!BI50,\"\")","v":""},null,null,null,{"$f":"IF(C27<>\"\",TNL!CW49,\"\")","v":""},{"$f":"IF(C27<>\"\",IF(TNL!CW50<>\"\",TNL!CW50,\"\"),\"\")","v":""},{"$f":"IF(C27<>\"\",TNL!EJ49,\"\")","v":""},null,null,{"$f":"IF(R27<>\"\",1,\"\")","v":""},{"$f":"IF(C27<>\"\",C27,\"\")","v":""},{"$f":"IF(F27<>\"\",F27,\"\")","v":""},{"$f":"IF(L27<>\"\",L27,\"\")","v":""},{"$f":"IF(M27<>\"\",M27,\"\")","v":""}]
[{"$f":"IF(TNL!G52<>\"\",2,\"\")","v":""},{"$f":"IF(C28<>\"\",2,\"\")","v":""},{"$f":"IF(TNL!G51<>\"\",TNL!K51&\", \"&TNL!K52,\"\")","v":""},{"$f":"IF(C28<>\"\",TNL!K51,\"\")","v":""},{"$f":"IF(C28<>\"\",TNL!K52,\"\")","v":""},{"$f":"IF(C28<>\"\",TEXT(TNL!AW51,\"TT.MM.JJJJ\"),\"\")","v":""},{"$f":"IF(C28<>\"\",TNL!BI51,\"\")","v":""},{"$f":"IF(C28<>\"\",TNL!BI52,\"\")","v":""},null,null,null,{"$f":"IF(C28<>\"\",TNL!CW51,\"\")","v":""},{"$f":"IF(C28<>\"\",IF(TNL!CW52<>\"\",TNL!CW52,\"\"),\"\")","v":""},{"$f":"IF(C28<>\"\",TNL!EJ51,\"\")","v":""},null,null,{"$f":"IF(R28<>\"\",2,\"\")","v":""},{"$f":"IF(C28<>\"\",C28,\"\")","v":""},"","",""]
[{"$f":"IF(TNL!G54<>\"\",3,\"\")","v":""},{"$f":"IF(C29<>\"\",3,\"\")","v":""},{"$f":"IF(TNL!G53<>\"\",TNL!K53&\", \"&TNL!K54,\"\")","v":""},{"$f":"IF(C29<>\"\",TNL!K53,\"\")","v":""},{"$f":"IF(C29<>\"\",TNL!K54,\"\")","v":""},{"$f":"IF(C29<>\"\",TEXT(TNL!AW53,\"TT.MM.JJJJ\"),\"\")","v":""},{"$f":"IF(C29<>\"\",TNL!BI53,\"\")","v":""},{"$f":"IF(C29<>\"\",TNL!BI54,\"\")","v":""},null,null,null,{"$f":"IF(C29<>\"\",TNL!CW53,\"\")","v":""},{"$f":"IF(C29<>\"\",IF(TNL!CW54<>\"\",TNL!CW54,\"\"),\"\")","v":""},{"$f":"IF(C29<>\"\",TNL!EJ53,\"\")","v":""},null,null,{"$f":"IF(R29<>\"\",3,\"\")","v":""},"","","",""]
[{"$f":"IF(TNL!G56<>\"\",4,\"\")","v":""},{"$f":"IF(C30<>\"\",4,\"\")","v":""},{"$f":"IF(TNL!G55<>\"\",TNL!K55&\", \"&TNL!K56,\"\")","v":""},{"$f":"IF(C30<>\"\",TNL!K55,\"\")","v":""},{"$f":"IF(C30<>\"\",TNL!K56,\"\")","v":""},{"$f":"IF(C30<>\"\",TEXT(TNL!AW55,\"TT.MM.JJJJ\"),\"\")","v":""},{"$f":"IF(C30<>\"\",TNL!BI55,\"\")","v":""},{"$f":"IF(C30<>\"\",TNL!BI56,\"\")","v":""},null,null,null,{"$f":"IF(C30<>\"\",TNL!CW55,\"\")","v":""},{"$f":"IF(C30<>\"\",IF(TNL!CW56<>\"\",TNL!CW56,\"\"),\"\")","v":""},{"$f":"IF(C30<>\"\",TNL!EJ55,\"\")","v":""},null,null,{"$f":"IF(R30<>\"\",4,\"\")","v":""},"","","",""]
[{"$f":"IF(TNL!G58<>\"\",5,\"\")","v":""},{"$f":"IF(C31<>\"\",5,\"\")","v":""},{"$f":"IF(TNL!G57<>\"\",TNL!K57&\", \"&TNL!K58,\"\")","v":""},{"$f":"IF(C31<>\"\",TNL!K57,\"\")","v":""},{"$f":"IF(C31<>\"\",TNL!K58,\"\")","v":""},{"$f":"IF(C31<>\"\",TEXT(TNL!AW57,\"TT.MM.JJJJ\"),\"\")","v":""},{"$f":"IF(C31<>\"\",TNL!BI57,\"\")","v":""},{"$f":"IF(C31<>\"\",TNL!BI58,\"\")","v":""},null,null,null,{"$f":"IF(C31<>\"\",TNL!CW57,\"\")","v":""},{"$f":"IF(C31<>\"\",IF(TNL!CW58<>\"\",TNL!CW58,\"\"),\"\")","v":""},{"$f":"IF(C31<>\"\",TNL!EJ57,\"\")","v":""},null,null,{"$f":"IF(R31<>\"\",5,\"\")","v":""},"","","",""]
[{"$f":"IF(TNL!G60<>\"\",6,\"\")","v":""},{"$f":"IF(C32<>\"\",6,\"\")","v":""},{"$f":"IF(TNL!G59<>\"\",TNL!K59&\", \"&TNL!K60,\"\")","v":""},{"$f":"IF(C32<>\"\",TNL!K59,\"\")","v":""},{"$f":"IF(C32<>\"\",TNL!K60,\"\")","v":""},{"$f":"IF(C32<>\"\",TEXT(TNL!AW59,\"TT.MM.JJJJ\"),\"\")","v":""},{"$f":"IF(C32<>\"\",TNL!BI59,\"\")","v":""},{"$f":"IF(C32<>\"\",TNL!BI60,\"\")","v":""},null,null,null,{"$f":"IF(C32<>\"\",TNL!CW57,\"\")","v":""},{"$f":"IF(C32<>\"\",IF(TNL!CW60<>\"\",TNL!CW60,\"\"),\"\")","v":""},{"$f":"IF(C32<>\"\",TNL!EJ59,\"\")","v":""},null,null,{"$f":"IF(R32<>\"\",6,\"\")","v":""},"","","",""]
[{"$f":"IF(TNL!G62<>\"\",7,\"\")","v":""},{"$f":"IF(C33<>\"\",7,\"\")","v":""},{"$f":"IF(TNL!G61<>\"\",TNL!K61&\", \"&TNL!K62,\"\")","v":""},{"$f":"IF(C33<>\"\",TNL!K61,\"\")","v":""},{"$f":"IF(C33<>\"\",TNL!K62,\"\")","v":""},{"$f":"IF(C33<>\"\",TEXT(TNL!AW61,\"TT.MM.JJJJ\"),\"\")","v":""},{"$f":"IF(C33<>\"\",TNL!BI61,\"\")","v":""},{"$f":"IF(C33<>\"\",TNL!BI62,\"\")","v":""},null,null,null,{"$f":"IF(C33<>\"\",TNL!CW59,\"\")","v":""},{"$f":"IF(C33<>\"\",IF(TNL!CW62<>\"\",TNL!CW62,\"\"),\"\")","v":""},{"$f":"IF(C33<>\"\",TNL!EJ61,\"\")","v":""},null,null,{"$f":"IF(R33<>\"\",7,\"\")","v":""},"","","",""]
[{"$f":"IF(TNL!G64<>\"\",8,\"\")","v":""},{"$f":"IF(C34<>\"\",8,\"\")","v":""},{"$f":"IF(TNL!G63<>\"\",TNL!K63&\", \"&TNL!K64,\"\")","v":""},{"$f":"IF(C34<>\"\",TNL!K63,\"\")","v":""},{"$f":"IF(C34<>\"\",TNL!K64,\"\")","v":""},{"$f":"IF(C34<>\"\",TEXT(TNL!AW63,\"TT.MM.JJJJ\"),\"\")","v":""},{"$f":"IF(C34<>\"\",TNL!BI63,\"\")","v":""},{"$f":"IF(C34<>\"\",TNL!BI64,\"\")","v":""},null,null,null,{"$f":"IF(C34<>\"\",TNL!CW61,\"\")","v":""},{"$f":"IF(C34<>\"\",IF(TNL!CW64<>\"\",TNL!CW64,\"\"),\"\")","v":""},{"$f":"IF(C34<>\"\",TNL!EJ63,\"\")","v":""},null,null,{"$f":"IF(R34<>\"\",8,\"\")","v":""},"","","",""]
[{"$f":"IF(TNL!G66<>\"\",9,\"\")","v":""},{"$f":"IF(C35<>\"\",9,\"\")","v":""},{"$f":"IF(TNL!G65<>\"\",TNL!K65&\", \"&TNL!K66,\"\")","v":""},{"$f":"IF(C35<>\"\",TNL!K65,\"\")","v":""},{"$f":"IF(C35<>\"\",TNL!K66,\"\")","v":""},{"$f":"IF(C35<>\"\",TEXT(TNL!AW65,\"TT.MM.JJJJ\"),\"\")","v":""},{"$f":"IF(C35<>\"\",TNL!BI65,\"\")","v":""},{"$f":"IF(C35<>\"\",TNL!BI66,\"\")","v":""},null,null,null,{"$f":"IF(C35<>\"\",TNL!CW63,\"\")","v":""},{"$f":"IF(C35<>\"\",IF(TNL!CW66<>\"\",TNL!CW66,\"\"),\"\")","v":""},{"$f":"IF(C35<>\"\",TNL!EJ65,\"\")","v":""},null,null,{"$f":"IF(R35<>\"\",9,\"\")","v":""},"","","",""]
[{"$f":"IF(TNL!G68<>\"\",10,\"\")","v":""},{"$f":"IF(C36<>\"\",10,\"\")","v":""},{"$f":"IF(TNL!G67<>\"\",TNL!K67&\", \"&TNL!K68,\"\")","v":""},{"$f":"IF(C36<>\"\",TNL!K67,\"\")","v":""},{"$f":"IF(C36<>\"\",TNL!K68,\"\")","v":""},{"$f":"IF(C36<>\"\",TEXT(TNL!AW67,\"TT.MM.JJJJ\"),\"\")","v":""},{"$f":"IF(C36<>\"\",TNL!BI67,\"\")","v":""},{"$f":"IF(C36<>\"\",TNL!BI68,\"\")","v":""},null,null,null,{"$f":"IF(C36<>\"\",TNL!CW65,\"\")","v":""},{"$f":"IF(C36<>\"\",IF(TNL!CW68<>\"\",TNL!CW68,\"\"),\"\")","v":""},{"$f":"IF(C36<>\"\",TNL!EJ67,\"\")","v":""},null,null,{"$f":"IF(R36<>\"\",10,\"\")","v":""},"","","",""]
[{"$f":"IF(TNL!G81<>\"\",11,\"\")","v":""},{"$f":"IF(C37<>\"\",11,\"\")","v":""},{"$f":"IF(TNL!G80<>\"\",TNL!K80&\", \"&TNL!K81,\"\")","v":""},{"$f":"IF(C37<>\"\",TNL!K80,\"\")","v":""},{"$f":"IF(C37<>\"\",TNL!K81,\"\")","v":""},{"$f":"IF(C37<>\"\",TEXT(TNL!AW80,\"TT.MM.JJJJ\"),\"\")","v":""},{"$f":"IF(C37<>\"\",TNL!BI80,\"\")","v":""},{"$f":"IF(C37<>\"\",TNL!BI81,\"\")","v":""},null,null,null,{"$f":"IF(C37<>\"\",TNL!CW80,\"\")","v":""},{"$f":"IF(C37<>\"\",IF(TNL!CW81<>\"\",TNL!CW81,\"\"),\"\")","v":""},{"$f":"IF(C37<>\"\",TNL!EJ80,\"\")","v":""},null,null,{"$f":"IF(R37<>\"\",11,\"\")","v":""},"","","",""]
[{"$f":"IF(TNL!G83<>\"\",12,\"\")","v":""},{"$f":"IF(C38<>\"\",12,\"\")","v":""},{"$f":"IF(TNL!G82<>\"\",TNL!K82&\", \"&TNL!K83,\"\")","v":""},{"$f":"IF(C38<>\"\",TNL!K82,\"\")","v":""},{"$f":"IF(C38<>\"\",TNL!K83,\"\")","v":""},{"$f":"IF(C38<>\"\",TEXT(TNL!AW82,\"TT.MM.JJJJ\"),\"\")","v":""},{"$f":"IF(C38<>\"\",TNL!BI82,\"\")","v":""},{"$f":"IF(C38<>\"\",TNL!BI83,\"\")","v":""},null,null,null,{"$f":"IF(C38<>\"\",TNL!CW82,\"\")","v":""},{"$f":"IF(C38<>\"\",IF(TNL!CW83<>\"\",TNL!CW83,\"\"),\"\")","v":""},{"$f":"IF(C38<>\"\",TNL!EJ82,\"\")","v":""},null,null,{"$f":"IF(R38<>\"\",12,\"\")","v":""},"","","",""]
[{"$f":"IF(TNL!G85<>\"\",13,\"\")","v":""},{"$f":"IF(C39<>\"\",13,\"\")","v":""},{"$f":"IF(TNL!G84<>\"\",TNL!K84&\", \"&TNL!K85,\"\")","v":""},{"$f":"IF(C39<>\"\",TNL!K84,\"\")","v":""},{"$f":"IF(C39<>\"\",TNL!K85,\"\")","v":""},{"$f":"IF(C39<>\"\",TEXT(TNL!AW84,\"TT.MM.JJJJ\"),\"\")","v":""},{"$f":"IF(C39<>\"\",TNL!BI84,\"\")","v":""},{"$f":"IF(C39<>\"\",TNL!BI85,\"\")","v":""},null,null,null,{"$f":"IF(C39<>\"\",TNL!CW84,\"\")","v":""},{"$f":"IF(C39<>\"\",IF(TNL!CW85<>\"\",TNL!CW85,\"\"),\"\")","v":""},{"$f":"IF(C39<>\"\",TNL!EJ84,\"\")","v":""},null,null,{"$f":"IF(R39<>\"\",13,\"\")","v":""},"","","",""]
[{"$f":"IF(TNL!G87<>\"\",14,\"\")","v":""},{"$f":"IF(C40<>\"\",14,\"\")","v":""},{"$f":"IF(TNL!G86<>\"\",TNL!K86&\", \"&TNL!K87,\"\")","v":""},{"$f":"IF(C40<>\"\",TNL!K86,\"\")","v":""},{"$f":"IF(C40<>\"\",TNL!K87,\"\")","v":""},{"$f":"IF(C40<>\"\",TEXT(TNL!AW86,\"TT.MM.JJJJ\"),\"\")","v":""},{"$f":"IF(C40<>\"\",TNL!BI86,\"\")","v":""},{"$f":"IF(C40<>\"\",TNL!BI87,\"\")","v":""},null,null,null,{"$f":"IF(C40<>\"\",TNL!CW86,\"\")","v":""},{"$f":"IF(C40<>\"\",IF(TNL!CW87<>\"\",TNL!CW87,\"\"),\"\")","v":""},{"$f":"IF(C40<>\"\",TNL!EJ86,\"\")","v":""},null,null,{"$f":"IF(R40<>\"\",14,\"\")","v":""},"","","",""]
[{"$f":"IF(TNL!G89<>\"\",15,\"\")","v":""},{"$f":"IF(C41<>\"\",15,\"\")","v":""},{"$f":"IF(TNL!G88<>\"\",TNL!K88&\", \"&TNL!K89,\"\")","v":""},{"$f":"IF(C41<>\"\",TNL!K88,\"\")","v":""},{"$f":"IF(C41<>\"\",TNL!K89,\"\")","v":""},{"$f":"IF(C41<>\"\",TEXT(TNL!AW88,\"TT.MM.JJJJ\"),\"\")","v":""},{"$f":"IF(C41<>\"\",TNL!BI88,\"\")","v":""},{"$f":"IF(C41<>\"\",TNL!BI89,\"\")","v":""},null,null,null,{"$f":"IF(C41<>\"\",TNL!CW88,\"\")","v":""},{"$f":"IF(C41<>\"\",IF(TNL!CW89<>\"\",TNL!CW89,\"\"),\"\")","v":""},{"$f":"IF(C41<>\"\",TNL!EJ88,\"\")","v":""},null,null,{"$f":"IF(R41<>\"\",15,\"\")","v":""},"","","",""]
[{"$f":"IF(TNL!G91<>\"\",16,\"\")","v":""},{"$f":"IF(C42<>\"\",16,\"\")","v":""},{"$f":"IF(TNL!G90<>\"\",TNL!K90&\", \"&TNL!K91,\"\")","v":""},{"$f":"IF(C42<>\"\",TNL!K90,\"\")","v":""},{"$f":"IF(C42<>\"\",TNL!K91,\"\")","v":""},{"$f":"IF(C42<>\"\",TEXT(TNL!AW90,\"TT.MM.JJJJ\"),\"\")","v":""},{"$f":"IF(C42<>\"\",TNL!BI90,\"\")","v":""},{"$f":"IF(C42<>\"\",TNL!BI91,\"\")","v":""},null,null,null,{"$f":"IF(C42<>\"\",TNL!CW90,\"\")","v":""},{"$f":"IF(C42<>\"\",IF(TNL!CW91<>\"\",TNL!CW91,\"\"),\"\")","v":""},{"$f":"IF(C42<>\"\",TNL!EJ90,\"\")","v":""},null,null,{"$f":"IF(R42<>\"\",16,\"\")","v":""},"","","",""]
[{"$f":"IF(TNL!G93<>\"\",17,\"\")","v":""},{"$f":"IF(C43<>\"\",17,\"\")","v":""},{"$f":"IF(TNL!G92<>\"\",TNL!K92&\", \"&TNL!K93,\"\")","v":""},{"$f":"IF(C43<>\"\",TNL!K92,\"\")","v":""},{"$f":"IF(C43<>\"\",TNL!K93,\"\")","v":""},{"$f":"IF(C43<>\"\",TEXT(TNL!AW92,\"TT.MM.JJJJ\"),\"\")","v":""},{"$f":"IF(C43<>\"\",TNL!BI92,\"\")","v":""},{"$f":"IF(C43<>\"\",TNL!BI93,\"\")","v":""},null,null,null,{"$f":"IF(C43<>\"\",TNL!CW92,\"\")","v":""},{"$f":"IF(C43<>\"\",IF(TNL!CW93<>\"\",TNL!CW93,\"\"),\"\")","v":""},{"$f":"IF(C43<>\"\",TNL!EJ92,\"\")","v":""},null,null,{"$f":"IF(R43<>\"\",17,\"\")","v":""},"","","",""]
[{"$f":"IF(TNL!G95<>\"\",18,\"\")","v":""},{"$f":"IF(C44<>\"\",18,\"\")","v":""},{"$f":"IF(TNL!G94<>\"\",TNL!K94&\", \"&TNL!K95,\"\")","v":""},{"$f":"IF(C44<>\"\",TNL!K94,\"\")","v":""},{"$f":"IF(C44<>\"\",TNL!K95,\"\")","v":""},{"$f":"IF(C44<>\"\",TEXT(TNL!AW94,\"TT.MM.JJJJ\"),\"\")","v":""},{"$f":"IF(C44<>\"\",TNL!BI94,\"\")","v":""},{"$f":"IF(C44<>\"\",TNL!BI95,\"\")","v":""},null,null,null,{"$f":"IF(C44<>\"\",TNL!CW94,\"\")","v":""},{"$f":"IF(C44<>\"\",IF(TNL!CW95<>\"\",TNL!CW95,\"\"),\"\")","v":""},{"$f":"IF(C44<>\"\",TNL!EJ94,\"\")","v":""},null,null,{"$f":"IF(R44<>\"\",18,\"\")","v":""},"","","",""]
[{"$f":"IF(TNL!G97<>\"\",19,\"\")","v":""},{"$f":"IF(C45<>\"\",19,\"\")","v":""},{"$f":"IF(TNL!G96<>\"\",TNL!K96&\", \"&TNL!K97,\"\")","v":""},{"$f":"IF(C45<>\"\",TNL!K96,\"\")","v":""},{"$f":"IF(C45<>\"\",TNL!K97,\"\")","v":""},{"$f":"IF(C45<>\"\",TEXT(TNL!AW96,\"TT.MM.JJJJ\"),\"\")","v":""},{"$f":"IF(C45<>\"\",TNL!BI96,\"\")","v":""},{"$f":"IF(C45<>\"\",TNL!BI97,\"\")","v":""},null,null,null,{"$f":"IF(C45<>\"\",TNL!CW96,\"\")","v":""},{"$f":"IF(C45<>\"\",IF(TNL!CW97<>\"\",TNL!CW97,\"\"),\"\")","v":""},{"$f":"IF(C45<>\"\",TNL!EJ96,\"\")","v":""},null,null,{"$f":"IF(R45<>\"\",19,\"\")","v":""},"","","",""]
[{"$f":"IF(TNL!G99<>\"\",20,\"\")","v":""},{"$f":"IF(C46<>\"\",20,\"\")","v":""},{"$f":"IF(TNL!G98<>\"\",TNL!K98&\", \"&TNL!K99,\"\")","v":""},{"$f":"IF(C46<>\"\",TNL!K98,\"\")","v":""},{"$f":"IF(C46<>\"\",TNL!K99,\"\")","v":""},{"$f":"IF(C46<>\"\",TEXT(TNL!AW98,\"TT.MM.JJJJ\"),\"\")","v":""},{"$f":"IF(C46<>\"\",TNL!BI98,\"\")","v":""},{"$f":"IF(C46<>\"\",TNL!BI99,\"\")","v":""},null,null,null,{"$f":"IF(C46<>\"\",TNL!CW98,\"\")","v":""},{"$f":"IF(C46<>\"\",IF(TNL!CW99<>\"\",TNL!CW99,\"\"),\"\")","v":""},{"$f":"IF(C46<>\"\",TNL!EJ98,\"\")","v":""},null,null,{"$f":"IF(R46<>\"\",20,\"\")","v":""},"","","",""]
[{"$f":"COUNT(A27:A46)","v":0},{"$f":"COUNT(B27:B46)","v":0}]
[{"$f":"SUM(A47,B47)","v":0}]
[]
[]
[null,"Nr."," Name, Vorname",null,"Geb."]
[null,{"$f":"IF(C52<>\"\",1,\"\")","v":""},{"$f":"IF(TNL!K49<>\"\",TNL!K49&\", \"&TNL!K50,\"\")","v":""},null,{"$f":"IF(C3<>\"\",TEXT(TNL!AW49,\"TT.MM.JJJJ\"),\"\")","v":""}]
[null,{"$f":"IF(C53<>\"\",2,\"\")","v":""},{"$f":"IF(TNL!K51<>\"\",TNL!K51&\", \"&TNL!K52,\"\")","v":""},null,{"$f":"IF(C4<>\"\",TEXT(TNL!AW51,\"TT.MM.JJJJ\"),\"\")","v":""}]
[null,{"$f":"IF(C54<>\"\",3,\"\")","v":""},{"$f":"IF(TNL!K53<>\"\",TNL!K53&\", \"&TNL!K54,\"\")","v":""},null,{"$f":"IF(C5<>\"\",TEXT(TNL!AW53,\"TT.MM.JJJJ\"),\"\")","v":""}]
[null,{"$f":"IF(C55<>\"\",4,\"\")","v":""},{"$f":"IF(TNL!K55<>\"\",TNL!K55&\", \"&TNL!K56,\"\")","v":""},null,{"$f":"IF(C6<>\"\",TEXT(TNL!AW55,\"TT.MM.JJJJ\"),\"\")","v":""}]
[null,{"$f":"IF(C56<>\"\",5,\"\")","v":""},{"$f":"IF(TNL!K57<>\"\",TNL!K57&\", \"&TNL!K58,\"\")","v":""},null,{"$f":"IF(C7<>\"\",TEXT(TNL!AW57,\"TT.MM.JJJJ\"),\"\")","v":""}]
[null,{"$f":"IF(C57<>\"\",6,\"\")","v":""},{"$f":"IF(TNL!K59<>\"\",TNL!K59&\", \"&TNL!K60,\"\")","v":""},null,{"$f":"IF(C8<>\"\",TEXT(TNL!AW59,\"TT.MM.JJJJ\"),\"\")","v":""}]
[null,{"$f":"IF(C58<>\"\",7,\"\")","v":""},{"$f":"IF(TNL!K61<>\"\",TNL!K61&\", \"&TNL!K62,\"\")","v":""},null,{"$f":"IF(C9<>\"\",TEXT(TNL!AW61,\"TT.MM.JJJJ\"),\"\")","v":""}]
[null,{"$f":"IF(C59<>\"\",8,\"\")","v":""},{"$f":"IF(TNL!K63<>\"\",TNL!K63&\", \"&TNL!K64,\"\")","v":""},null,{"$f":"IF(C10<>\"\",TEXT(TNL!AW63,\"TT.MM.JJJJ\"),\"\")","v":""}]
[null,{"$f":"IF(C60<>\"\",9,\"\")","v":""},{"$f":"IF(TNL!K65<>\"\",TNL!K65&\", \"&TNL!K66,\"\")","v":""},null,{"$f":"IF(C11<>\"\",TEXT(TNL!AW65,\"TT.MM.JJJJ\"),\"\")","v":""}]
[null,{"$f":"IF(C61<>\"\",10,\"\")","v":""},{"$f":"IF(TNL!K67<>\"\",TNL!K67&\", \"&TNL!K68,\"\")","v":""},null,{"$f":"IF(C12<>\"\",TEXT(TNL!AW67,\"TT.MM.JJJJ\"),\"\")","v":""}]
[null,{"$f":"IF(C62<>\"\",11,\"\")","v":""},{"$f":"IF(TNL!K80<>\"\",TNL!K80&\", \"&TNL!K81,\"\")","v":""},null,{"$f":"IF(C13<>\"\",TEXT(TNL!AW80,\"TT.MM.JJJJ\"),\"\")","v":""}]
[null,{"$f":"IF(C63<>\"\",12,\"\")","v":""},{"$f":"IF(TNL!K82<>\"\",TNL!K82&\", \"&TNL!K83,\"\")","v":""},null,{"$f":"IF(C14<>\"\",TEXT(TNL!AW82,\"TT.MM.JJJJ\"),\"\")","v":""}]
[null,{"$f":"IF(C64<>\"\",13,\"\")","v":""},{"$f":"IF(TNL!K84<>\"\",TNL!K84&\", \"&TNL!K85,\"\")","v":""},null,{"$f":"IF(C15<>\"\",TEXT(TNL!AW84,\"TT.MM.JJJJ\"),\"\")","v":""}]
[null,{"$f":"IF(C65<>\"\",14,\"\")","v":""},{"$f":"IF(TNL!K86<>\"\",TNL!K86&\", \"&TNL!K87,\"\")","v":""},null,{"$f":"IF(C16<>\"\",TEXT(TNL!AW86,\"TT.MM.JJJJ\"),\"\")","v":""}]
[null,{"$f":"IF(C66<>\"\",15,\"\")","v":""},{"$f":"IF(TNL!K88<>\"\",TNL!K88&\", \"&TNL!K89,\"\")","v":""},null,{"$f":"IF(C17<>\"\",TEXT(TNL!AW88,\"TT.MM.JJJJ\"),\"\")","v":""}]
[null,{"$f":"IF(C67<>\"\",16,\"\")","v":""},{"$f":"IF(TNL!K90<>\"\",TNL!K90&\", \"&TNL!K91,\"\")","v":""},null,{"$f":"IF(C18<>\"\",TEXT(TNL!AW90,\"TT.MM.JJJJ\"),\"\")","v":""}]
[null,{"$f":"IF(C68<>\"\",17,\"\")","v":""},{"$f":"IF(TNL!K92<>\"\",TNL!K92&\", \"&TNL!K93,\"\")","v":""},null,{"$f":"IF(C19<>\"\",TEXT(TNL!AW92,\"TT.MM.JJJJ\"),\"\")","v":""}]
[null,{"$f":"IF(C69<>\"\",18,\"\")","v":""},{"$f":"IF(TNL!K94<>\"\",TNL!K94&\", \"&TNL!K95,\"\")","v":""},null,{"$f":"IF(C20<>\"\",TEXT(TNL!AW94,\"TT.MM.JJJJ\"),\"\")","v":""}]
[null,{"$f":"IF(C70<>\"\",19,\"\")","v":""},{"$f":"IF(TNL!K96<>\"\",TNL!K96&\", \"&TNL!K97,\"\")","v":""},null,{"$f":"IF(C21<>\"\",TEXT(TNL!AW96,\"TT.MM.JJJJ\"),\"\")","v":""}]
[null,{"$f":"IF(C71<>\"\",20,\"\")","v":""},{"$f":"IF(TNL!K98<>\"\",TNL!K98&\", \"&TNL!K99,\"\")","v":""},null,{"$f":"IF(C22<>\"\",TEXT(TNL!AW98,\"TT.MM.JJJJ\"),\"\")","v":""}]